{"text_format":"1","workbook":"xlsx","n_sheets":23,"sheets":["Sommaire Outil","Données","Repartition Ages","Repartition Anciennetés","AGE.ANC.SEX par Services","AGE.ANC.SEX par Métiers","ANALYSES COMPLEMENTAIRES REP","Evolution AGE 3 ans","Nombre Absences Santé","Durées Absences Santé","Arrêts AT","MP","RESTRICTIONS","ANALYSES COMPLEMENTAIRES UP","Feuil2","Formation","Evolutions Entrées Sorties","Feuil1","Compétences","ANALYSES COMPLEMENTAIRES PARCOU","ANALYSES COMPLEMENTAIRES PA (2)","SYNTHESE DIAG","Feuil3"],"not_rendered":{"charts":53,"images":3,"macros":1,"external_links":0,"defined_names":5,"comments":0,"pivot_tables":56},"unopened":[],"bounds":{"document_bytes":16777216,"sheet_cells":100000,"rows_first":2000,"rows_last":500,"rows_between":2000,"halvings":0,"cell_chars":16384,"cell_head_chars":4096},"cells_cut":0,"cells_raw":0,"read":"whole","date_system":"1900"}

{"sheet":"Sommaire Outil","index":0,"n_rows":27,"n_cols":6,"rows_kept":27,"cut":false,"hidden":false,"merged":[[14,4,15,4],[17,4,21,4],[28,4,28,5],[22,4,24,4],[12,4,13,4],[26,4,26,5]]}
[null,null,null,null,null,"OUTIL DIAGNOSTIC \"CONTRATS DE GENERATION\""]
[]
[]
[]
[]
[null,null,null,null,null,"RENSEIGNEMENT DES DONNEES DE L'ENTREPRISE"]
[]
[]
[]
[null,null,null,null,"AXES","ANALYSES"]
[null,null,null,null,"SOMMAIRE DE L'OUTIL DIAGNOSTIC \"CONTRAT DE GENERATION\"  (cliquez pour vous rendre sur l'onglet choisi)"]
[]
[null,null,null,null,"DESCRIPTION","REPARTITION PAR AGE "]
[null,null,null,null,null,"REPARTITION PAR ANCIENNETE "]
[null,null,null,null,"REPARTITION ACTIVITES","SERVICES PAR AGES, ANCIENNETE ET SEXE"]
[null,null,null,null,null,"METIERS/EMPLOIS PAR AGE, ANCIENNETE ET SEXE"]
[null,null,null,null,"EVOLUTIONS","EVOLUTION DES EFFECTIFS SUR 3 ANS (HISTOGRAMME DECALE)"]
[null,null,null,null,"PREVENTION DE L'USURE","NOMBRE ABSENCES SANTE PAR AGE ET PAR ACTIVITES"]
[null,null,null,null,null,"DUREE ABSENCES SANTE PAR AGE ET PAR ACTIVITES"]
[null,null,null,null,null,"AT PAR AGE ET PAR ACTIVITES "]
[null,null,null,null,null,"MP PAR AGE ET ACTIVITES"]
[null,null,null,null,null,"RESTRICTIONS PAR AGE ET ACTIVITES"]
[null,null,null,null,"PARCOURS","FORMATIONS PAR AGE, ANCIENNETE, SEXE ET ACTIVITES"]
[null,null,null,null,null,"TABLEAU ENTREES ET SORTIES SUR 3 ANS "]
[null,null,null,null,null,"TABLEAU DE GESTION DES COMPETENCES"]
[]
[null,null,null,null,"SYNTHESE DIAGNOSTIC"]

{"sheet":"Données","index":1,"n_rows":2000,"n_cols":23,"rows_kept":2000,"cut":false,"hidden":false,"merged":[[12,8,12,9],[12,11,12,12]]}
[]
[]
[null,"Couleur des colonnes : ","x","Remplir avec les données de votre entreprise"]
[null,null,"x","Ne pas modifier: valeur calculée automatiquement"]
[]
[null,"Date de référence :"]
[null,41274]
[]
[]
[]
[]
[]
[null,"Le matricule permet d’identifier un salarié de manière anonyme et spécifique, contrairement aux noms et prénoms qui peuvent être identiques pour plusieurs personnes. Il permet de rassembler plusieurs fichiers d’une même entreprise dans une même base de donnée, si les matricules utilisés sont les mêmes. Cette colonne doit être remplie pour que l'outil fonctionne.  ",null,"iAttention aux différentes façons de nommer la variable : H/F ; 1/2 ; M/F ; Homme/Femme ; /Male/Female. Il faut s’assurer que les modalités sont les mêmes dans tout le fichier. ","Permet de calculer l’âge du salarié et de définir des classes d’âge. \nAttention aux différents formats de date possibles dans les tableurs (MM/JJ/AAAA ; JJ/MM/AAAA ; JJ-MM-AA ; etc.). S’assurer qu’ils sont les mêmes dans tout le fichier. S'il vous n'avez que l'année de naissance, l'outil ne pourra calculer automatiquement l'âge. Il faut dans ce cas remplacer la formule de la colonne âge par la formule suivante : \"=2012-$E15\" (s'il s'agit d'un fichier de 2012) \n\nPermet de calculer l’âge du salarié et de définir des classes d’âge. \nAttention aux différents formats de date possibles dans les tableurs (MM/JJ/AAAA ; JJ/MM/AAAA ; JJ-MM-AA ; etc.). S’assurer qu’ils sont les mêmes dans tout le fichier. \n\n","Permet de calculer l’ancienneté du salarié.\nAttention aux formats de dates possibles. Distinguer la date d’entrée dans l’entreprise de la date de prise de fonction de l’emploi actuel (deux types d’ancienneté différents).Même remarque que pour la date de naissance si vous n'avez que l'année d'entrée dans l'entreprises (il faut changer la formule de la colonne ancienneté). \n","Cette variable se nomme service mais elle peut faire référence à d'autres manière de répartir les salariés en fonction de l'activité (site, département, secteur…).Les modalités de ces variables sont propres à chaque entreprise. Afin de faire des analyses pertinentes et de comparaisons, veiller à ce que les modalités ne soient pas trop nombreuses et faire des regroupements si nécessaire. La variable « unité de travail », en référence au document unique, peut aussi être intéressante à exploiter dans cette colonne. ","Variable la plus discriminante du point de vue de l’activité, elle correspond à l’emploi ou à la fonction occupée par le salarié. \nFaire attention à l’orthographe et aux façons d’écrire la variable dans le fichier. Une faute d’orthographe suffit à créer un nouveau métier dans le traitement de données (ex : “attaché commercial“ et “attachée commercial“ seront 2 emplois différents). Il est souvent nécessaire d’exploiter cette variable pour faire des analyses fines de la répartition par âge, de la situation en terme d’égalité professionnelle ou d’usure professionnelle (en croisant cette variable avec des données de santé par exemple). \n","Il existe de nombreuses manières de qualifier les absences. Pour une meilleure interprétation des analyses, il est préférable de séparer l’absentéisme lié à des motifs de santé (maladie, accident du travail, maladies professionnelles) de l’absentéisme lié à d’autres motifs (congés de maternité, congés enfant malade, congés sans solde) qui peuvent venir « gonfler » les taux d’absentéisme pour des raisons indépendantes des conditions de travail ou de l’état de santé des salariés. \nIl existe de nombreuses façons d'enregistrer les durées d'absences. Elles peuvent être libellées sous forme de taux pour une entreprise, un service, un secteur ou une catégorie de salarié. Elles peuvent aussi être exprimées en nombre de jour ou d'heures d’absence par salarié. Ici nous proposons de reporter le nombre d'absence dans une année, et la durée totale de ces absences par salariés (en jours). ",null,"Attention au libellé de la variable : Nous proposons ici de reporter le nombre de jours d'arrêts consécutifs à un ou plusieurs AT, qui permet par déduction de repérer les salariés acccidentés de ceux qui n'ont pas eu d'AT au cours de l'année. ","Vous pouvez indiquer dans ces colonnes si le salarié a une maladie professionnelle reconnue ou une restriction d'aptitude ou une inaptitude. ",null,"Vous pouvez insérer dans cette colonne le nombre d'heures de formation (ou éventuellement le nombre de jours ou le nombre d'actions de formation, mais dans ce cas, attention aux tableaux croisés dynamiques et aux graphiques de l'onglet formation, ils pourraient ne pas être pertinents et devoir être modifiés). "]
[null,"MATRICULE","NOM","SEXE","DATE NAISSANCE","DATE EMBAUCHE","SERVICE/SECTEUR","METIER/EMPLOI","Nombre ABSENCES SANTE","Durée ABSENCES SANTE","Duréé ABSENCES AT","MP","Restrictions","HEURES FORMATION","X","Y","Age","Ancienneté","Tranche âge 10","Tranche âge 5","Tranche ancienneté ","Tranches arrêts absences/santé","Tranches arrêts AT"]
[null,0,"BERARD","H",24376,33616,"PROD","opérateur",0,4,10,"OUI","OUI",7,null,null,{"$f":"IF(ISBLANK($E15),\"\",INT((dref-$E15)/365.25))","v":46},{"$f":"IF(ISBLANK($F15),\"\",INT((dref-$F15)/365.25))","v":20},{"$f":"IF(ISNUMBER(Q15),INT(Q15/10)*10&\"-\"&(INT(Q15/10)+1)*10-1,\"\")","v":"40-49"},{"$f":"IF(ISNUMBER(Q15),INT(Q15/5)*5&\"-\"&INT(Q15/5)*5+4,\"\")","v":"45-49"},{"$f":"IF(R15=\"\",\"\",IF(R15=0,\"1:-1an\",IF(R15<=2,\"2:1-2\",IF(R15<=5,\"3:3-5\",IF(R15<=11,\"4:6-11\",IF(R15>11,\"5:+11\"))))))","v":"5:+11"},{"$f":"IF(J15=\"\",\"\",IF(J15=0,\"1:0\",IF(J15<=5,\"2:1-5\",IF(J15<=25,\"3:6-25\",\"4:+25\"))))","v":"2:1-5"},{"$f":"IF(K15=\"\",\"\",IF(K15=0,\"1:0\",IF(K15<=5,\"2:1-5\",IF(K15<=25,\"3:6-25\",\"4:+25\"))))","v":"3:6-25"}]
[null,1,"SANDOU","H",23478,36610,"PROD","opérateur",1,16,0,"NON","NON",7,null,null,48,12,"40-49","45-49",{"$f":"IF(R16=\"\",\"\",IF(R16=0,\"1:-1an\",IF(R16<=2,\"2:1-2\",IF(R16<=5,\"3:3-5\",IF(R16<=11,\"4:6-11\",IF(R16>11,\"5:+11\"))))))","v":"5:+11"},{"$f":"IF(J16=\"\",\"\",IF(J16=0,\"1:0\",IF(J16<=5,\"2:1-5\",IF(J16<=25,\"3:6-25\",\"4:+25\"))))","v":"3:6-25"},{"$f":"IF(K16=\"\",\"\",IF(K16=0,\"1:0\",IF(K16<=5,\"2:1-5\",IF(K16<=25,\"3:6-25\",\"4:+25\"))))","v":"1:0"}]
[null,2,"DUPONT","H",23318,32665,"SA","comptable",2,35,0,"OUI","OUI",14,null,null,49,23,"40-49","45-49","5:+11","4:+25","1:0"]
[null,3,"DURAND","F",29231,40148,"SA","secrétaire",3,160,153,"NON","OUI",7,null,null,32,3,"30-39","30-34","3:3-5","4:+25","4:+25"]
[null,4,"AMAR","H",22446,30529,"PROD","opérateur",1,8,0,"NON","NON",7,null,null,51,29,"50-59","50-54","5:+11","3:6-25","1:0"]
[null,5,"TEISSIER","H",22412,39889,"PROD","opérateur",0,0,0,"NON","NON",7,null,null,51,3,"50-59","50-54","3:3-5","1:0","1:0"]
[null,6,"GRANGER","H",21071,28527,"PROD","opérateur",0,0,0,"OUI","NON",7,null,null,55,34,"50-59","55-59","5:+11","1:0","1:0"]
[null,7,"RUPERTI","H",18994,40042,"PROD","technicien",0,0,0,"NON","NON",28,null,null,60,3,"60-69","60-64","3:3-5","1:0","1:0"]
[null,8,"BARBAULT","H",30528,40012,"PROD","chef d'équipe",1,35,50,"NON","NON",14,null,null,29,3,"20-29","25-29","3:3-5","4:+25","4:+25"]
[null,9,"ROLIN","F",30004,38915,"PROD","opérateur",2,16,0,"OUI","NON",7,null,null,30,6,"30-39","30-34","4:6-11","3:6-25","1:0"]
[null,10,"ROGERS","H",29576,40149,"PROD","opérateur",1,8,0,"NON","NON",0,null,null,32,3,"30-39","30-34","3:3-5","3:6-25","1:0"]
[null,11,"BAUCHAU","H",29498,37333,"DIR","directeur",0,0,0,"NON","NON",0,null,null,32,10,"30-39","30-34","4:6-11","1:0","1:0"]
[null,12,"KLEIN","F",28354,39953,"PROD","opérateur",0,0,0,"NON","NON",0,null,null,35,3,"30-39","35-39","3:3-5","1:0","1:0"]
[null,13,"RAYMOND","F",28350,40085,"PROD","opérateur",0,0,0,"NON","OUI",0,null,null,35,3,"30-39","35-39","3:3-5","1:0","1:0"]
[null,14,"HENRI","H",28156,37211,"SA","commercial",0,0,0,"OUI","OUI",14,null,null,35,11,"30-39","35-39","4:6-11","1:0","1:0"]
[null,15,"REINIER","H",28101,36045,"PROD","chef d'équipe",0,0,0,"NON","OUI",14,null,null,36,14,"30-39","35-39","5:+11","1:0","1:0"]
[null,16,"MAZEL","F",27639,39725,"PROD","opérateur",1,32,0,"NON","OUI",0,null,null,37,4,"30-39","35-39","3:3-5","4:+25","1:0"]
[null,17,"RIGZ-NON","F",27571,40063,"PROD","opérateur",0,0,0,"NON","OUI",0,null,null,37,3,"30-39","35-39","3:3-5","1:0","1:0"]
[null,18,"BACHERT","F",25696,37287,"SA","commercial",4,32,0,"OUI","OUI",21,null,null,42,10,"40-49","40-44","4:6-11","4:+25","1:0"]
[null,19,"FRANC","F",30890,40231,"PROD","opérateur",0,0,0,"NON","OUI",0,null,null,28,2,"20-29","25-29","2:1-2","1:0","1:0"]
[null,20,"RETIRO","H",34169,41204,"PROD","opérateur",0,0,0,"OUI","OUI",0,null,null,19,0,"10-19","15-19","1:-1an","1:0","1:0"]
[null,21,"TIRO","F",17054,24767,"SA","commercial",0,0,2,"OUI","OUI",0,null,null,66,45,"60-69","65-69","5:+11","1:0","2:1-5"]
[null,22,"BERARD","H",16649,21762,"PROD","opérateur",0,0,0,"OUI","OUI",7,null,null,67,53,"60-69","65-69","5:+11","1:0","1:0"]
[null,23,"SANDOU","H",17014,22128,"PROD","opérateur",1,16,0,"NON","NON",7,null,null,66,52,"60-69","65-69","5:+11","3:6-25","1:0"]
[null,24,"DUPONT","H",17379,22493,"SA","comptable",2,35,0,"OUI","OUI",14,null,null,65,51,"60-69","65-69","5:+11","4:+25","1:0"]
[null,25,"DURAND","F",17745,22858,"SA","secrétaire",3,160,153,"NON","OUI",7,null,null,64,50,"60-69","60-64","5:+11","4:+25","4:+25"]
[null,26,"AMAR","H",18110,23223,"PROD","opérateur",1,8,0,"NON","NON",7,null,null,63,49,"60-69","60-64","5:+11","3:6-25","1:0"]
[null,27,"TEISSIER","H",18475,23589,"PROD","opérateur",0,0,0,"NON","NON",7,null,null,62,48,"60-69","60-64","5:+11","1:0","1:0"]
[null,28,"GRANGER","H",18840,23954,"PROD","opérateur",0,0,0,"OUI","NON",7,null,null,61,47,"60-69","60-64","5:+11","1:0","1:0"]
[null,29,"RUPERTI","H",19206,24319,"PROD","technicien",0,0,0,"NON","NON",28,null,null,60,46,"60-69","60-64","5:+11","1:0","1:0"]
[null,30,"BARBAULT","H",19571,24684,"PROD","chef d'équipe",1,35,50,"NON","NON",14,null,null,59,45,"50-59","55-59","5:+11","4:+25","4:+25"]
[null,31,"ROLIN","F",19936,25050,"PROD","opérateur",2,16,0,"OUI","NON",7,null,null,58,44,"50-59","55-59","5:+11","3:6-25","1:0"]
[null,32,"ROGERS","H",20301,25415,"PROD","opérateur",1,8,0,"NON","NON",0,null,null,57,43,"50-59","55-59","5:+11","3:6-25","1:0"]
[null,33,"BAUCHAU","H",20667,25780,"DIR","directeur",0,0,0,"NON","NON",0,null,null,56,42,"50-59","55-59","5:+11","1:0","1:0"]
[null,34,"KLEIN","F",21032,26145,"PROD","opérateur",0,0,0,"NON","NON",0,null,null,55,41,"50-59","55-59","5:+11","1:0","1:0"]
[null,35,"RAYMOND","F",21397,26511,"PROD","opérateur",0,0,0,"NON","OUI",0,null,null,54,40,"50-59","50-54","5:+11","1:0","1:0"]
[null,36,"HENRI","H",21762,26876,"SA","commercial",0,0,0,"OUI","OUI",14,null,null,53,39,"50-59","50-54","5:+11","1:0","1:0"]
[null,37,"REINIER","H",22128,27241,"PROD","chef d'équipe",0,0,0,"NON","OUI",14,null,null,52,38,"50-59","50-54","5:+11","1:0","1:0"]
[null,38,"MAZEL","F",22493,27606,"PROD","opérateur",1,32,0,"NON","OUI",0,null,null,51,37,"50-59","50-54","5:+11","4:+25","1:0"]
[null,39,"RIGZ-NON","F",22858,27972,"PROD","opérateur",0,0,0,"NON","OUI",0,null,null,50,36,"50-59","50-54","5:+11","1:0","1:0"]
[null,40,"BACHERT","F",23223,28337,"SA","commercial",4,32,0,"OUI","OUI",21,null,null,49,35,"40-49","45-49","5:+11","4:+25","1:0"]
[null,41,"FRANC","F",23589,28702,"PROD","opérateur",0,0,0,"NON","OUI",0,null,null,48,34,"40-49","45-49","5:+11","1:0","1:0"]
[null,42,"RETIRO","H",23954,29067,"PROD","opérateur",0,0,0,"OUI","OUI",0,null,null,47,33,"40-49","45-49","5:+11","1:0","1:0"]
[null,43,"TIRO","F",24319,29433,"SA","commercial",0,0,2,"OUI","OUI",0,null,null,46,32,"40-49","45-49","5:+11","1:0","2:1-5"]
[null,44,"BERARD","H",24684,29798,"PROD","opérateur",0,0,0,"OUI","OUI",7,null,null,45,31,"40-49","45-49","5:+11","1:0","1:0"]
[null,45,"SANDOU","H",25050,30163,"PROD","opérateur",1,16,0,"NON","NON",7,null,null,44,30,"40-49","40-44","5:+11","3:6-25","1:0"]
[null,46,"DUPONT","H",25415,30528,"SA","comptable",2,35,0,"OUI","OUI",14,null,null,43,29,"40-49","40-44","5:+11","4:+25","1:0"]
[null,47,"DURAND","F",25780,30894,"SA","secrétaire",3,160,153,"NON","OUI",7,null,null,42,28,"40-49","40-44","5:+11","4:+25","4:+25"]
[null,48,"AMAR","H",26145,31259,"PROD","opérateur",1,8,0,"NON","NON",7,null,null,41,27,"40-49","40-44","5:+11","3:6-25","1:0"]
[null,49,"TEISSIER","H",26511,31624,"PROD","opérateur",0,0,0,"NON","NON",7,null,null,40,26,"40-49","40-44","5:+11","1:0","1:0"]
[null,50,"GRANGER","H",26876,31989,"PROD","opérateur",0,0,0,"OUI","NON",7,null,null,39,25,"30-39","35-39","5:+11","1:0","1:0"]
[null,51,"RUPERTI","H",27241,32355,"PROD","technicien",0,0,0,"NON","NON",28,null,null,38,24,"30-39","35-39","5:+11","1:0","1:0"]
[null,52,"BARBAULT","H",27606,32720,"PROD","chef d'équipe",1,35,50,"NON","NON",14,null,null,37,23,"30-39","35-39","5:+11","4:+25","4:+25"]
[null,53,"ROLIN","F",27972,33085,"PROD","opérateur",2,16,0,"OUI","NON",7,null,null,36,22,"30-39","35-39","5:+11","3:6-25","1:0"]
[null,54,"ROGERS","H",28337,33450,"PROD","opérateur",1,8,0,"NON","NON",0,null,null,35,21,"30-39","35-39","5:+11","3:6-25","1:0"]
[null,55,"BAUCHAU","H",28702,33816,"DIR","directeur",0,0,0,"NON","NON",0,null,null,34,20,"30-39","30-34","5:+11","1:0","1:0"]
[null,56,"KLEIN","F",29067,34181,"PROD","opérateur",0,0,0,"NON","NON",0,null,null,{"$f":"IF(ISBLANK($E71),\"\",INT((dref-$E71)/365.25))","v":33},19,"30-39","30-34","5:+11","1:0","1:0"]
[null,57,"RAYMOND","F",29433,34546,"PROD","opérateur",0,0,0,"NON","OUI",0,null,null,32,18,"30-39","30-34","5:+11","1:0","1:0"]
[null,58,"HENRI","H",29798,34911,"SA","commercial",0,0,0,"OUI","OUI",14,null,null,31,17,"30-39","30-34","5:+11","1:0","1:0"]
[null,59,"REINIER","H",30163,35277,"PROD","chef d'équipe",0,0,0,"NON","OUI",14,null,null,30,16,"30-39","30-34","5:+11","1:0","1:0"]
[null,60,"MAZEL","F",30528,35642,"PROD","opérateur",1,32,0,"NON","OUI",0,null,null,29,15,"20-29","25-29","5:+11","4:+25","1:0"]
[null,61,"RIGZ-NON","F",30894,36007,"PROD","opérateur",0,0,0,"NON","OUI",0,null,null,28,14,"20-29","25-29","5:+11","1:0","1:0"]
[null,62,"BACHERT","F",31259,36372,"SA","commercial",4,32,0,"OUI","OUI",21,null,null,27,13,"20-29","25-29","5:+11","4:+25","1:0"]
[null,63,"FRANC","F",31624,36738,"PROD","opérateur",0,0,0,"NON","OUI",0,null,null,26,12,"20-29","25-29","5:+11","1:0","1:0"]
[null,64,"RETIRO","H",31989,37103,"PROD","opérateur",0,0,0,"OUI","OUI",0,null,null,25,{"$f":"IF(ISBLANK($F79),\"\",INT((dref-$F79)/365.25))","v":11},{"$f":"IF(ISNUMBER(Q79),INT(Q79/10)*10&\"-\"&(INT(Q79/10)+1)*10-1,\"\")","v":"20-29"},{"$f":"IF(ISNUMBER(Q79),INT(Q79/5)*5&\"-\"&INT(Q79/5)*5+4,\"\")","v":"25-29"},"4:6-11","1:0","1:0"]
[null,65,"TIRO","F",32355,37468,"SA","commercial",0,0,2,"OUI","OUI",0,null,null,24,10,"20-29","20-24",{"$f":"IF(R80=\"\",\"\",IF(R80=0,\"1:-1an\",IF(R80<=2,\"2:1-2\",IF(R80<=5,\"3:3-5\",IF(R80<=11,\"4:6-11\",IF(R80>11,\"5:+11\"))))))","v":"4:6-11"},{"$f":"IF(J80=\"\",\"\",IF(J80=0,\"1:0\",IF(J80<=5,\"2:1-5\",IF(J80<=25,\"3:6-25\",\"4:+25\"))))","v":"1:0"},{"$f":"IF(K80=\"\",\"\",IF(K80=0,\"1:0\",IF(K80<=5,\"2:1-5\",IF(K80<=25,\"3:6-25\",\"4:+25\"))))","v":"2:1-5"}]
[null,66,"BERARD","H",32720,37833,"PROD","opérateur",0,0,0,"OUI","OUI",7,null,null,23,9,"20-29","20-24","4:6-11","1:0","1:0"]
[null,67,"SANDOU","H",33085,38199,"PROD","opérateur",1,16,0,"NON","NON",7,null,null,22,8,"20-29","20-24","4:6-11","3:6-25","1:0"]
[null,68,"DUPONT","H",33450,38564,"SA","comptable",2,35,0,"OUI","OUI",14,null,null,21,7,"20-29","20-24","4:6-11","4:+25","1:0"]
[null,69,"DURAND","F",33816,38929,"SA","secrétaire",3,160,153,"NON","OUI",7,null,null,20,6,"20-29","20-24","4:6-11","4:+25","4:+25"]
[null,70,"AMAR","H",34181,39294,"PROD","opérateur",1,8,0,"NON","NON",7,null,null,19,5,"10-19","15-19","3:3-5","3:6-25","1:0"]
[null,71,"TEISSIER","H",34546,39660,"PROD","opérateur",0,0,0,"NON","NON",7,null,null,18,4,"10-19","15-19","3:3-5","1:0","1:0"]
[null,72,"GRANGER","H",34911,40025,"PROD","opérateur",0,0,0,"OUI","NON",7,null,null,17,3,"10-19","15-19","3:3-5","1:0","1:0"]
[null,73,"RUPERTI","H",35277,40390,"PROD","technicien",0,0,0,"NON","NON",28,null,null,16,2,"10-19","15-19","2:1-2","1:0","1:0"]
[null,74,"BARBAULT","H",35277,40755,"PROD","chef d'équipe",1,35,50,"NON","NON",14,null,null,16,1,"10-19","15-19","2:1-2","4:+25","4:+25"]
[null,75,"ROLIN","F",35277,41121,"PROD","opérateur",2,16,0,"OUI","NON",7,null,null,16,0,"10-19","15-19","1:-1an","3:6-25","1:0"]
[null,null,null,null,null,null,null,null,null,null,null,null,null,null,null,null,"","","","","","",""]
[null,null,null,null,null,null,null,null,null,null,null,null,null,null,null,null,"","","","","","",""]
[null,null,null,null,null,null,null,null,null,null,null,null,null,null,null,null,"","","","","","",""]
[null,null,null,null,null,null,null,null,null,null,null,null,null,null,null,null,"","","","","","",""]
[null,null,null,null,null,null,null,null,null,null,null,null,null,null,null,null,"","","","","","",""]
[null,null,null,null,null,null,null,null,null,null,null,null,null,null,null,null,"","","","","","",""]
[null,null,null,null,null,null,null,null,null,null,null,null,null,null,null,null,"","","","","","",""]
[null,null,null,null,null,null,null,null,null,null,null,null,null,null,null,null,"","","","","","",""]
[null,null,null,null,null,null,null,null,null,null,null,null,null,null,null,null,"","","","","","",""]
[null,null,null,null,null,null,null,null,null,null,null,null,null,null,null,null,"","","","","","",""]
[null,null,null,null,null,null,null,null,null,null,null,null,null,null,null,null,"","","","","","",""]
[null,null,null,null,null,null,null,null,null,null,null,null,null,null,null,null,"","","","","","",""]
[null,null,null,null,null,null,null,null,null,null,null,null,null,null,null,null,"","","","","","",""]
[null,null,null,null,null,null,null,null,null,null,null,null,null,null,null,null,"","","","","","",""]
[null,null,null,null,null,null,null,null,null,null,null,null,null,null,null,null,"","","","","","",""]
[null,null,null,null,null,null,null,null,null,null,null,null,null,null,null,null,"","","","","","",""]
[null,null,null,null,null,null,null,null,null,null,null,null,null,null,null,null,"","","","","","",""]
[null,null,null,null,null,null,null,null,null,null,null,null,null,null,null,null,"","","","","","",""]
[null,null,null,null,null,null,null,null,null,null,null,null,null,null,null,null,"","","","","","",""]
[null,null,null,null,null,null,null,null,null,null,null,null,null,null,null,null,"","","","","","",""]
[null,null,null,null,null,null,null,null,null,null,null,null,null,null,null,null,"","","","","","",""]
[null,null,null,null,null,null,null,null,null,null,null,null,null,null,null,null,"","","","","","",""]
[null,null,null,null,null,null,null,null,null,null,null,null,null,null,null,null,"","","","","","",""]
[null,null,null,null,null,null,null,null,null,null,null,null,null,null,null,null,"","","","","","",""]
[null,null,null,null,null,null,null,null,null,null,null,null,null,null,null,null,"","","","","","",""]
[null,null,null,null,null,null,null,null,null,null,null,null,null,null,null,null,"","","","","","",""]
[null,null,null,null,null,null,null,null,null,null,null,null,null,null,null,null,"","","","","","",""]
[null,null,null,null,null,null,null,null,null,null,null,null,null,null,null,null,"","","","","","",""]
[null,null,null,null,null,null,null,null,null,null,null,null,null,null,null,null,"","","","","","",""]
[null,null,null,null,null,null,null,null,null,null,null,null,null,null,null,null,"","","","","","",""]
[null,null,null,null,null,null,null,null,null,null,null,null,null,null,null,null,"","","","","","",""]
[null,null,null,null,null,null,null,null,null,null,null,null,null,null,null,null,"","","","","","",""]
[null,null,null,null,null,null,null,null,null,null,null,null,null,null,null,null,"","","","","","",""]
[null,null,null,null,null,null,null,null,null,null,null,null,null,null,null,null,"","","","","","",""]
[null,null,null,null,null,null,null,null,null,null,null,null,null,null,null,null,"","","","","","",""]
[null,null,null,null,null,null,null,null,null,null,null,null,null,null,null,null,"","","","","","",""]
[null,null,null,null,null,null,null,null,null,null,null,null,null,null,null,null,"","","","","","",""]
[null,null,null,null,null,null,null,null,null,null,null,null,null,null,null,null,"","","","","","",""]
[null,null,null,null,null,null,null,null,null,null,null,null,null,null,null,null,"","","","","","",""]
[null,null,null,null,null,null,null,null,null,null,null,null,null,null,null,null,"","","","","","",""]
[null,null,null,null,null,null,null,null,null,null,null,null,null,null,null,null,"","","","","","",""]
[null,null,null,null,null,null,null,null,null,null,null,null,null,null,null,null,"","","","","","",""]
[null,null,null,null,null,null,null,null,null,null,null,null,null,null,null,null,"","","","","","",""]
[null,null,null,null,null,null,null,null,null,null,null,null,null,null,null,null,"","","","","","",""]
[null,null,null,null,null,null,null,null,null,null,null,null,null,null,null,null,{"$f":"IF(ISBLANK($E135),\"\",INT((dref-$E135)/365.25))","v":""},"","","","","",""]
[null,null,null,null,null,null,null,null,null,null,null,null,null,null,null,null,"","","","","","",""]
[null,null,null,null,null,null,null,null,null,null,null,null,null,null,null,null,"","","","","","",""]
[null,null,null,null,null,null,null,null,null,null,null,null,null,null,null,null,"","","","","","",""]
[null,null,null,null,null,null,null,null,null,null,null,null,null,null,null,null,"","","","","","",""]
[null,null,null,null,null,null,null,null,null,null,null,null,null,null,null,null,"","","","","","",""]
[null,null,null,null,null,null,null,null,null,null,null,null,null,null,null,null,"","","","","","",""]
[null,null,null,null,null,null,null,null,null,null,null,null,null,null,null,null,"","","","","","",""]
[null,null,null,null,null,null,null,null,null,null,null,null,null,null,null,null,"",{"$f":"IF(ISBLANK($F143),\"\",INT((dref-$F143)/365.25))","v":""},{"$f":"IF(ISNUMBER(Q143),INT(Q143/10)*10&\"-\"&(INT(Q143/10)+1)*10-1,\"\")","v":""},{"$f":"IF(ISNUMBER(Q143),INT(Q143/5)*5&\"-\"&INT(Q143/5)*5+4,\"\")","v":""},"","",""]
[null,null,null,null,null,null,null,null,null,null,null,null,null,null,null,null,"","","","",{"$f":"IF(R144=\"\",\"\",IF(R144=0,\"1:-1an\",IF(R144<=2,\"2:1-2\",IF(R144<=5,\"3:3-5\",IF(R144<=11,\"4:6-11\",IF(R144>11,\"5:+11\"))))))","v":""},{"$f":"IF(J144=\"\",\"\",IF(J144=0,\"1:0\",IF(J144<=5,\"2:1-5\",IF(J144<=25,\"3:6-25\",\"4:+25\"))))","v":""},{"$f":"IF(K144=\"\",\"\",IF(K144=0,\"1:0\",IF(K144<=5,\"2:1-5\",IF(K144<=25,\"3:6-25\",\"4:+25\"))))","v":""}]
[null,null,null,null,null,null,null,null,null,null,null,null,null,null,null,null,"","","","","","",""]
[null,null,null,null,null,null,null,null,null,null,null,null,null,null,null,null,"","","","","","",""]
[null,null,null,null,null,null,null,null,null,null,null,null,null,null,null,null,"","","","","","",""]
[null,null,null,null,null,null,null,null,null,null,null,null,null,null,null,null,"","","","","","",""]
[null,null,null,null,null,null,null,null,null,null,null,null,null,null,null,null,"","","","","","",""]
[null,null,null,null,null,null,null,null,null,null,null,null,null,null,null,null,"","","","","","",""]
[null,null,null,null,null,null,null,null,null,null,null,null,null,null,null,null,"","","","","","",""]
[null,null,null,null,null,null,null,null,null,null,null,null,null,null,null,null,"","","","","","",""]
[null,null,null,null,null,null,null,null,null,null,null,null,null,null,null,null,"","","","","","",""]
[null,null,null,null,null,null,null,null,null,null,null,null,null,null,null,null,"","","","","","",""]
[null,null,null,null,null,null,null,null,null,null,null,null,null,null,null,null,"","","","","","",""]
[null,null,null,null,null,null,null,null,null,null,null,null,null,null,null,null,"","","","","","",""]
[null,null,null,null,null,null,null,null,null,null,null,null,null,null,null,null,"","","","","","",""]
[null,null,null,null,null,null,null,null,null,null,null,null,null,null,null,null,"","","","","","",""]
[null,null,null,null,null,null,null,null,null,null,null,null,null,null,null,null,"","","","","","",""]
[null,null,null,null,null,null,null,null,null,null,null,null,null,null,null,null,"","","","","","",""]
[null,null,null,null,null,null,null,null,null,null,null,null,null,null,null,null,"","","","","","",""]
[null,null,null,null,null,null,null,null,null,null,null,null,null,null,null,null,"","","","","","",""]
[null,null,null,null,null,null,null,null,null,null,null,null,null,null,null,null,"","","","","","",""]
[null,null,null,null,null,null,null,null,null,null,null,null,null,null,null,null,"","","","","","",""]
[null,null,null,null,null,null,null,null,null,null,null,null,null,null,null,null,"","","","","","",""]
[null,null,null,null,null,null,null,null,null,null,null,null,null,null,null,null,"","","","","","",""]
[null,null,null,null,null,null,null,null,null,null,null,null,null,null,null,null,"","","","","","",""]
[null,null,null,null,null,null,null,null,null,null,null,null,null,null,null,null,"","","","","","",""]
[null,null,null,null,null,null,null,null,null,null,null,null,null,null,null,null,"","","","","","",""]
[null,null,null,null,null,null,null,null,null,null,null,null,null,null,null,null,"","","","","","",""]
[null,null,null,null,null,null,null,null,null,null,null,null,null,null,null,null,"","","","","","",""]
[null,null,null,null,null,null,null,null,null,null,null,null,null,null,null,null,"","","","","","",""]
[null,null,null,null,null,null,null,null,null,null,null,null,null,null,null,null,"","","","","","",""]
[null,null,null,null,null,null,null,null,null,null,null,null,null,null,null,null,"","","","","","",""]
[null,null,null,null,null,null,null,null,null,null,null,null,null,null,null,null,"","","","","","",""]
[null,null,null,null,null,null,null,null,null,null,null,null,null,null,null,null,"","","","","","",""]
[null,null,null,null,null,null,null,null,null,null,null,null,null,null,null,null,"","","","","","",""]
[null,null,null,null,null,null,null,null,null,null,null,null,null,null,null,null,"","","","","","",""]
[null,null,null,null,null,null,null,null,null,null,null,null,null,null,null,null,"","","","","","",""]
[null,null,null,null,null,null,null,null,null,null,null,null,null,null,null,null,"","","","","","",""]
[null,null,null,null,null,null,null,null,null,null,null,null,null,null,null,null,"","","","","","",""]
[null,null,null,null,null,null,null,null,null,null,null,null,null,null,null,null,"","","","","","",""]
[null,null,null,null,null,null,null,null,null,null,null,null,null,null,null,null,"","","","","","",""]
[null,null,null,null,null,null,null,null,null,null,null,null,null,null,null,null,"","","","","","",""]
[null,null,null,null,null,null,null,null,null,null,null,null,null,null,null,null,"","","","","","",""]
[null,null,null,null,null,null,null,null,null,null,null,null,null,null,null,null,"","","","","","",""]
[null,null,null,null,null,null,null,null,null,null,null,null,null,null,null,null,"","","","","","",""]
[null,null,null,null,null,null,null,null,null,null,null,null,null,null,null,null,"","","","","","",""]
[null,null,null,null,null,null,null,null,null,null,null,null,null,null,null,null,"","","","","","",""]
[null,null,null,null,null,null,null,null,null,null,null,null,null,null,null,null,"","","","","","",""]
[null,null,null,null,null,null,null,null,null,null,null,null,null,null,null,null,"","","","","","",""]
[null,null,null,null,null,null,null,null,null,null,null,null,null,null,null,null,"","","","","","",""]
[null,null,null,null,null,null,null,null,null,null,null,null,null,null,null,null,"","","","","","",""]
[null,null,null,null,null,null,null,null,null,null,null,null,null,null,null,null,"","","","","","",""]
[null,null,null,null,null,null,null,null,null,null,null,null,null,null,null,null,"","","","","","",""]
[null,null,null,null,null,null,null,null,null,null,null,null,null,null,null,null,"","","","","","",""]
[null,null,null,null,null,null,null,null,null,null,null,null,null,null,null,null,"","","","","","",""]
[null,null,null,null,null,null,null,null,null,null,null,null,null,null,null,null,"","","","","","",""]
[null,null,null,null,null,null,null,null,null,null,null,null,null,null,null,null,{"$f":"IF(ISBLANK($E199),\"\",INT((dref-$E199)/365.25))","v":""},"","","","","",""]
[null,null,null,null,null,null,null,null,null,null,null,null,null,null,null,null,"","","","","","",""]
[null,null,null,null,null,null,null,null,null,null,null,null,null,null,null,null,"","","","","","",""]
[null,null,null,null,null,null,null,null,null,null,null,null,null,null,null,null,"","","","","","",""]
[null,null,null,null,null,null,null,null,null,null,null,null,null,null,null,null,"","","","","","",""]
[null,null,null,null,null,null,null,null,null,null,null,null,null,null,null,null,"","","","","","",""]
[null,null,null,null,null,null,null,null,null,null,null,null,null,null,null,null,"","","","","","",""]
[null,null,null,null,null,null,null,null,null,null,null,null,null,null,null,null,"","","","","","",""]
[null,null,null,null,null,null,null,null,null,null,null,null,null,null,null,null,"",{"$f":"IF(ISBLANK($F207),\"\",INT((dref-$F207)/365.25))","v":""},{"$f":"IF(ISNUMBER(Q207),INT(Q207/10)*10&\"-\"&(INT(Q207/10)+1)*10-1,\"\")","v":""},{"$f":"IF(ISNUMBER(Q207),INT(Q207/5)*5&\"-\"&INT(Q207/5)*5+4,\"\")","v":""},"","",""]
[null,null,null,null,null,null,null,null,null,null,null,null,null,null,null,null,"","","","",{"$f":"IF(R208=\"\",\"\",IF(R208=0,\"1:-1an\",IF(R208<=2,\"2:1-2\",IF(R208<=5,\"3:3-5\",IF(R208<=11,\"4:6-11\",IF(R208>11,\"5:+11\"))))))","v":""},{"$f":"IF(J208=\"\",\"\",IF(J208=0,\"1:0\",IF(J208<=5,\"2:1-5\",IF(J208<=25,\"3:6-25\",\"4:+25\"))))","v":""},{"$f":"IF(K208=\"\",\"\",IF(K208=0,\"1:0\",IF(K208<=5,\"2:1-5\",IF(K208<=25,\"3:6-25\",\"4:+25\"))))","v":""}]
[null,null,null,null,null,null,null,null,null,null,null,null,null,null,null,null,"","","","","","",""]
[null,null,null,null,null,null,null,null,null,null,null,null,null,null,null,null,"","","","","","",""]
[null,null,null,null,null,null,null,null,null,null,null,null,null,null,null,null,"","","","","","",""]
[null,null,null,null,null,null,null,null,null,null,null,null,null,null,null,null,"","","","","","",""]
[null,null,null,null,null,null,null,null,null,null,null,null,null,null,null,null,"","","","","","",""]
[null,null,null,null,null,null,null,null,null,null,null,null,null,null,null,null,"","","","","","",""]
[null,null,null,null,null,null,null,null,null,null,null,null,null,null,null,null,"","","","","","",""]
[null,null,null,null,null,null,null,null,null,null,null,null,null,null,null,null,"","","","","","",""]
[null,null,null,null,null,null,null,null,null,null,null,null,null,null,null,null,"","","","","","",""]
[null,null,null,null,null,null,null,null,null,null,null,null,null,null,null,null,"","","","","","",""]
[null,null,null,null,null,null,null,null,null,null,null,null,null,null,null,null,"","","","","","",""]
[null,null,null,null,null,null,null,null,null,null,null,null,null,null,null,null,"","","","","","",""]
[null,null,null,null,null,null,null,null,null,null,null,null,null,null,null,null,"","","","","","",""]
[null,null,null,null,null,null,null,null,null,null,null,null,null,null,null,null,"","","","","","",""]
[null,null,null,null,null,null,null,null,null,null,null,null,null,null,null,null,"","","","","","",""]
[null,null,null,null,null,null,null,null,null,null,null,null,null,null,null,null,"","","","","","",""]
[null,null,null,null,null,null,null,null,null,null,null,null,null,null,null,null,"","","","","","",""]
[null,null,null,null,null,null,null,null,null,null,null,null,null,null,null,null,"","","","","","",""]
[null,null,null,null,null,null,null,null,null,null,null,null,null,null,null,null,"","","","","","",""]
[null,null,null,null,null,null,null,null,null,null,null,null,null,null,null,null,"","","","","","",""]
[null,null,null,null,null,null,null,null,null,null,null,null,null,null,null,null,"","","","","","",""]
[null,null,null,null,null,null,null,null,null,null,null,null,null,null,null,null,"","","","","","",""]
[null,null,null,null,null,null,null,null,null,null,null,null,null,null,null,null,"","","","","","",""]
[null,null,null,null,null,null,null,null,null,null,null,null,null,null,null,null,"","","","","","",""]
[null,null,null,null,null,null,null,null,null,null,null,null,null,null,null,null,"","","","","","",""]
[null,null,null,null,null,null,null,null,null,null,null,null,null,null,null,null,"","","","","","",""]
[null,null,null,null,null,null,null,null,null,null,null,null,null,null,null,null,"","","","","","",""]
[null,null,null,null,null,null,null,null,null,null,null,null,null,null,null,null,"","","","","","",""]
[null,null,null,null,null,null,null,null,null,null,null,null,null,null,null,null,"","","","","","",""]
[null,null,null,null,null,null,null,null,null,null,null,null,null,null,null,null,"","","","","","",""]
[null,null,null,null,null,null,null,null,null,null,null,null,null,null,null,null,"","","","","","",""]
[null,null,null,null,null,null,null,null,null,null,null,null,null,null,null,null,"","","","","","",""]
[null,null,null,null,null,null,null,null,null,null,null,null,null,null,null,null,"","","","","","",""]
[null,null,null,null,null,null,null,null,null,null,null,null,null,null,null,null,"","","","","","",""]
[null,null,null,null,null,null,null,null,null,null,null,null,null,null,null,null,"","","","","","",""]
[null,null,null,null,null,null,null,null,null,null,null,null,null,null,null,null,"","","","","","",""]
[null,null,null,null,null,null,null,null,null,null,null,null,null,null,null,null,"","","","","","",""]
[null,null,null,null,null,null,null,null,null,null,null,null,null,null,null,null,"","","","","","",""]
[null,null,null,null,null,null,null,null,null,null,null,null,null,null,null,null,"","","","","","",""]
[null,null,null,null,null,null,null,null,null,null,null,null,null,null,null,null,"","","","","","",""]
[null,null,null,null,null,null,null,null,null,null,null,null,null,null,null,null,"","","","","","",""]
[null,null,null,null,null,null,null,null,null,null,null,null,null,null,null,null,"","","","","","",""]
[null,null,null,null,null,null,null,null,null,null,null,null,null,null,null,null,"","","","","","",""]
[null,null,null,null,null,null,null,null,null,null,null,null,null,null,null,null,"","","","","","",""]
[null,null,null,null,null,null,null,null,null,null,null,null,null,null,null,null,"","","","","","",""]
[null,null,null,null,null,null,null,null,null,null,null,null,null,null,null,null,"","","","","","",""]
[null,null,null,null,null,null,null,null,null,null,null,null,null,null,null,null,"","","","","","",""]
[null,null,null,null,null,null,null,null,null,null,null,null,null,null,null,null,"","","","","","",""]
[null,null,null,null,null,null,null,null,null,null,null,null,null,null,null,null,"","","","","","",""]
[null,null,null,null,null,null,null,null,null,null,null,null,null,null,null,null,"","","","","","",""]
[null,null,null,null,null,null,null,null,null,null,null,null,null,null,null,null,"","","","","","",""]
[null,null,null,null,null,null,null,null,null,null,null,null,null,null,null,null,"","","","","","",""]
[null,null,null,null,null,null,null,null,null,null,null,null,null,null,null,null,"","","","","","",""]
[null,null,null,null,null,null,null,null,null,null,null,null,null,null,null,null,"","","","","","",""]
[null,null,null,null,null,null,null,null,null,null,null,null,null,null,null,null,{"$f":"IF(ISBLANK($E263),\"\",INT((dref-$E263)/365.25))","v":""},"","","","","",""]
[null,null,null,null,null,null,null,null,null,null,null,null,null,null,null,null,"","","","","","",""]
[null,null,null,null,null,null,null,null,null,null,null,null,null,null,null,null,"","","","","","",""]
[null,null,null,null,null,null,null,null,null,null,null,null,null,null,null,null,"","","","","","",""]
[null,null,null,null,null,null,null,null,null,null,null,null,null,null,null,null,"","","","","","",""]
[null,null,null,null,null,null,null,null,null,null,null,null,null,null,null,null,"","","","","","",""]
[null,null,null,null,null,null,null,null,null,null,null,null,null,null,null,null,"","","","","","",""]
[null,null,null,null,null,null,null,null,null,null,null,null,null,null,null,null,"","","","","","",""]
[null,null,null,null,null,null,null,null,null,null,null,null,null,null,null,null,"",{"$f":"IF(ISBLANK($F271),\"\",INT((dref-$F271)/365.25))","v":""},{"$f":"IF(ISNUMBER(Q271),INT(Q271/10)*10&\"-\"&(INT(Q271/10)+1)*10-1,\"\")","v":""},{"$f":"IF(ISNUMBER(Q271),INT(Q271/5)*5&\"-\"&INT(Q271/5)*5+4,\"\")","v":""},"","",""]
[null,null,null,null,null,null,null,null,null,null,null,null,null,null,null,null,"","","","",{"$f":"IF(R272=\"\",\"\",IF(R272=0,\"1:-1an\",IF(R272<=2,\"2:1-2\",IF(R272<=5,\"3:3-5\",IF(R272<=11,\"4:6-11\",IF(R272>11,\"5:+11\"))))))","v":""},{"$f":"IF(J272=\"\",\"\",IF(J272=0,\"1:0\",IF(J272<=5,\"2:1-5\",IF(J272<=25,\"3:6-25\",\"4:+25\"))))","v":""},{"$f":"IF(K272=\"\",\"\",IF(K272=0,\"1:0\",IF(K272<=5,\"2:1-5\",IF(K272<=25,\"3:6-25\",\"4:+25\"))))","v":""}]
[null,null,null,null,null,null,null,null,null,null,null,null,null,null,null,null,"","","","","","",""]
[null,null,null,null,null,null,null,null,null,null,null,null,null,null,null,null,"","","","","","",""]
[null,null,null,null,null,null,null,null,null,null,null,null,null,null,null,null,"","","","","","",""]
[null,null,null,null,null,null,null,null,null,null,null,null,null,null,null,null,"","","","","","",""]
[null,null,null,null,null,null,null,null,null,null,null,null,null,null,null,null,"","","","","","",""]
[null,null,null,null,null,null,null,null,null,null,null,null,null,null,null,null,"","","","","","",""]
[null,null,null,null,null,null,null,null,null,null,null,null,null,null,null,null,"","","","","","",""]
[null,null,null,null,null,null,null,null,null,null,null,null,null,null,null,null,"","","","","","",""]
[null,null,null,null,null,null,null,null,null,null,null,null,null,null,null,null,"","","","","","",""]
[null,null,null,null,null,null,null,null,null,null,null,null,null,null,null,null,"","","","","","",""]
[null,null,null,null,null,null,null,null,null,null,null,null,null,null,null,null,"","","","","","",""]
[null,null,null,null,null,null,null,null,null,null,null,null,null,null,null,null,"","","","","","",""]
[null,null,null,null,null,null,null,null,null,null,null,null,null,null,null,null,"","","","","","",""]
[null,null,null,null,null,null,null,null,null,null,null,null,null,null,null,null,"","","","","","",""]
[null,null,null,null,null,null,null,null,null,null,null,null,null,null,null,null,"","","","","","",""]
[null,null,null,null,null,null,null,null,null,null,null,null,null,null,null,null,"","","","","","",""]
[null,null,null,null,null,null,null,null,null,null,null,null,null,null,null,null,"","","","","","",""]
[null,null,null,null,null,null,null,null,null,null,null,null,null,null,null,null,"","","","","","",""]
[null,null,null,null,null,null,null,null,null,null,null,null,null,null,null,null,"","","","","","",""]
[null,null,null,null,null,null,null,null,null,null,null,null,null,null,null,null,"","","","","","",""]
[null,null,null,null,null,null,null,null,null,null,null,null,null,null,null,null,"","","","","","",""]
[null,null,null,null,null,null,null,null,null,null,null,null,null,null,null,null,"","","","","","",""]
[null,null,null,null,null,null,null,null,null,null,null,null,null,null,null,null,"","","","","","",""]
[null,null,null,null,null,null,null,null,null,null,null,null,null,null,null,null,"","","","","","",""]
[null,null,null,null,null,null,null,null,null,null,null,null,null,null,null,null,"","","","","","",""]
[null,null,null,null,null,null,null,null,null,null,null,null,null,null,null,null,"","","","","","",""]
[null,null,null,null,null,null,null,null,null,null,null,null,null,null,null,null,"","","","","","",""]
[null,null,null,null,null,null,null,null,null,null,null,null,null,null,null,null,"","","","","","",""]
[null,null,null,null,null,null,null,null,null,null,null,null,null,null,null,null,"","","","","","",""]
[null,null,null,null,null,null,null,null,null,null,null,null,null,null,null,null,"","","","","","",""]
[null,null,null,null,null,null,null,null,null,null,null,null,null,null,null,null,"","","","","","",""]
[null,null,null,null,null,null,null,null,null,null,null,null,null,null,null,null,"","","","","","",""]
[null,null,null,null,null,null,null,null,null,null,null,null,null,null,null,null,"","","","","","",""]
[null,null,null,null,null,null,null,null,null,null,null,null,null,null,null,null,"","","","","","",""]
[null,null,null,null,null,null,null,null,null,null,null,null,null,null,null,null,"","","","","","",""]
[null,null,null,null,null,null,null,null,null,null,null,null,null,null,null,null,"","","","","","",""]
[null,null,null,null,null,null,null,null,null,null,null,null,null,null,null,null,"","","","","","",""]
[null,null,null,null,null,null,null,null,null,null,null,null,null,null,null,null,"","","","","","",""]
[null,null,null,null,null,null,null,null,null,null,null,null,null,null,null,null,"","","","","","",""]
[null,null,null,null,null,null,null,null,null,null,null,null,null,null,null,null,"","","","","","",""]
[null,null,null,null,null,null,null,null,null,null,null,null,null,null,null,null,"","","","","","",""]
[null,null,null,null,null,null,null,null,null,null,null,null,null,null,null,null,"","","","","","",""]
[null,null,null,null,null,null,null,null,null,null,null,null,null,null,null,null,"","","","","","",""]
[null,null,null,null,null,null,null,null,null,null,null,null,null,null,null,null,"","","","","","",""]
[null,null,null,null,null,null,null,null,null,null,null,null,null,null,null,null,"","","","","","",""]
[null,null,null,null,null,null,null,null,null,null,null,null,null,null,null,null,"","","","","","",""]
[null,null,null,null,null,null,null,null,null,null,null,null,null,null,null,null,"","","","","","",""]
[null,null,null,null,null,null,null,null,null,null,null,null,null,null,null,null,"","","","","","",""]
[null,null,null,null,null,null,null,null,null,null,null,null,null,null,null,null,"","","","","","",""]
[null,null,null,null,null,null,null,null,null,null,null,null,null,null,null,null,"","","","","","",""]
[null,null,null,null,null,null,null,null,null,null,null,null,null,null,null,null,"","","","","","",""]
[null,null,null,null,null,null,null,null,null,null,null,null,null,null,null,null,"","","","","","",""]
[null,null,null,null,null,null,null,null,null,null,null,null,null,null,null,null,"","","","","","",""]
[null,null,null,null,null,null,null,null,null,null,null,null,null,null,null,null,"","","","","","",""]
[null,null,null,null,null,null,null,null,null,null,null,null,null,null,null,null,{"$f":"IF(ISBLANK($E327),\"\",INT((dref-$E327)/365.25))","v":""},"","","","","",""]
[null,null,null,null,null,null,null,null,null,null,null,null,null,null,null,null,"","","","","","",""]
[null,null,null,null,null,null,null,null,null,null,null,null,null,null,null,null,"","","","","","",""]
[null,null,null,null,null,null,null,null,null,null,null,null,null,null,null,null,"","","","","","",""]
[null,null,null,null,null,null,null,null,null,null,null,null,null,null,null,null,"","","","","","",""]
[null,null,null,null,null,null,null,null,null,null,null,null,null,null,null,null,"","","","","","",""]
[null,null,null,null,null,null,null,null,null,null,null,null,null,null,null,null,"","","","","","",""]
[null,null,null,null,null,null,null,null,null,null,null,null,null,null,null,null,"","","","","","",""]
[null,null,null,null,null,null,null,null,null,null,null,null,null,null,null,null,"",{"$f":"IF(ISBLANK($F335),\"\",INT((dref-$F335)/365.25))","v":""},{"$f":"IF(ISNUMBER(Q335),INT(Q335/10)*10&\"-\"&(INT(Q335/10)+1)*10-1,\"\")","v":""},{"$f":"IF(ISNUMBER(Q335),INT(Q335/5)*5&\"-\"&INT(Q335/5)*5+4,\"\")","v":""},"","",""]
[null,null,null,null,null,null,null,null,null,null,null,null,null,null,null,null,"","","","",{"$f":"IF(R336=\"\",\"\",IF(R336=0,\"1:-1an\",IF(R336<=2,\"2:1-2\",IF(R336<=5,\"3:3-5\",IF(R336<=11,\"4:6-11\",IF(R336>11,\"5:+11\"))))))","v":""},{"$f":"IF(J336=\"\",\"\",IF(J336=0,\"1:0\",IF(J336<=5,\"2:1-5\",IF(J336<=25,\"3:6-25\",\"4:+25\"))))","v":""},{"$f":"IF(K336=\"\",\"\",IF(K336=0,\"1:0\",IF(K336<=5,\"2:1-5\",IF(K336<=25,\"3:6-25\",\"4:+25\"))))","v":""}]
[null,null,null,null,null,null,null,null,null,null,null,null,null,null,null,null,"","","","","","",""]
[null,null,null,null,null,null,null,null,null,null,null,null,null,null,null,null,"","","","","","",""]
[null,null,null,null,null,null,null,null,null,null,null,null,null,null,null,null,"","","","","","",""]
[null,null,null,null,null,null,null,null,null,null,null,null,null,null,null,null,"","","","","","",""]
[null,null,null,null,null,null,null,null,null,null,null,null,null,null,null,null,"","","","","","",""]
[null,null,null,null,null,null,null,null,null,null,null,null,null,null,null,null,"","","","","","",""]
[null,null,null,null,null,null,null,null,null,null,null,null,null,null,null,null,"","","","","","",""]
[null,null,null,null,null,null,null,null,null,null,null,null,null,null,null,null,"","","","","","",""]
[null,null,null,null,null,null,null,null,null,null,null,null,null,null,null,null,"","","","","","",""]
[null,null,null,null,null,null,null,null,null,null,null,null,null,null,null,null,"","","","","","",""]
[null,null,null,null,null,null,null,null,null,null,null,null,null,null,null,null,"","","","","","",""]
[null,null,null,null,null,null,null,null,null,null,null,null,null,null,null,null,"","","","","","",""]
[null,null,null,null,null,null,null,null,null,null,null,null,null,null,null,null,"","","","","","",""]
[null,null,null,null,null,null,null,null,null,null,null,null,null,null,null,null,"","","","","","",""]
[null,null,null,null,null,null,null,null,null,null,null,null,null,null,null,null,"","","","","","",""]
[null,null,null,null,null,null,null,null,null,null,null,null,null,null,null,null,"","","","","","",""]
[null,null,null,null,null,null,null,null,null,null,null,null,null,null,null,null,"","","","","","",""]
[null,null,null,null,null,null,null,null,null,null,null,null,null,null,null,null,"","","","","","",""]
[null,null,null,null,null,null,null,null,null,null,null,null,null,null,null,null,"","","","","","",""]
[null,null,null,null,null,null,null,null,null,null,null,null,null,null,null,null,"","","","","","",""]
[null,null,null,null,null,null,null,null,null,null,null,null,null,null,null,null,"","","","","","",""]
[null,null,null,null,null,null,null,null,null,null,null,null,null,null,null,null,"","","","","","",""]
[null,null,null,null,null,null,null,null,null,null,null,null,null,null,null,null,"","","","","","",""]
[null,null,null,null,null,null,null,null,null,null,null,null,null,null,null,null,"","","","","","",""]
[null,null,null,null,null,null,null,null,null,null,null,null,null,null,null,null,"","","","","","",""]
[null,null,null,null,null,null,null,null,null,null,null,null,null,null,null,null,"","","","","","",""]
[null,null,null,null,null,null,null,null,null,null,null,null,null,null,null,null,"","","","","","",""]
[null,null,null,null,null,null,null,null,null,null,null,null,null,null,null,null,"","","","","","",""]
[null,null,null,null,null,null,null,null,null,null,null,null,null,null,null,null,"","","","","","",""]
[null,null,null,null,null,null,null,null,null,null,null,null,null,null,null,null,"","","","","","",""]
[null,null,null,null,null,null,null,null,null,null,null,null,null,null,null,null,"","","","","","",""]
[null,null,null,null,null,null,null,null,null,null,null,null,null,null,null,null,"","","","","","",""]
[null,null,null,null,null,null,null,null,null,null,null,null,null,null,null,null,"","","","","","",""]
[null,null,null,null,null,null,null,null,null,null,null,null,null,null,null,null,"","","","","","",""]
[null,null,null,null,null,null,null,null,null,null,null,null,null,null,null,null,"","","","","","",""]
[null,null,null,null,null,null,null,null,null,null,null,null,null,null,null,null,"","","","","","",""]
[null,null,null,null,null,null,null,null,null,null,null,null,null,null,null,null,"","","","","","",""]
[null,null,null,null,null,null,null,null,null,null,null,null,null,null,null,null,"","","","","","",""]
[null,null,null,null,null,null,null,null,null,null,null,null,null,null,null,null,"","","","","","",""]
[null,null,null,null,null,null,null,null,null,null,null,null,null,null,null,null,"","","","","","",""]
[null,null,null,null,null,null,null,null,null,null,null,null,null,null,null,null,"","","","","","",""]
[null,null,null,null,null,null,null,null,null,null,null,null,null,null,null,null,"","","","","","",""]
[null,null,null,null,null,null,null,null,null,null,null,null,null,null,null,null,"","","","","","",""]
[null,null,null,null,null,null,null,null,null,null,null,null,null,null,null,null,"","","","","","",""]
[null,null,null,null,null,null,null,null,null,null,null,null,null,null,null,null,"","","","","","",""]
[null,null,null,null,null,null,null,null,null,null,null,null,null,null,null,null,"","","","","","",""]
[null,null,null,null,null,null,null,null,null,null,null,null,null,null,null,null,"","","","","","",""]
[null,null,null,null,null,null,null,null,null,null,null,null,null,null,null,null,"","","","","","",""]
[null,null,null,null,null,null,null,null,null,null,null,null,null,null,null,null,"","","","","","",""]
[null,null,null,null,null,null,null,null,null,null,null,null,null,null,null,null,"","","","","","",""]
[null,null,null,null,null,null,null,null,null,null,null,null,null,null,null,null,"","","","","","",""]
[null,null,null,null,null,null,null,null,null,null,null,null,null,null,null,null,"","","","","","",""]
[null,null,null,null,null,null,null,null,null,null,null,null,null,null,null,null,"","","","","","",""]
[null,null,null,null,null,null,null,null,null,null,null,null,null,null,null,null,"","","","","","",""]
[null,null,null,null,null,null,null,null,null,null,null,null,null,null,null,null,{"$f":"IF(ISBLANK($E391),\"\",INT((dref-$E391)/365.25))","v":""},"","","","","",""]
[null,null,null,null,null,null,null,null,null,null,null,null,null,null,null,null,"","","","","","",""]
[null,null,null,null,null,null,null,null,null,null,null,null,null,null,null,null,"","","","","","",""]
[null,null,null,null,null,null,null,null,null,null,null,null,null,null,null,null,"","","","","","",""]
[null,null,null,null,null,null,null,null,null,null,null,null,null,null,null,null,"","","","","","",""]
[null,null,null,null,null,null,null,null,null,null,null,null,null,null,null,null,"","","","","","",""]
[null,null,null,null,null,null,null,null,null,null,null,null,null,null,null,null,"","","","","","",""]
[null,null,null,null,null,null,null,null,null,null,null,null,null,null,null,null,"","","","","","",""]
[null,null,null,null,null,null,null,null,null,null,null,null,null,null,null,null,"",{"$f":"IF(ISBLANK($F399),\"\",INT((dref-$F399)/365.25))","v":""},{"$f":"IF(ISNUMBER(Q399),INT(Q399/10)*10&\"-\"&(INT(Q399/10)+1)*10-1,\"\")","v":""},{"$f":"IF(ISNUMBER(Q399),INT(Q399/5)*5&\"-\"&INT(Q399/5)*5+4,\"\")","v":""},"","",""]
[null,null,null,null,null,null,null,null,null,null,null,null,null,null,null,null,"","","","",{"$f":"IF(R400=\"\",\"\",IF(R400=0,\"1:-1an\",IF(R400<=2,\"2:1-2\",IF(R400<=5,\"3:3-5\",IF(R400<=11,\"4:6-11\",IF(R400>11,\"5:+11\"))))))","v":""},{"$f":"IF(J400=\"\",\"\",IF(J400=0,\"1:0\",IF(J400<=5,\"2:1-5\",IF(J400<=25,\"3:6-25\",\"4:+25\"))))","v":""},{"$f":"IF(K400=\"\",\"\",IF(K400=0,\"1:0\",IF(K400<=5,\"2:1-5\",IF(K400<=25,\"3:6-25\",\"4:+25\"))))","v":""}]
[null,null,null,null,null,null,null,null,null,null,null,null,null,null,null,null,"","","","","","",""]
[null,null,null,null,null,null,null,null,null,null,null,null,null,null,null,null,"","","","","","",""]
[null,null,null,null,null,null,null,null,null,null,null,null,null,null,null,null,"","","","","","",""]
[null,null,null,null,null,null,null,null,null,null,null,null,null,null,null,null,"","","","","","",""]
[null,null,null,null,null,null,null,null,null,null,null,null,null,null,null,null,"","","","","","",""]
[null,null,null,null,null,null,null,null,null,null,null,null,null,null,null,null,"","","","","","",""]
[null,null,null,null,null,null,null,null,null,null,null,null,null,null,null,null,"","","","","","",""]
[null,null,null,null,null,null,null,null,null,null,null,null,null,null,null,null,"","","","","","",""]
[null,null,null,null,null,null,null,null,null,null,null,null,null,null,null,null,"","","","","","",""]
[null,null,null,null,null,null,null,null,null,null,null,null,null,null,null,null,"","","","","","",""]
[null,null,null,null,null,null,null,null,null,null,null,null,null,null,null,null,"","","","","","",""]
[null,null,null,null,null,null,null,null,null,null,null,null,null,null,null,null,"","","","","","",""]
[null,null,null,null,null,null,null,null,null,null,null,null,null,null,null,null,"","","","","","",""]
[null,null,null,null,null,null,null,null,null,null,null,null,null,null,null,null,"","","","","","",""]
[null,null,null,null,null,null,null,null,null,null,null,null,null,null,null,null,"","","","","","",""]
[null,null,null,null,null,null,null,null,null,null,null,null,null,null,null,null,"","","","","","",""]
[null,null,null,null,null,null,null,null,null,null,null,null,null,null,null,null,"","","","","","",""]
[null,null,null,null,null,null,null,null,null,null,null,null,null,null,null,null,"","","","","","",""]
[null,null,null,null,null,null,null,null,null,null,null,null,null,null,null,null,"","","","","","",""]
[null,null,null,null,null,null,null,null,null,null,null,null,null,null,null,null,"","","","","","",""]
[null,null,null,null,null,null,null,null,null,null,null,null,null,null,null,null,"","","","","","",""]
[null,null,null,null,null,null,null,null,null,null,null,null,null,null,null,null,"","","","","","",""]
[null,null,null,null,null,null,null,null,null,null,null,null,null,null,null,null,"","","","","","",""]
[null,null,null,null,null,null,null,null,null,null,null,null,null,null,null,null,"","","","","","",""]
[null,null,null,null,null,null,null,null,null,null,null,null,null,null,null,null,"","","","","","",""]
[null,null,null,null,null,null,null,null,null,null,null,null,null,null,null,null,"","","","","","",""]
[null,null,null,null,null,null,null,null,null,null,null,null,null,null,null,null,"","","","","","",""]
[null,null,null,null,null,null,null,null,null,null,null,null,null,null,null,null,"","","","","","",""]
[null,null,null,null,null,null,null,null,null,null,null,null,null,null,null,null,"","","","","","",""]
[null,null,null,null,null,null,null,null,null,null,null,null,null,null,null,null,"","","","","","",""]
[null,null,null,null,null,null,null,null,null,null,null,null,null,null,null,null,"","","","","","",""]
[null,null,null,null,null,null,null,null,null,null,null,null,null,null,null,null,"","","","","","",""]
[null,null,null,null,null,null,null,null,null,null,null,null,null,null,null,null,"","","","","","",""]
[null,null,null,null,null,null,null,null,null,null,null,null,null,null,null,null,"","","","","","",""]
[null,null,null,null,null,null,null,null,null,null,null,null,null,null,null,null,"","","","","","",""]
[null,null,null,null,null,null,null,null,null,null,null,null,null,null,null,null,"","","","","","",""]
[null,null,null,null,null,null,null,null,null,null,null,null,null,null,null,null,"","","","","","",""]
[null,null,null,null,null,null,null,null,null,null,null,null,null,null,null,null,"","","","","","",""]
[null,null,null,null,null,null,null,null,null,null,null,null,null,null,null,null,"","","","","","",""]
[null,null,null,null,null,null,null,null,null,null,null,null,null,null,null,null,"","","","","","",""]
[null,null,null,null,null,null,null,null,null,null,null,null,null,null,null,null,"","","","","","",""]
[null,null,null,null,null,null,null,null,null,null,null,null,null,null,null,null,"","","","","","",""]
[null,null,null,null,null,null,null,null,null,null,null,null,null,null,null,null,"","","","","","",""]
[null,null,null,null,null,null,null,null,null,null,null,null,null,null,null,null,"","","","","","",""]
[null,null,null,null,null,null,null,null,null,null,null,null,null,null,null,null,"","","","","","",""]
[null,null,null,null,null,null,null,null,null,null,null,null,null,null,null,null,"","","","","","",""]
[null,null,null,null,null,null,null,null,null,null,null,null,null,null,null,null,"","","","","","",""]
[null,null,null,null,null,null,null,null,null,null,null,null,null,null,null,null,"","","","","","",""]
[null,null,null,null,null,null,null,null,null,null,null,null,null,null,null,null,"","","","","","",""]
[null,null,null,null,null,null,null,null,null,null,null,null,null,null,null,null,"","","","","","",""]
[null,null,null,null,null,null,null,null,null,null,null,null,null,null,null,null,"","","","","","",""]
[null,null,null,null,null,null,null,null,null,null,null,null,null,null,null,null,"","","","","","",""]
[null,null,null,null,null,null,null,null,null,null,null,null,null,null,null,null,"","","","","","",""]
[null,null,null,null,null,null,null,null,null,null,null,null,null,null,null,null,"","","","","","",""]
[null,null,null,null,null,null,null,null,null,null,null,null,null,null,null,null,{"$f":"IF(ISBLANK($E455),\"\",INT((dref-$E455)/365.25))","v":""},"","","","","",""]
[null,null,null,null,null,null,null,null,null,null,null,null,null,null,null,null,"","","","","","",""]
[null,null,null,null,null,null,null,null,null,null,null,null,null,null,null,null,"","","","","","",""]
[null,null,null,null,null,null,null,null,null,null,null,null,null,null,null,null,"","","","","","",""]
[null,null,null,null,null,null,null,null,null,null,null,null,null,null,null,null,"","","","","","",""]
[null,null,null,null,null,null,null,null,null,null,null,null,null,null,null,null,"","","","","","",""]
[null,null,null,null,null,null,null,null,null,null,null,null,null,null,null,null,"","","","","","",""]
[null,null,null,null,null,null,null,null,null,null,null,null,null,null,null,null,"","","","","","",""]
[null,null,null,null,null,null,null,null,null,null,null,null,null,null,null,null,"",{"$f":"IF(ISBLANK($F463),\"\",INT((dref-$F463)/365.25))","v":""},{"$f":"IF(ISNUMBER(Q463),INT(Q463/10)*10&\"-\"&(INT(Q463/10)+1)*10-1,\"\")","v":""},{"$f":"IF(ISNUMBER(Q463),INT(Q463/5)*5&\"-\"&INT(Q463/5)*5+4,\"\")","v":""},"","",""]
[null,null,null,null,null,null,null,null,null,null,null,null,null,null,null,null,"","","","",{"$f":"IF(R464=\"\",\"\",IF(R464=0,\"1:-1an\",IF(R464<=2,\"2:1-2\",IF(R464<=5,\"3:3-5\",IF(R464<=11,\"4:6-11\",IF(R464>11,\"5:+11\"))))))","v":""},{"$f":"IF(J464=\"\",\"\",IF(J464=0,\"1:0\",IF(J464<=5,\"2:1-5\",IF(J464<=25,\"3:6-25\",\"4:+25\"))))","v":""},{"$f":"IF(K464=\"\",\"\",IF(K464=0,\"1:0\",IF(K464<=5,\"2:1-5\",IF(K464<=25,\"3:6-25\",\"4:+25\"))))","v":""}]
[null,null,null,null,null,null,null,null,null,null,null,null,null,null,null,null,"","","","","","",""]
[null,null,null,null,null,null,null,null,null,null,null,null,null,null,null,null,"","","","","","",""]
[null,null,null,null,null,null,null,null,null,null,null,null,null,null,null,null,"","","","","","",""]
[null,null,null,null,null,null,null,null,null,null,null,null,null,null,null,null,"","","","","","",""]
[null,null,null,null,null,null,null,null,null,null,null,null,null,null,null,null,"","","","","","",""]
[null,null,null,null,null,null,null,null,null,null,null,null,null,null,null,null,"","","","","","",""]
[null,null,null,null,null,null,null,null,null,null,null,null,null,null,null,null,"","","","","","",""]
[null,null,null,null,null,null,null,null,null,null,null,null,null,null,null,null,"","","","","","",""]
[null,null,null,null,null,null,null,null,null,null,null,null,null,null,null,null,"","","","","","",""]
[null,null,null,null,null,null,null,null,null,null,null,null,null,null,null,null,"","","","","","",""]
[null,null,null,null,null,null,null,null,null,null,null,null,null,null,null,null,"","","","","","",""]
[null,null,null,null,null,null,null,null,null,null,null,null,null,null,null,null,"","","","","","",""]
[null,null,null,null,null,null,null,null,null,null,null,null,null,null,null,null,"","","","","","",""]
[null,null,null,null,null,null,null,null,null,null,null,null,null,null,null,null,"","","","","","",""]
[null,null,null,null,null,null,null,null,null,null,null,null,null,null,null,null,"","","","","","",""]
[null,null,null,null,null,null,null,null,null,null,null,null,null,null,null,null,"","","","","","",""]
[null,null,null,null,null,null,null,null,null,null,null,null,null,null,null,null,"","","","","","",""]
[null,null,null,null,null,null,null,null,null,null,null,null,null,null,null,null,"","","","","","",""]
[null,null,null,null,null,null,null,null,null,null,null,null,null,null,null,null,"","","","","","",""]
[null,null,null,null,null,null,null,null,null,null,null,null,null,null,null,null,"","","","","","",""]
[null,null,null,null,null,null,null,null,null,null,null,null,null,null,null,null,"","","","","","",""]
[null,null,null,null,null,null,null,null,null,null,null,null,null,null,null,null,"","","","","","",""]
[null,null,null,null,null,null,null,null,null,null,null,null,null,null,null,null,"","","","","","",""]
[null,null,null,null,null,null,null,null,null,null,null,null,null,null,null,null,"","","","","","",""]
[null,null,null,null,null,null,null,null,null,null,null,null,null,null,null,null,"","","","","","",""]
[null,null,null,null,null,null,null,null,null,null,null,null,null,null,null,null,"","","","","","",""]
[null,null,null,null,null,null,null,null,null,null,null,null,null,null,null,null,"","","","","","",""]
[null,null,null,null,null,null,null,null,null,null,null,null,null,null,null,null,"","","","","","",""]
[null,null,null,null,null,null,null,null,null,null,null,null,null,null,null,null,"","","","","","",""]
[null,null,null,null,null,null,null,null,null,null,null,null,null,null,null,null,"","","","","","",""]
[null,null,null,null,null,null,null,null,null,null,null,null,null,null,null,null,"","","","","","",""]
[null,null,null,null,null,null,null,null,null,null,null,null,null,null,null,null,"","","","","","",""]
[null,null,null,null,null,null,null,null,null,null,null,null,null,null,null,null,"","","","","","",""]
[null,null,null,null,null,null,null,null,null,null,null,null,null,null,null,null,"","","","","","",""]
[null,null,null,null,null,null,null,null,null,null,null,null,null,null,null,null,"","","","","","",""]
[null,null,null,null,null,null,null,null,null,null,null,null,null,null,null,null,"","","","","","",""]
[null,null,null,null,null,null,null,null,null,null,null,null,null,null,null,null,"","","","","","",""]
[null,null,null,null,null,null,null,null,null,null,null,null,null,null,null,null,"","","","","","",""]
[null,null,null,null,null,null,null,null,null,null,null,null,null,null,null,null,"","","","","","",""]
[null,null,null,null,null,null,null,null,null,null,null,null,null,null,null,null,"","","","","","",""]
[null,null,null,null,null,null,null,null,null,null,null,null,null,null,null,null,"","","","","","",""]
[null,null,null,null,null,null,null,null,null,null,null,null,null,null,null,null,"","","","","","",""]
[null,null,null,null,null,null,null,null,null,null,null,null,null,null,null,null,"","","","","","",""]
[null,null,null,null,null,null,null,null,null,null,null,null,null,null,null,null,"","","","","","",""]
[null,null,null,null,null,null,null,null,null,null,null,null,null,null,null,null,"","","","","","",""]
[null,null,null,null,null,null,null,null,null,null,null,null,null,null,null,null,"","","","","","",""]
[null,null,null,null,null,null,null,null,null,null,null,null,null,null,null,null,"","","","","","",""]
[null,null,null,null,null,null,null,null,null,null,null,null,null,null,null,null,"","","","","","",""]
[null,null,null,null,null,null,null,null,null,null,null,null,null,null,null,null,"","","","","","",""]
[null,null,null,null,null,null,null,null,null,null,null,null,null,null,null,null,"","","","","","",""]
[null,null,null,null,null,null,null,null,null,null,null,null,null,null,null,null,"","","","","","",""]
[null,null,null,null,null,null,null,null,null,null,null,null,null,null,null,null,"","","","","","",""]
[null,null,null,null,null,null,null,null,null,null,null,null,null,null,null,null,"","","","","","",""]
[null,null,null,null,null,null,null,null,null,null,null,null,null,null,null,null,"","","","","","",""]
[null,null,null,null,null,null,null,null,null,null,null,null,null,null,null,null,{"$f":"IF(ISBLANK($E519),\"\",INT((dref-$E519)/365.25))","v":""},"","","","","",""]
[null,null,null,null,null,null,null,null,null,null,null,null,null,null,null,null,"","","","","","",""]
[null,null,null,null,null,null,null,null,null,null,null,null,null,null,null,null,"","","","","","",""]
[null,null,null,null,null,null,null,null,null,null,null,null,null,null,null,null,"","","","","","",""]
[null,null,null,null,null,null,null,null,null,null,null,null,null,null,null,null,"","","","","","",""]
[null,null,null,null,null,null,null,null,null,null,null,null,null,null,null,null,"","","","","","",""]
[null,null,null,null,null,null,null,null,null,null,null,null,null,null,null,null,"","","","","","",""]
[null,null,null,null,null,null,null,null,null,null,null,null,null,null,null,null,"","","","","","",""]
[null,null,null,null,null,null,null,null,null,null,null,null,null,null,null,null,"",{"$f":"IF(ISBLANK($F527),\"\",INT((dref-$F527)/365.25))","v":""},{"$f":"IF(ISNUMBER(Q527),INT(Q527/10)*10&\"-\"&(INT(Q527/10)+1)*10-1,\"\")","v":""},{"$f":"IF(ISNUMBER(Q527),INT(Q527/5)*5&\"-\"&INT(Q527/5)*5+4,\"\")","v":""},"","",""]
[null,null,null,null,null,null,null,null,null,null,null,null,null,null,null,null,"","","","",{"$f":"IF(R528=\"\",\"\",IF(R528=0,\"1:-1an\",IF(R528<=2,\"2:1-2\",IF(R528<=5,\"3:3-5\",IF(R528<=11,\"4:6-11\",IF(R528>11,\"5:+11\"))))))","v":""},{"$f":"IF(J528=\"\",\"\",IF(J528=0,\"1:0\",IF(J528<=5,\"2:1-5\",IF(J528<=25,\"3:6-25\",\"4:+25\"))))","v":""},{"$f":"IF(K528=\"\",\"\",IF(K528=0,\"1:0\",IF(K528<=5,\"2:1-5\",IF(K528<=25,\"3:6-25\",\"4:+25\"))))","v":""}]
[null,null,null,null,null,null,null,null,null,null,null,null,null,null,null,null,"","","","","","",""]
[null,null,null,null,null,null,null,null,null,null,null,null,null,null,null,null,"","","","","","",""]
[null,null,null,null,null,null,null,null,null,null,null,null,null,null,null,null,"","","","","","",""]
[null,null,null,null,null,null,null,null,null,null,null,null,null,null,null,null,"","","","","","",""]
[null,null,null,null,null,null,null,null,null,null,null,null,null,null,null,null,"","","","","","",""]
[null,null,null,null,null,null,null,null,null,null,null,null,null,null,null,null,"","","","","","",""]
[null,null,null,null,null,null,null,null,null,null,null,null,null,null,null,null,"","","","","","",""]
[null,null,null,null,null,null,null,null,null,null,null,null,null,null,null,null,"","","","","","",""]
[null,null,null,null,null,null,null,null,null,null,null,null,null,null,null,null,"","","","","","",""]
[null,null,null,null,null,null,null,null,null,null,null,null,null,null,null,null,"","","","","","",""]
[null,null,null,null,null,null,null,null,null,null,null,null,null,null,null,null,"","","","","","",""]
[null,null,null,null,null,null,null,null,null,null,null,null,null,null,null,null,"","","","","","",""]
[null,null,null,null,null,null,null,null,null,null,null,null,null,null,null,null,"","","","","","",""]
[null,null,null,null,null,null,null,null,null,null,null,null,null,null,null,null,"","","","","","",""]
[null,null,null,null,null,null,null,null,null,null,null,null,null,null,null,null,"","","","","","",""]
[null,null,null,null,null,null,null,null,null,null,null,null,null,null,null,null,"","","","","","",""]
[null,null,null,null,null,null,null,null,null,null,null,null,null,null,null,null,"","","","","","",""]
[null,null,null,null,null,null,null,null,null,null,null,null,null,null,null,null,"","","","","","",""]
[null,null,null,null,null,null,null,null,null,null,null,null,null,null,null,null,"","","","","","",""]
[null,null,null,null,null,null,null,null,null,null,null,null,null,null,null,null,"","","","","","",""]
[null,null,null,null,null,null,null,null,null,null,null,null,null,null,null,null,"","","","","","",""]
[null,null,null,null,null,null,null,null,null,null,null,null,null,null,null,null,"","","","","","",""]
[null,null,null,null,null,null,null,null,null,null,null,null,null,null,null,null,"","","","","","",""]
[null,null,null,null,null,null,null,null,null,null,null,null,null,null,null,null,"","","","","","",""]
[null,null,null,null,null,null,null,null,null,null,null,null,null,null,null,null,"","","","","","",""]
[null,null,null,null,null,null,null,null,null,null,null,null,null,null,null,null,"","","","","","",""]
[null,null,null,null,null,null,null,null,null,null,null,null,null,null,null,null,"","","","","","",""]
[null,null,null,null,null,null,null,null,null,null,null,null,null,null,null,null,"","","","","","",""]
[null,null,null,null,null,null,null,null,null,null,null,null,null,null,null,null,"","","","","","",""]
[null,null,null,null,null,null,null,null,null,null,null,null,null,null,null,null,"","","","","","",""]
[null,null,null,null,null,null,null,null,null,null,null,null,null,null,null,null,"","","","","","",""]
[null,null,null,null,null,null,null,null,null,null,null,null,null,null,null,null,"","","","","","",""]
[null,null,null,null,null,null,null,null,null,null,null,null,null,null,null,null,"","","","","","",""]
[null,null,null,null,null,null,null,null,null,null,null,null,null,null,null,null,"","","","","","",""]
[null,null,null,null,null,null,null,null,null,null,null,null,null,null,null,null,"","","","","","",""]
[null,null,null,null,null,null,null,null,null,null,null,null,null,null,null,null,"","","","","","",""]
[null,null,null,null,null,null,null,null,null,null,null,null,null,null,null,null,"","","","","","",""]
[null,null,null,null,null,null,null,null,null,null,null,null,null,null,null,null,"","","","","","",""]
[null,null,null,null,null,null,null,null,null,null,null,null,null,null,null,null,"","","","","","",""]
[null,null,null,null,null,null,null,null,null,null,null,null,null,null,null,null,"","","","","","",""]
[null,null,null,null,null,null,null,null,null,null,null,null,null,null,null,null,"","","","","","",""]
[null,null,null,null,null,null,null,null,null,null,null,null,null,null,null,null,"","","","","","",""]
[null,null,null,null,null,null,null,null,null,null,null,null,null,null,null,null,"","","","","","",""]
[null,null,null,null,null,null,null,null,null,null,null,null,null,null,null,null,"","","","","","",""]
[null,null,null,null,null,null,null,null,null,null,null,null,null,null,null,null,"","","","","","",""]
[null,null,null,null,null,null,null,null,null,null,null,null,null,null,null,null,"","","","","","",""]
[null,null,null,null,null,null,null,null,null,null,null,null,null,null,null,null,"","","","","","",""]
[null,null,null,null,null,null,null,null,null,null,null,null,null,null,null,null,"","","","","","",""]
[null,null,null,null,null,null,null,null,null,null,null,null,null,null,null,null,"","","","","","",""]
[null,null,null,null,null,null,null,null,null,null,null,null,null,null,null,null,"","","","","","",""]
[null,null,null,null,null,null,null,null,null,null,null,null,null,null,null,null,"","","","","","",""]
[null,null,null,null,null,null,null,null,null,null,null,null,null,null,null,null,"","","","","","",""]
[null,null,null,null,null,null,null,null,null,null,null,null,null,null,null,null,"","","","","","",""]
[null,null,null,null,null,null,null,null,null,null,null,null,null,null,null,null,"","","","","","",""]
[null,null,null,null,null,null,null,null,null,null,null,null,null,null,null,null,{"$f":"IF(ISBLANK($E583),\"\",INT((dref-$E583)/365.25))","v":""},"","","","","",""]
[null,null,null,null,null,null,null,null,null,null,null,null,null,null,null,null,"","","","","","",""]
[null,null,null,null,null,null,null,null,null,null,null,null,null,null,null,null,"","","","","","",""]
[null,null,null,null,null,null,null,null,null,null,null,null,null,null,null,null,"","","","","","",""]
[null,null,null,null,null,null,null,null,null,null,null,null,null,null,null,null,"","","","","","",""]
[null,null,null,null,null,null,null,null,null,null,null,null,null,null,null,null,"","","","","","",""]
[null,null,null,null,null,null,null,null,null,null,null,null,null,null,null,null,"","","","","","",""]
[null,null,null,null,null,null,null,null,null,null,null,null,null,null,null,null,"","","","","","",""]
[null,null,null,null,null,null,null,null,null,null,null,null,null,null,null,null,"",{"$f":"IF(ISBLANK($F591),\"\",INT((dref-$F591)/365.25))","v":""},{"$f":"IF(ISNUMBER(Q591),INT(Q591/10)*10&\"-\"&(INT(Q591/10)+1)*10-1,\"\")","v":""},{"$f":"IF(ISNUMBER(Q591),INT(Q591/5)*5&\"-\"&INT(Q591/5)*5+4,\"\")","v":""},"","",""]
[null,null,null,null,null,null,null,null,null,null,null,null,null,null,null,null,"","","","",{"$f":"IF(R592=\"\",\"\",IF(R592=0,\"1:-1an\",IF(R592<=2,\"2:1-2\",IF(R592<=5,\"3:3-5\",IF(R592<=11,\"4:6-11\",IF(R592>11,\"5:+11\"))))))","v":""},{"$f":"IF(J592=\"\",\"\",IF(J592=0,\"1:0\",IF(J592<=5,\"2:1-5\",IF(J592<=25,\"3:6-25\",\"4:+25\"))))","v":""},{"$f":"IF(K592=\"\",\"\",IF(K592=0,\"1:0\",IF(K592<=5,\"2:1-5\",IF(K592<=25,\"3:6-25\",\"4:+25\"))))","v":""}]
[null,null,null,null,null,null,null,null,null,null,null,null,null,null,null,null,"","","","","","",""]
[null,null,null,null,null,null,null,null,null,null,null,null,null,null,null,null,"","","","","","",""]
[null,null,null,null,null,null,null,null,null,null,null,null,null,null,null,null,"","","","","","",""]
[null,null,null,null,null,null,null,null,null,null,null,null,null,null,null,null,"","","","","","",""]
[null,null,null,null,null,null,null,null,null,null,null,null,null,null,null,null,"","","","","","",""]
[null,null,null,null,null,null,null,null,null,null,null,null,null,null,null,null,"","","","","","",""]
[null,null,null,null,null,null,null,null,null,null,null,null,null,null,null,null,"","","","","","",""]
[null,null,null,null,null,null,null,null,null,null,null,null,null,null,null,null,"","","","","","",""]
[null,null,null,null,null,null,null,null,null,null,null,null,null,null,null,null,"","","","","","",""]
[null,null,null,null,null,null,null,null,null,null,null,null,null,null,null,null,"","","","","","",""]
[null,null,null,null,null,null,null,null,null,null,null,null,null,null,null,null,"","","","","","",""]
[null,null,null,null,null,null,null,null,null,null,null,null,null,null,null,null,"","","","","","",""]
[null,null,null,null,null,null,null,null,null,null,null,null,null,null,null,null,"","","","","","",""]
[null,null,null,null,null,null,null,null,null,null,null,null,null,null,null,null,"","","","","","",""]
[null,null,null,null,null,null,null,null,null,null,null,null,null,null,null,null,"","","","","","",""]
[null,null,null,null,null,null,null,null,null,null,null,null,null,null,null,null,"","","","","","",""]
[null,null,null,null,null,null,null,null,null,null,null,null,null,null,null,null,"","","","","","",""]
[null,null,null,null,null,null,null,null,null,null,null,null,null,null,null,null,"","","","","","",""]
[null,null,null,null,null,null,null,null,null,null,null,null,null,null,null,null,"","","","","","",""]
[null,null,null,null,null,null,null,null,null,null,null,null,null,null,null,null,"","","","","","",""]
[null,null,null,null,null,null,null,null,null,null,null,null,null,null,null,null,"","","","","","",""]
[null,null,null,null,null,null,null,null,null,null,null,null,null,null,null,null,"","","","","","",""]
[null,null,null,null,null,null,null,null,null,null,null,null,null,null,null,null,"","","","","","",""]
[null,null,null,null,null,null,null,null,null,null,null,null,null,null,null,null,"","","","","","",""]
[null,null,null,null,null,null,null,null,null,null,null,null,null,null,null,null,"","","","","","",""]
[null,null,null,null,null,null,null,null,null,null,null,null,null,null,null,null,"","","","","","",""]
[null,null,null,null,null,null,null,null,null,null,null,null,null,null,null,null,"","","","","","",""]
[null,null,null,null,null,null,null,null,null,null,null,null,null,null,null,null,"","","","","","",""]
[null,null,null,null,null,null,null,null,null,null,null,null,null,null,null,null,"","","","","","",""]
[null,null,null,null,null,null,null,null,null,null,null,null,null,null,null,null,"","","","","","",""]
[null,null,null,null,null,null,null,null,null,null,null,null,null,null,null,null,"","","","","","",""]
[null,null,null,null,null,null,null,null,null,null,null,null,null,null,null,null,"","","","","","",""]
[null,null,null,null,null,null,null,null,null,null,null,null,null,null,null,null,"","","","","","",""]
[null,null,null,null,null,null,null,null,null,null,null,null,null,null,null,null,"","","","","","",""]
[null,null,null,null,null,null,null,null,null,null,null,null,null,null,null,null,"","","","","","",""]
[null,null,null,null,null,null,null,null,null,null,null,null,null,null,null,null,"","","","","","",""]
[null,null,null,null,null,null,null,null,null,null,null,null,null,null,null,null,"","","","","","",""]
[null,null,null,null,null,null,null,null,null,null,null,null,null,null,null,null,"","","","","","",""]
[null,null,null,null,null,null,null,null,null,null,null,null,null,null,null,null,"","","","","","",""]
[null,null,null,null,null,null,null,null,null,null,null,null,null,null,null,null,"","","","","","",""]
[null,null,null,null,null,null,null,null,null,null,null,null,null,null,null,null,"","","","","","",""]
[null,null,null,null,null,null,null,null,null,null,null,null,null,null,null,null,"","","","","","",""]
[null,null,null,null,null,null,null,null,null,null,null,null,null,null,null,null,"","","","","","",""]
[null,null,null,null,null,null,null,null,null,null,null,null,null,null,null,null,"","","","","","",""]
[null,null,null,null,null,null,null,null,null,null,null,null,null,null,null,null,"","","","","","",""]
[null,null,null,null,null,null,null,null,null,null,null,null,null,null,null,null,"","","","","","",""]
[null,null,null,null,null,null,null,null,null,null,null,null,null,null,null,null,"","","","","","",""]
[null,null,null,null,null,null,null,null,null,null,null,null,null,null,null,null,"","","","","","",""]
[null,null,null,null,null,null,null,null,null,null,null,null,null,null,null,null,"","","","","","",""]
[null,null,null,null,null,null,null,null,null,null,null,null,null,null,null,null,"","","","","","",""]
[null,null,null,null,null,null,null,null,null,null,null,null,null,null,null,null,"","","","","","",""]
[null,null,null,null,null,null,null,null,null,null,null,null,null,null,null,null,"","","","","","",""]
[null,null,null,null,null,null,null,null,null,null,null,null,null,null,null,null,"","","","","","",""]
[null,null,null,null,null,null,null,null,null,null,null,null,null,null,null,null,"","","","","","",""]
[null,null,null,null,null,null,null,null,null,null,null,null,null,null,null,null,{"$f":"IF(ISBLANK($E647),\"\",INT((dref-$E647)/365.25))","v":""},"","","","","",""]
[null,null,null,null,null,null,null,null,null,null,null,null,null,null,null,null,"","","","","","",""]
[null,null,null,null,null,null,null,null,null,null,null,null,null,null,null,null,"","","","","","",""]
[null,null,null,null,null,null,null,null,null,null,null,null,null,null,null,null,"","","","","","",""]
[null,null,null,null,null,null,null,null,null,null,null,null,null,null,null,null,"","","","","","",""]
[null,null,null,null,null,null,null,null,null,null,null,null,null,null,null,null,"","","","","","",""]
[null,null,null,null,null,null,null,null,null,null,null,null,null,null,null,null,"","","","","","",""]
[null,null,null,null,null,null,null,null,null,null,null,null,null,null,null,null,"","","","","","",""]
[null,null,null,null,null,null,null,null,null,null,null,null,null,null,null,null,"",{"$f":"IF(ISBLANK($F655),\"\",INT((dref-$F655)/365.25))","v":""},{"$f":"IF(ISNUMBER(Q655),INT(Q655/10)*10&\"-\"&(INT(Q655/10)+1)*10-1,\"\")","v":""},{"$f":"IF(ISNUMBER(Q655),INT(Q655/5)*5&\"-\"&INT(Q655/5)*5+4,\"\")","v":""},"","",""]
[null,null,null,null,null,null,null,null,null,null,null,null,null,null,null,null,"","","","",{"$f":"IF(R656=\"\",\"\",IF(R656=0,\"1:-1an\",IF(R656<=2,\"2:1-2\",IF(R656<=5,\"3:3-5\",IF(R656<=11,\"4:6-11\",IF(R656>11,\"5:+11\"))))))","v":""},{"$f":"IF(J656=\"\",\"\",IF(J656=0,\"1:0\",IF(J656<=5,\"2:1-5\",IF(J656<=25,\"3:6-25\",\"4:+25\"))))","v":""},{"$f":"IF(K656=\"\",\"\",IF(K656=0,\"1:0\",IF(K656<=5,\"2:1-5\",IF(K656<=25,\"3:6-25\",\"4:+25\"))))","v":""}]
[null,null,null,null,null,null,null,null,null,null,null,null,null,null,null,null,"","","","","","",""]
[null,null,null,null,null,null,null,null,null,null,null,null,null,null,null,null,"","","","","","",""]
[null,null,null,null,null,null,null,null,null,null,null,null,null,null,null,null,"","","","","","",""]
[null,null,null,null,null,null,null,null,null,null,null,null,null,null,null,null,"","","","","","",""]
[null,null,null,null,null,null,null,null,null,null,null,null,null,null,null,null,"","","","","","",""]
[null,null,null,null,null,null,null,null,null,null,null,null,null,null,null,null,"","","","","","",""]
[null,null,null,null,null,null,null,null,null,null,null,null,null,null,null,null,"","","","","","",""]
[null,null,null,null,null,null,null,null,null,null,null,null,null,null,null,null,"","","","","","",""]
[null,null,null,null,null,null,null,null,null,null,null,null,null,null,null,null,"","","","","","",""]
[null,null,null,null,null,null,null,null,null,null,null,null,null,null,null,null,"","","","","","",""]
[null,null,null,null,null,null,null,null,null,null,null,null,null,null,null,null,"","","","","","",""]
[null,null,null,null,null,null,null,null,null,null,null,null,null,null,null,null,"","","","","","",""]
[null,null,null,null,null,null,null,null,null,null,null,null,null,null,null,null,"","","","","","",""]
[null,null,null,null,null,null,null,null,null,null,null,null,null,null,null,null,"","","","","","",""]
[null,null,null,null,null,null,null,null,null,null,null,null,null,null,null,null,"","","","","","",""]
[null,null,null,null,null,null,null,null,null,null,null,null,null,null,null,null,"","","","","","",""]
[null,null,null,null,null,null,null,null,null,null,null,null,null,null,null,null,"","","","","","",""]
[null,null,null,null,null,null,null,null,null,null,null,null,null,null,null,null,"","","","","","",""]
[null,null,null,null,null,null,null,null,null,null,null,null,null,null,null,null,"","","","","","",""]
[null,null,null,null,null,null,null,null,null,null,null,null,null,null,null,null,"","","","","","",""]
[null,null,null,null,null,null,null,null,null,null,null,null,null,null,null,null,"","","","","","",""]
[null,null,null,null,null,null,null,null,null,null,null,null,null,null,null,null,"","","","","","",""]
[null,null,null,null,null,null,null,null,null,null,null,null,null,null,null,null,"","","","","","",""]
[null,null,null,null,null,null,null,null,null,null,null,null,null,null,null,null,"","","","","","",""]
[null,null,null,null,null,null,null,null,null,null,null,null,null,null,null,null,"","","","","","",""]
[null,null,null,null,null,null,null,null,null,null,null,null,null,null,null,null,"","","","","","",""]
[null,null,null,null,null,null,null,null,null,null,null,null,null,null,null,null,"","","","","","",""]
[null,null,null,null,null,null,null,null,null,null,null,null,null,null,null,null,"","","","","","",""]
[null,null,null,null,null,null,null,null,null,null,null,null,null,null,null,null,"","","","","","",""]
[null,null,null,null,null,null,null,null,null,null,null,null,null,null,null,null,"","","","","","",""]
[null,null,null,null,null,null,null,null,null,null,null,null,null,null,null,null,"","","","","","",""]
[null,null,null,null,null,null,null,null,null,null,null,null,null,null,null,null,"","","","","","",""]
[null,null,null,null,null,null,null,null,null,null,null,null,null,null,null,null,"","","","","","",""]
[null,null,null,null,null,null,null,null,null,null,null,null,null,null,null,null,"","","","","","",""]
[null,null,null,null,null,null,null,null,null,null,null,null,null,null,null,null,"","","","","","",""]
[null,null,null,null,null,null,null,null,null,null,null,null,null,null,null,null,"","","","","","",""]
[null,null,null,null,null,null,null,null,null,null,null,null,null,null,null,null,"","","","","","",""]
[null,null,null,null,null,null,null,null,null,null,null,null,null,null,null,null,"","","","","","",""]
[null,null,null,null,null,null,null,null,null,null,null,null,null,null,null,null,"","","","","","",""]
[null,null,null,null,null,null,null,null,null,null,null,null,null,null,null,null,"","","","","","",""]
[null,null,null,null,null,null,null,null,null,null,null,null,null,null,null,null,"","","","","","",""]
[null,null,null,null,null,null,null,null,null,null,null,null,null,null,null,null,"","","","","","",""]
[null,null,null,null,null,null,null,null,null,null,null,null,null,null,null,null,"","","","","","",""]
[null,null,null,null,null,null,null,null,null,null,null,null,null,null,null,null,"","","","","","",""]
[null,null,null,null,null,null,null,null,null,null,null,null,null,null,null,null,"","","","","","",""]
[null,null,null,null,null,null,null,null,null,null,null,null,null,null,null,null,"","","","","","",""]
[null,null,null,null,null,null,null,null,null,null,null,null,null,null,null,null,"","","","","","",""]
[null,null,null,null,null,null,null,null,null,null,null,null,null,null,null,null,"","","","","","",""]
[null,null,null,null,null,null,null,null,null,null,null,null,null,null,null,null,"","","","","","",""]
[null,null,null,null,null,null,null,null,null,null,null,null,null,null,null,null,"","","","","","",""]
[null,null,null,null,null,null,null,null,null,null,null,null,null,null,null,null,"","","","","","",""]
[null,null,null,null,null,null,null,null,null,null,null,null,null,null,null,null,"","","","","","",""]
[null,null,null,null,null,null,null,null,null,null,null,null,null,null,null,null,"","","","","","",""]
[null,null,null,null,null,null,null,null,null,null,null,null,null,null,null,null,"","","","","","",""]
[null,null,null,null,null,null,null,null,null,null,null,null,null,null,null,null,{"$f":"IF(ISBLANK($E711),\"\",INT((dref-$E711)/365.25))","v":""},"","","","","",""]
[null,null,null,null,null,null,null,null,null,null,null,null,null,null,null,null,"","","","","","",""]
[null,null,null,null,null,null,null,null,null,null,null,null,null,null,null,null,"","","","","","",""]
[null,null,null,null,null,null,null,null,null,null,null,null,null,null,null,null,"","","","","","",""]
[null,null,null,null,null,null,null,null,null,null,null,null,null,null,null,null,"","","","","","",""]
[null,null,null,null,null,null,null,null,null,null,null,null,null,null,null,null,"","","","","","",""]
[null,null,null,null,null,null,null,null,null,null,null,null,null,null,null,null,"","","","","","",""]
[null,null,null,null,null,null,null,null,null,null,null,null,null,null,null,null,"","","","","","",""]
[null,null,null,null,null,null,null,null,null,null,null,null,null,null,null,null,"",{"$f":"IF(ISBLANK($F719),\"\",INT((dref-$F719)/365.25))","v":""},{"$f":"IF(ISNUMBER(Q719),INT(Q719/10)*10&\"-\"&(INT(Q719/10)+1)*10-1,\"\")","v":""},{"$f":"IF(ISNUMBER(Q719),INT(Q719/5)*5&\"-\"&INT(Q719/5)*5+4,\"\")","v":""},"","",""]
[null,null,null,null,null,null,null,null,null,null,null,null,null,null,null,null,"","","","",{"$f":"IF(R720=\"\",\"\",IF(R720=0,\"1:-1an\",IF(R720<=2,\"2:1-2\",IF(R720<=5,\"3:3-5\",IF(R720<=11,\"4:6-11\",IF(R720>11,\"5:+11\"))))))","v":""},{"$f":"IF(J720=\"\",\"\",IF(J720=0,\"1:0\",IF(J720<=5,\"2:1-5\",IF(J720<=25,\"3:6-25\",\"4:+25\"))))","v":""},{"$f":"IF(K720=\"\",\"\",IF(K720=0,\"1:0\",IF(K720<=5,\"2:1-5\",IF(K720<=25,\"3:6-25\",\"4:+25\"))))","v":""}]
[null,null,null,null,null,null,null,null,null,null,null,null,null,null,null,null,"","","","","","",""]
[null,null,null,null,null,null,null,null,null,null,null,null,null,null,null,null,"","","","","","",""]
[null,null,null,null,null,null,null,null,null,null,null,null,null,null,null,null,"","","","","","",""]
[null,null,null,null,null,null,null,null,null,null,null,null,null,null,null,null,"","","","","","",""]
[null,null,null,null,null,null,null,null,null,null,null,null,null,null,null,null,"","","","","","",""]
[null,null,null,null,null,null,null,null,null,null,null,null,null,null,null,null,"","","","","","",""]
[null,null,null,null,null,null,null,null,null,null,null,null,null,null,null,null,"","","","","","",""]
[null,null,null,null,null,null,null,null,null,null,null,null,null,null,null,null,"","","","","","",""]
[null,null,null,null,null,null,null,null,null,null,null,null,null,null,null,null,"","","","","","",""]
[null,null,null,null,null,null,null,null,null,null,null,null,null,null,null,null,"","","","","","",""]
[null,null,null,null,null,null,null,null,null,null,null,null,null,null,null,null,"","","","","","",""]
[null,null,null,null,null,null,null,null,null,null,null,null,null,null,null,null,"","","","","","",""]
[null,null,null,null,null,null,null,null,null,null,null,null,null,null,null,null,"","","","","","",""]
[null,null,null,null,null,null,null,null,null,null,null,null,null,null,null,null,"","","","","","",""]
[null,null,null,null,null,null,null,null,null,null,null,null,null,null,null,null,"","","","","","",""]
[null,null,null,null,null,null,null,null,null,null,null,null,null,null,null,null,"","","","","","",""]
[null,null,null,null,null,null,null,null,null,null,null,null,null,null,null,null,"","","","","","",""]
[null,null,null,null,null,null,null,null,null,null,null,null,null,null,null,null,"","","","","","",""]
[null,null,null,null,null,null,null,null,null,null,null,null,null,null,null,null,"","","","","","",""]
[null,null,null,null,null,null,null,null,null,null,null,null,null,null,null,null,"","","","","","",""]
[null,null,null,null,null,null,null,null,null,null,null,null,null,null,null,null,"","","","","","",""]
[null,null,null,null,null,null,null,null,null,null,null,null,null,null,null,null,"","","","","","",""]
[null,null,null,null,null,null,null,null,null,null,null,null,null,null,null,null,"","","","","","",""]
[null,null,null,null,null,null,null,null,null,null,null,null,null,null,null,null,"","","","","","",""]
[null,null,null,null,null,null,null,null,null,null,null,null,null,null,null,null,"","","","","","",""]
[null,null,null,null,null,null,null,null,null,null,null,null,null,null,null,null,"","","","","","",""]
[null,null,null,null,null,null,null,null,null,null,null,null,null,null,null,null,"","","","","","",""]
[null,null,null,null,null,null,null,null,null,null,null,null,null,null,null,null,"","","","","","",""]
[null,null,null,null,null,null,null,null,null,null,null,null,null,null,null,null,"","","","","","",""]
[null,null,null,null,null,null,null,null,null,null,null,null,null,null,null,null,"","","","","","",""]
[null,null,null,null,null,null,null,null,null,null,null,null,null,null,null,null,"","","","","","",""]
[null,null,null,null,null,null,null,null,null,null,null,null,null,null,null,null,"","","","","","",""]
[null,null,null,null,null,null,null,null,null,null,null,null,null,null,null,null,"","","","","","",""]
[null,null,null,null,null,null,null,null,null,null,null,null,null,null,null,null,"","","","","","",""]
[null,null,null,null,null,null,null,null,null,null,null,null,null,null,null,null,"","","","","","",""]
[null,null,null,null,null,null,null,null,null,null,null,null,null,null,null,null,"","","","","","",""]
[null,null,null,null,null,null,null,null,null,null,null,null,null,null,null,null,"","","","","","",""]
[null,null,null,null,null,null,null,null,null,null,null,null,null,null,null,null,"","","","","","",""]
[null,null,null,null,null,null,null,null,null,null,null,null,null,null,null,null,"","","","","","",""]
[null,null,null,null,null,null,null,null,null,null,null,null,null,null,null,null,"","","","","","",""]
[null,null,null,null,null,null,null,null,null,null,null,null,null,null,null,null,"","","","","","",""]
[null,null,null,null,null,null,null,null,null,null,null,null,null,null,null,null,"","","","","","",""]
[null,null,null,null,null,null,null,null,null,null,null,null,null,null,null,null,"","","","","","",""]
[null,null,null,null,null,null,null,null,null,null,null,null,null,null,null,null,"","","","","","",""]
[null,null,null,null,null,null,null,null,null,null,null,null,null,null,null,null,"","","","","","",""]
[null,null,null,null,null,null,null,null,null,null,null,null,null,null,null,null,"","","","","","",""]
[null,null,null,null,null,null,null,null,null,null,null,null,null,null,null,null,"","","","","","",""]
[null,null,null,null,null,null,null,null,null,null,null,null,null,null,null,null,"","","","","","",""]
[null,null,null,null,null,null,null,null,null,null,null,null,null,null,null,null,"","","","","","",""]
[null,null,null,null,null,null,null,null,null,null,null,null,null,null,null,null,"","","","","","",""]
[null,null,null,null,null,null,null,null,null,null,null,null,null,null,null,null,"","","","","","",""]
[null,null,null,null,null,null,null,null,null,null,null,null,null,null,null,null,"","","","","","",""]
[null,null,null,null,null,null,null,null,null,null,null,null,null,null,null,null,"","","","","","",""]
[null,null,null,null,null,null,null,null,null,null,null,null,null,null,null,null,"","","","","","",""]
[null,null,null,null,null,null,null,null,null,null,null,null,null,null,null,null,{"$f":"IF(ISBLANK($E775),\"\",INT((dref-$E775)/365.25))","v":""},"","","","","",""]
[null,null,null,null,null,null,null,null,null,null,null,null,null,null,null,null,"","","","","","",""]
[null,null,null,null,null,null,null,null,null,null,null,null,null,null,null,null,"","","","","","",""]
[null,null,null,null,null,null,null,null,null,null,null,null,null,null,null,null,"","","","","","",""]
[null,null,null,null,null,null,null,null,null,null,null,null,null,null,null,null,"","","","","","",""]
[null,null,null,null,null,null,null,null,null,null,null,null,null,null,null,null,"","","","","","",""]
[null,null,null,null,null,null,null,null,null,null,null,null,null,null,null,null,"","","","","","",""]
[null,null,null,null,null,null,null,null,null,null,null,null,null,null,null,null,"","","","","","",""]
[null,null,null,null,null,null,null,null,null,null,null,null,null,null,null,null,"",{"$f":"IF(ISBLANK($F783),\"\",INT((dref-$F783)/365.25))","v":""},{"$f":"IF(ISNUMBER(Q783),INT(Q783/10)*10&\"-\"&(INT(Q783/10)+1)*10-1,\"\")","v":""},{"$f":"IF(ISNUMBER(Q783),INT(Q783/5)*5&\"-\"&INT(Q783/5)*5+4,\"\")","v":""},"","",""]
[null,null,null,null,null,null,null,null,null,null,null,null,null,null,null,null,"","","","",{"$f":"IF(R784=\"\",\"\",IF(R784=0,\"1:-1an\",IF(R784<=2,\"2:1-2\",IF(R784<=5,\"3:3-5\",IF(R784<=11,\"4:6-11\",IF(R784>11,\"5:+11\"))))))","v":""},{"$f":"IF(J784=\"\",\"\",IF(J784=0,\"1:0\",IF(J784<=5,\"2:1-5\",IF(J784<=25,\"3:6-25\",\"4:+25\"))))","v":""},{"$f":"IF(K784=\"\",\"\",IF(K784=0,\"1:0\",IF(K784<=5,\"2:1-5\",IF(K784<=25,\"3:6-25\",\"4:+25\"))))","v":""}]
[null,null,null,null,null,null,null,null,null,null,null,null,null,null,null,null,"","","","","","",""]
[null,null,null,null,null,null,null,null,null,null,null,null,null,null,null,null,"","","","","","",""]
[null,null,null,null,null,null,null,null,null,null,null,null,null,null,null,null,"","","","","","",""]
[null,null,null,null,null,null,null,null,null,null,null,null,null,null,null,null,"","","","","","",""]
[null,null,null,null,null,null,null,null,null,null,null,null,null,null,null,null,"","","","","","",""]
[null,null,null,null,null,null,null,null,null,null,null,null,null,null,null,null,"","","","","","",""]
[null,null,null,null,null,null,null,null,null,null,null,null,null,null,null,null,"","","","","","",""]
[null,null,null,null,null,null,null,null,null,null,null,null,null,null,null,null,"","","","","","",""]
[null,null,null,null,null,null,null,null,null,null,null,null,null,null,null,null,"","","","","","",""]
[null,null,null,null,null,null,null,null,null,null,null,null,null,null,null,null,"","","","","","",""]
[null,null,null,null,null,null,null,null,null,null,null,null,null,null,null,null,"","","","","","",""]
[null,null,null,null,null,null,null,null,null,null,null,null,null,null,null,null,"","","","","","",""]
[null,null,null,null,null,null,null,null,null,null,null,null,null,null,null,null,"","","","","","",""]
[null,null,null,null,null,null,null,null,null,null,null,null,null,null,null,null,"","","","","","",""]
[null,null,null,null,null,null,null,null,null,null,null,null,null,null,null,null,"","","","","","",""]
[null,null,null,null,null,null,null,null,null,null,null,null,null,null,null,null,"","","","","","",""]
[null,null,null,null,null,null,null,null,null,null,null,null,null,null,null,null,"","","","","","",""]
[null,null,null,null,null,null,null,null,null,null,null,null,null,null,null,null,"","","","","","",""]
[null,null,null,null,null,null,null,null,null,null,null,null,null,null,null,null,"","","","","","",""]
[null,null,null,null,null,null,null,null,null,null,null,null,null,null,null,null,"","","","","","",""]
[null,null,null,null,null,null,null,null,null,null,null,null,null,null,null,null,"","","","","","",""]
[null,null,null,null,null,null,null,null,null,null,null,null,null,null,null,null,"","","","","","",""]
[null,null,null,null,null,null,null,null,null,null,null,null,null,null,null,null,"","","","","","",""]
[null,null,null,null,null,null,null,null,null,null,null,null,null,null,null,null,"","","","","","",""]
[null,null,null,null,null,null,null,null,null,null,null,null,null,null,null,null,"","","","","","",""]
[null,null,null,null,null,null,null,null,null,null,null,null,null,null,null,null,"","","","","","",""]
[null,null,null,null,null,null,null,null,null,null,null,null,null,null,null,null,"","","","","","",""]
[null,null,null,null,null,null,null,null,null,null,null,null,null,null,null,null,"","","","","","",""]
[null,null,null,null,null,null,null,null,null,null,null,null,null,null,null,null,"","","","","","",""]
[null,null,null,null,null,null,null,null,null,null,null,null,null,null,null,null,"","","","","","",""]
[null,null,null,null,null,null,null,null,null,null,null,null,null,null,null,null,"","","","","","",""]
[null,null,null,null,null,null,null,null,null,null,null,null,null,null,null,null,"","","","","","",""]
[null,null,null,null,null,null,null,null,null,null,null,null,null,null,null,null,"","","","","","",""]
[null,null,null,null,null,null,null,null,null,null,null,null,null,null,null,null,"","","","","","",""]
[null,null,null,null,null,null,null,null,null,null,null,null,null,null,null,null,"","","","","","",""]
[null,null,null,null,null,null,null,null,null,null,null,null,null,null,null,null,"","","","","","",""]
[null,null,null,null,null,null,null,null,null,null,null,null,null,null,null,null,"","","","","","",""]
[null,null,null,null,null,null,null,null,null,null,null,null,null,null,null,null,"","","","","","",""]
[null,null,null,null,null,null,null,null,null,null,null,null,null,null,null,null,"","","","","","",""]
[null,null,null,null,null,null,null,null,null,null,null,null,null,null,null,null,"","","","","","",""]
[null,null,null,null,null,null,null,null,null,null,null,null,null,null,null,null,"","","","","","",""]
[null,null,null,null,null,null,null,null,null,null,null,null,null,null,null,null,"","","","","","",""]
[null,null,null,null,null,null,null,null,null,null,null,null,null,null,null,null,"","","","","","",""]
[null,null,null,null,null,null,null,null,null,null,null,null,null,null,null,null,"","","","","","",""]
[null,null,null,null,null,null,null,null,null,null,null,null,null,null,null,null,"","","","","","",""]
[null,null,null,null,null,null,null,null,null,null,null,null,null,null,null,null,"","","","","","",""]
[null,null,null,null,null,null,null,null,null,null,null,null,null,null,null,null,"","","","","","",""]
[null,null,null,null,null,null,null,null,null,null,null,null,null,null,null,null,"","","","","","",""]
[null,null,null,null,null,null,null,null,null,null,null,null,null,null,null,null,"","","","","","",""]
[null,null,null,null,null,null,null,null,null,null,null,null,null,null,null,null,"","","","","","",""]
[null,null,null,null,null,null,null,null,null,null,null,null,null,null,null,null,"","","","","","",""]
[null,null,null,null,null,null,null,null,null,null,null,null,null,null,null,null,"","","","","","",""]
[null,null,null,null,null,null,null,null,null,null,null,null,null,null,null,null,"","","","","","",""]
[null,null,null,null,null,null,null,null,null,null,null,null,null,null,null,null,"","","","","","",""]
[null,null,null,null,null,null,null,null,null,null,null,null,null,null,null,null,{"$f":"IF(ISBLANK($E839),\"\",INT((dref-$E839)/365.25))","v":""},"","","","","",""]
[null,null,null,null,null,null,null,null,null,null,null,null,null,null,null,null,"","","","","","",""]
[null,null,null,null,null,null,null,null,null,null,null,null,null,null,null,null,"","","","","","",""]
[null,null,null,null,null,null,null,null,null,null,null,null,null,null,null,null,"","","","","","",""]
[null,null,null,null,null,null,null,null,null,null,null,null,null,null,null,null,"","","","","","",""]
[null,null,null,null,null,null,null,null,null,null,null,null,null,null,null,null,"","","","","","",""]
[null,null,null,null,null,null,null,null,null,null,null,null,null,null,null,null,"","","","","","",""]
[null,null,null,null,null,null,null,null,null,null,null,null,null,null,null,null,"","","","","","",""]
[null,null,null,null,null,null,null,null,null,null,null,null,null,null,null,null,"",{"$f":"IF(ISBLANK($F847),\"\",INT((dref-$F847)/365.25))","v":""},{"$f":"IF(ISNUMBER(Q847),INT(Q847/10)*10&\"-\"&(INT(Q847/10)+1)*10-1,\"\")","v":""},{"$f":"IF(ISNUMBER(Q847),INT(Q847/5)*5&\"-\"&INT(Q847/5)*5+4,\"\")","v":""},"","",""]
[null,null,null,null,null,null,null,null,null,null,null,null,null,null,null,null,"","","","",{"$f":"IF(R848=\"\",\"\",IF(R848=0,\"1:-1an\",IF(R848<=2,\"2:1-2\",IF(R848<=5,\"3:3-5\",IF(R848<=11,\"4:6-11\",IF(R848>11,\"5:+11\"))))))","v":""},{"$f":"IF(J848=\"\",\"\",IF(J848=0,\"1:0\",IF(J848<=5,\"2:1-5\",IF(J848<=25,\"3:6-25\",\"4:+25\"))))","v":""},{"$f":"IF(K848=\"\",\"\",IF(K848=0,\"1:0\",IF(K848<=5,\"2:1-5\",IF(K848<=25,\"3:6-25\",\"4:+25\"))))","v":""}]
[null,null,null,null,null,null,null,null,null,null,null,null,null,null,null,null,"","","","","","",""]
[null,null,null,null,null,null,null,null,null,null,null,null,null,null,null,null,"","","","","","",""]
[null,null,null,null,null,null,null,null,null,null,null,null,null,null,null,null,"","","","","","",""]
[null,null,null,null,null,null,null,null,null,null,null,null,null,null,null,null,"","","","","","",""]
[null,null,null,null,null,null,null,null,null,null,null,null,null,null,null,null,"","","","","","",""]
[null,null,null,null,null,null,null,null,null,null,null,null,null,null,null,null,"","","","","","",""]
[null,null,null,null,null,null,null,null,null,null,null,null,null,null,null,null,"","","","","","",""]
[null,null,null,null,null,null,null,null,null,null,null,null,null,null,null,null,"","","","","","",""]
[null,null,null,null,null,null,null,null,null,null,null,null,null,null,null,null,"","","","","","",""]
[null,null,null,null,null,null,null,null,null,null,null,null,null,null,null,null,"","","","","","",""]
[null,null,null,null,null,null,null,null,null,null,null,null,null,null,null,null,"","","","","","",""]
[null,null,null,null,null,null,null,null,null,null,null,null,null,null,null,null,"","","","","","",""]
[null,null,null,null,null,null,null,null,null,null,null,null,null,null,null,null,"","","","","","",""]
[null,null,null,null,null,null,null,null,null,null,null,null,null,null,null,null,"","","","","","",""]
[null,null,null,null,null,null,null,null,null,null,null,null,null,null,null,null,"","","","","","",""]
[null,null,null,null,null,null,null,null,null,null,null,null,null,null,null,null,"","","","","","",""]
[null,null,null,null,null,null,null,null,null,null,null,null,null,null,null,null,"","","","","","",""]
[null,null,null,null,null,null,null,null,null,null,null,null,null,null,null,null,"","","","","","",""]
[null,null,null,null,null,null,null,null,null,null,null,null,null,null,null,null,"","","","","","",""]
[null,null,null,null,null,null,null,null,null,null,null,null,null,null,null,null,"","","","","","",""]
[null,null,null,null,null,null,null,null,null,null,null,null,null,null,null,null,"","","","","","",""]
[null,null,null,null,null,null,null,null,null,null,null,null,null,null,null,null,"","","","","","",""]
[null,null,null,null,null,null,null,null,null,null,null,null,null,null,null,null,"","","","","","",""]
[null,null,null,null,null,null,null,null,null,null,null,null,null,null,null,null,"","","","","","",""]
[null,null,null,null,null,null,null,null,null,null,null,null,null,null,null,null,"","","","","","",""]
[null,null,null,null,null,null,null,null,null,null,null,null,null,null,null,null,"","","","","","",""]
[null,null,null,null,null,null,null,null,null,null,null,null,null,null,null,null,"","","","","","",""]
[null,null,null,null,null,null,null,null,null,null,null,null,null,null,null,null,"","","","","","",""]
[null,null,null,null,null,null,null,null,null,null,null,null,null,null,null,null,"","","","","","",""]
[null,null,null,null,null,null,null,null,null,null,null,null,null,null,null,null,"","","","","","",""]
[null,null,null,null,null,null,null,null,null,null,null,null,null,null,null,null,"","","","","","",""]
[null,null,null,null,null,null,null,null,null,null,null,null,null,null,null,null,"","","","","","",""]
[null,null,null,null,null,null,null,null,null,null,null,null,null,null,null,null,"","","","","","",""]
[null,null,null,null,null,null,null,null,null,null,null,null,null,null,null,null,"","","","","","",""]
[null,null,null,null,null,null,null,null,null,null,null,null,null,null,null,null,"","","","","","",""]
[null,null,null,null,null,null,null,null,null,null,null,null,null,null,null,null,"","","","","","",""]
[null,null,null,null,null,null,null,null,null,null,null,null,null,null,null,null,"","","","","","",""]
[null,null,null,null,null,null,null,null,null,null,null,null,null,null,null,null,"","","","","","",""]
[null,null,null,null,null,null,null,null,null,null,null,null,null,null,null,null,"","","","","","",""]
[null,null,null,null,null,null,null,null,null,null,null,null,null,null,null,null,"","","","","","",""]
[null,null,null,null,null,null,null,null,null,null,null,null,null,null,null,null,"","","","","","",""]
[null,null,null,null,null,null,null,null,null,null,null,null,null,null,null,null,"","","","","","",""]
[null,null,null,null,null,null,null,null,null,null,null,null,null,null,null,null,"","","","","","",""]
[null,null,null,null,null,null,null,null,null,null,null,null,null,null,null,null,"","","","","","",""]
[null,null,null,null,null,null,null,null,null,null,null,null,null,null,null,null,"","","","","","",""]
[null,null,null,null,null,null,null,null,null,null,null,null,null,null,null,null,"","","","","","",""]
[null,null,null,null,null,null,null,null,null,null,null,null,null,null,null,null,"","","","","","",""]
[null,null,null,null,null,null,null,null,null,null,null,null,null,null,null,null,"","","","","","",""]
[null,null,null,null,null,null,null,null,null,null,null,null,null,null,null,null,"","","","","","",""]
[null,null,null,null,null,null,null,null,null,null,null,null,null,null,null,null,"","","","","","",""]
[null,null,null,null,null,null,null,null,null,null,null,null,null,null,null,null,"","","","","","",""]
[null,null,null,null,null,null,null,null,null,null,null,null,null,null,null,null,"","","","","","",""]
[null,null,null,null,null,null,null,null,null,null,null,null,null,null,null,null,"","","","","","",""]
[null,null,null,null,null,null,null,null,null,null,null,null,null,null,null,null,"","","","","","",""]
[null,null,null,null,null,null,null,null,null,null,null,null,null,null,null,null,{"$f":"IF(ISBLANK($E903),\"\",INT((dref-$E903)/365.25))","v":""},"","","","","",""]
[null,null,null,null,null,null,null,null,null,null,null,null,null,null,null,null,"","","","","","",""]
[null,null,null,null,null,null,null,null,null,null,null,null,null,null,null,null,"","","","","","",""]
[null,null,null,null,null,null,null,null,null,null,null,null,null,null,null,null,"","","","","","",""]
[null,null,null,null,null,null,null,null,null,null,null,null,null,null,null,null,"","","","","","",""]
[null,null,null,null,null,null,null,null,null,null,null,null,null,null,null,null,"","","","","","",""]
[null,null,null,null,null,null,null,null,null,null,null,null,null,null,null,null,"","","","","","",""]
[null,null,null,null,null,null,null,null,null,null,null,null,null,null,null,null,"","","","","","",""]
[null,null,null,null,null,null,null,null,null,null,null,null,null,null,null,null,"",{"$f":"IF(ISBLANK($F911),\"\",INT((dref-$F911)/365.25))","v":""},{"$f":"IF(ISNUMBER(Q911),INT(Q911/10)*10&\"-\"&(INT(Q911/10)+1)*10-1,\"\")","v":""},{"$f":"IF(ISNUMBER(Q911),INT(Q911/5)*5&\"-\"&INT(Q911/5)*5+4,\"\")","v":""},"","",""]
[null,null,null,null,null,null,null,null,null,null,null,null,null,null,null,null,"","","","",{"$f":"IF(R912=\"\",\"\",IF(R912=0,\"1:-1an\",IF(R912<=2,\"2:1-2\",IF(R912<=5,\"3:3-5\",IF(R912<=11,\"4:6-11\",IF(R912>11,\"5:+11\"))))))","v":""},{"$f":"IF(J912=\"\",\"\",IF(J912=0,\"1:0\",IF(J912<=5,\"2:1-5\",IF(J912<=25,\"3:6-25\",\"4:+25\"))))","v":""},{"$f":"IF(K912=\"\",\"\",IF(K912=0,\"1:0\",IF(K912<=5,\"2:1-5\",IF(K912<=25,\"3:6-25\",\"4:+25\"))))","v":""}]
[null,null,null,null,null,null,null,null,null,null,null,null,null,null,null,null,"","","","","","",""]
[null,null,null,null,null,null,null,null,null,null,null,null,null,null,null,null,"","","","","","",""]
[null,null,null,null,null,null,null,null,null,null,null,null,null,null,null,null,"","","","","","",""]
[null,null,null,null,null,null,null,null,null,null,null,null,null,null,null,null,"","","","","","",""]
[null,null,null,null,null,null,null,null,null,null,null,null,null,null,null,null,"","","","","","",""]
[null,null,null,null,null,null,null,null,null,null,null,null,null,null,null,null,"","","","","","",""]
[null,null,null,null,null,null,null,null,null,null,null,null,null,null,null,null,"","","","","","",""]
[null,null,null,null,null,null,null,null,null,null,null,null,null,null,null,null,"","","","","","",""]
[null,null,null,null,null,null,null,null,null,null,null,null,null,null,null,null,"","","","","","",""]
[null,null,null,null,null,null,null,null,null,null,null,null,null,null,null,null,"","","","","","",""]
[null,null,null,null,null,null,null,null,null,null,null,null,null,null,null,null,"","","","","","",""]
[null,null,null,null,null,null,null,null,null,null,null,null,null,null,null,null,"","","","","","",""]
[null,null,null,null,null,null,null,null,null,null,null,null,null,null,null,null,"","","","","","",""]
[null,null,null,null,null,null,null,null,null,null,null,null,null,null,null,null,"","","","","","",""]
[null,null,null,null,null,null,null,null,null,null,null,null,null,null,null,null,"","","","","","",""]
[null,null,null,null,null,null,null,null,null,null,null,null,null,null,null,null,"","","","","","",""]
[null,null,null,null,null,null,null,null,null,null,null,null,null,null,null,null,"","","","","","",""]
[null,null,null,null,null,null,null,null,null,null,null,null,null,null,null,null,"","","","","","",""]
[null,null,null,null,null,null,null,null,null,null,null,null,null,null,null,null,"","","","","","",""]
[null,null,null,null,null,null,null,null,null,null,null,null,null,null,null,null,"","","","","","",""]
[null,null,null,null,null,null,null,null,null,null,null,null,null,null,null,null,"","","","","","",""]
[null,null,null,null,null,null,null,null,null,null,null,null,null,null,null,null,"","","","","","",""]
[null,null,null,null,null,null,null,null,null,null,null,null,null,null,null,null,"","","","","","",""]
[null,null,null,null,null,null,null,null,null,null,null,null,null,null,null,null,"","","","","","",""]
[null,null,null,null,null,null,null,null,null,null,null,null,null,null,null,null,"","","","","","",""]
[null,null,null,null,null,null,null,null,null,null,null,null,null,null,null,null,"","","","","","",""]
[null,null,null,null,null,null,null,null,null,null,null,null,null,null,null,null,"","","","","","",""]
[null,null,null,null,null,null,null,null,null,null,null,null,null,null,null,null,"","","","","","",""]
[null,null,null,null,null,null,null,null,null,null,null,null,null,null,null,null,"","","","","","",""]
[null,null,null,null,null,null,null,null,null,null,null,null,null,null,null,null,"","","","","","",""]
[null,null,null,null,null,null,null,null,null,null,null,null,null,null,null,null,"","","","","","",""]
[null,null,null,null,null,null,null,null,null,null,null,null,null,null,null,null,"","","","","","",""]
[null,null,null,null,null,null,null,null,null,null,null,null,null,null,null,null,"","","","","","",""]
[null,null,null,null,null,null,null,null,null,null,null,null,null,null,null,null,"","","","","","",""]
[null,null,null,null,null,null,null,null,null,null,null,null,null,null,null,null,"","","","","","",""]
[null,null,null,null,null,null,null,null,null,null,null,null,null,null,null,null,"","","","","","",""]
[null,null,null,null,null,null,null,null,null,null,null,null,null,null,null,null,"","","","","","",""]
[null,null,null,null,null,null,null,null,null,null,null,null,null,null,null,null,"","","","","","",""]
[null,null,null,null,null,null,null,null,null,null,null,null,null,null,null,null,"","","","","","",""]
[null,null,null,null,null,null,null,null,null,null,null,null,null,null,null,null,"","","","","","",""]
[null,null,null,null,null,null,null,null,null,null,null,null,null,null,null,null,"","","","","","",""]
[null,null,null,null,null,null,null,null,null,null,null,null,null,null,null,null,"","","","","","",""]
[null,null,null,null,null,null,null,null,null,null,null,null,null,null,null,null,"","","","","","",""]
[null,null,null,null,null,null,null,null,null,null,null,null,null,null,null,null,"","","","","","",""]
[null,null,null,null,null,null,null,null,null,null,null,null,null,null,null,null,"","","","","","",""]
[null,null,null,null,null,null,null,null,null,null,null,null,null,null,null,null,"","","","","","",""]
[null,null,null,null,null,null,null,null,null,null,null,null,null,null,null,null,"","","","","","",""]
[null,null,null,null,null,null,null,null,null,null,null,null,null,null,null,null,"","","","","","",""]
[null,null,null,null,null,null,null,null,null,null,null,null,null,null,null,null,"","","","","","",""]
[null,null,null,null,null,null,null,null,null,null,null,null,null,null,null,null,"","","","","","",""]
[null,null,null,null,null,null,null,null,null,null,null,null,null,null,null,null,"","","","","","",""]
[null,null,null,null,null,null,null,null,null,null,null,null,null,null,null,null,"","","","","","",""]
[null,null,null,null,null,null,null,null,null,null,null,null,null,null,null,null,"","","","","","",""]
[null,null,null,null,null,null,null,null,null,null,null,null,null,null,null,null,"","","","","","",""]
[null,null,null,null,null,null,null,null,null,null,null,null,null,null,null,null,{"$f":"IF(ISBLANK($E967),\"\",INT((dref-$E967)/365.25))","v":""},"","","","","",""]
[null,null,null,null,null,null,null,null,null,null,null,null,null,null,null,null,"","","","","","",""]
[null,null,null,null,null,null,null,null,null,null,null,null,null,null,null,null,"","","","","","",""]
[null,null,null,null,null,null,null,null,null,null,null,null,null,null,null,null,"","","","","","",""]
[null,null,null,null,null,null,null,null,null,null,null,null,null,null,null,null,"","","","","","",""]
[null,null,null,null,null,null,null,null,null,null,null,null,null,null,null,null,"","","","","","",""]
[null,null,null,null,null,null,null,null,null,null,null,null,null,null,null,null,"","","","","","",""]
[null,null,null,null,null,null,null,null,null,null,null,null,null,null,null,null,"","","","","","",""]
[null,null,null,null,null,null,null,null,null,null,null,null,null,null,null,null,"",{"$f":"IF(ISBLANK($F975),\"\",INT((dref-$F975)/365.25))","v":""},{"$f":"IF(ISNUMBER(Q975),INT(Q975/10)*10&\"-\"&(INT(Q975/10)+1)*10-1,\"\")","v":""},{"$f":"IF(ISNUMBER(Q975),INT(Q975/5)*5&\"-\"&INT(Q975/5)*5+4,\"\")","v":""},"","",""]
[null,null,null,null,null,null,null,null,null,null,null,null,null,null,null,null,"","","","",{"$f":"IF(R976=\"\",\"\",IF(R976=0,\"1:-1an\",IF(R976<=2,\"2:1-2\",IF(R976<=5,\"3:3-5\",IF(R976<=11,\"4:6-11\",IF(R976>11,\"5:+11\"))))))","v":""},{"$f":"IF(J976=\"\",\"\",IF(J976=0,\"1:0\",IF(J976<=5,\"2:1-5\",IF(J976<=25,\"3:6-25\",\"4:+25\"))))","v":""},{"$f":"IF(K976=\"\",\"\",IF(K976=0,\"1:0\",IF(K976<=5,\"2:1-5\",IF(K976<=25,\"3:6-25\",\"4:+25\"))))","v":""}]
[null,null,null,null,null,null,null,null,null,null,null,null,null,null,null,null,"","","","","","",""]
[null,null,null,null,null,null,null,null,null,null,null,null,null,null,null,null,"","","","","","",""]
[null,null,null,null,null,null,null,null,null,null,null,null,null,null,null,null,"","","","","","",""]
[null,null,null,null,null,null,null,null,null,null,null,null,null,null,null,null,"","","","","","",""]
[null,null,null,null,null,null,null,null,null,null,null,null,null,null,null,null,"","","","","","",""]
[null,null,null,null,null,null,null,null,null,null,null,null,null,null,null,null,"","","","","","",""]
[null,null,null,null,null,null,null,null,null,null,null,null,null,null,null,null,"","","","","","",""]
[null,null,null,null,null,null,null,null,null,null,null,null,null,null,null,null,"","","","","","",""]
[null,null,null,null,null,null,null,null,null,null,null,null,null,null,null,null,"","","","","","",""]
[null,null,null,null,null,null,null,null,null,null,null,null,null,null,null,null,"","","","","","",""]
[null,null,null,null,null,null,null,null,null,null,null,null,null,null,null,null,"","","","","","",""]
[null,null,null,null,null,null,null,null,null,null,null,null,null,null,null,null,"","","","","","",""]
[null,null,null,null,null,null,null,null,null,null,null,null,null,null,null,null,"","","","","","",""]
[null,null,null,null,null,null,null,null,null,null,null,null,null,null,null,null,"","","","","","",""]
[null,null,null,null,null,null,null,null,null,null,null,null,null,null,null,null,"","","","","","",""]
[null,null,null,null,null,null,null,null,null,null,null,null,null,null,null,null,"","","","","","",""]
[null,null,null,null,null,null,null,null,null,null,null,null,null,null,null,null,"","","","","","",""]
[null,null,null,null,null,null,null,null,null,null,null,null,null,null,null,null,"","","","","","",""]
[null,null,null,null,null,null,null,null,null,null,null,null,null,null,null,null,"","","","","","",""]
[null,null,null,null,null,null,null,null,null,null,null,null,null,null,null,null,"","","","","","",""]
[null,null,null,null,null,null,null,null,null,null,null,null,null,null,null,null,"","","","","","",""]
[null,null,null,null,null,null,null,null,null,null,null,null,null,null,null,null,"","","","","","",""]
[null,null,null,null,null,null,null,null,null,null,null,null,null,null,null,null,"","","","","","",""]
[null,null,null,null,null,null,null,null,null,null,null,null,null,null,null,null,"","","","","","",""]
[null,null,null,null,null,null,null,null,null,null,null,null,null,null,null,null,"","","","","","",""]
[null,null,null,null,null,null,null,null,null,null,null,null,null,null,null,null,"","","","","","",""]
[null,null,null,null,null,null,null,null,null,null,null,null,null,null,null,null,"","","","","","",""]
[null,null,null,null,null,null,null,null,null,null,null,null,null,null,null,null,"","","","","","",""]
[null,null,null,null,null,null,null,null,null,null,null,null,null,null,null,null,"","","","","","",""]
[null,null,null,null,null,null,null,null,null,null,null,null,null,null,null,null,"","","","","","",""]
[null,null,null,null,null,null,null,null,null,null,null,null,null,null,null,null,"","","","","","",""]
[null,null,null,null,null,null,null,null,null,null,null,null,null,null,null,null,"","","","","","",""]
[null,null,null,null,null,null,null,null,null,null,null,null,null,null,null,null,"","","","","","",""]
[null,null,null,null,null,null,null,null,null,null,null,null,null,null,null,null,"","","","","","",""]
[null,null,null,null,null,null,null,null,null,null,null,null,null,null,null,null,"","","","","","",""]
[null,null,null,null,null,null,null,null,null,null,null,null,null,null,null,null,"","","","","","",""]
[null,null,null,null,null,null,null,null,null,null,null,null,null,null,null,null,"","","","","","",""]
[null,null,null,null,null,null,null,null,null,null,null,null,null,null,null,null,"","","","","","",""]
[null,null,null,null,null,null,null,null,null,null,null,null,null,null,null,null,"","","","","","",""]
[null,null,null,null,null,null,null,null,null,null,null,null,null,null,null,null,"","","","","","",""]
[null,null,null,null,null,null,null,null,null,null,null,null,null,null,null,null,"","","","","","",""]
[null,null,null,null,null,null,null,null,null,null,null,null,null,null,null,null,"","","","","","",""]
[null,null,null,null,null,null,null,null,null,null,null,null,null,null,null,null,"","","","","","",""]
[null,null,null,null,null,null,null,null,null,null,null,null,null,null,null,null,"","","","","","",""]
[null,null,null,null,null,null,null,null,null,null,null,null,null,null,null,null,"","","","","","",""]
[null,null,null,null,null,null,null,null,null,null,null,null,null,null,null,null,"","","","","","",""]
[null,null,null,null,null,null,null,null,null,null,null,null,null,null,null,null,"","","","","","",""]
[null,null,null,null,null,null,null,null,null,null,null,null,null,null,null,null,"","","","","","",""]
[null,null,null,null,null,null,null,null,null,null,null,null,null,null,null,null,"","","","","","",""]
[null,null,null,null,null,null,null,null,null,null,null,null,null,null,null,null,"","","","","","",""]
[null,null,null,null,null,null,null,null,null,null,null,null,null,null,null,null,"","","","","","",""]
[null,null,null,null,null,null,null,null,null,null,null,null,null,null,null,null,"","","","","","",""]
[null,null,null,null,null,null,null,null,null,null,null,null,null,null,null,null,"","","","","","",""]
[null,null,null,null,null,null,null,null,null,null,null,null,null,null,null,null,"","","","","","",""]
[null,null,null,null,null,null,null,null,null,null,null,null,null,null,null,null,{"$f":"IF(ISBLANK($E1031),\"\",INT((dref-$E1031)/365.25))","v":""},"","","","","",""]
[null,null,null,null,null,null,null,null,null,null,null,null,null,null,null,null,"","","","","","",""]
[null,null,null,null,null,null,null,null,null,null,null,null,null,null,null,null,"","","","","","",""]
[null,null,null,null,null,null,null,null,null,null,null,null,null,null,null,null,"","","","","","",""]
[null,null,null,null,null,null,null,null,null,null,null,null,null,null,null,null,"","","","","","",""]
[null,null,null,null,null,null,null,null,null,null,null,null,null,null,null,null,"","","","","","",""]
[null,null,null,null,null,null,null,null,null,null,null,null,null,null,null,null,"","","","","","",""]
[null,null,null,null,null,null,null,null,null,null,null,null,null,null,null,null,"","","","","","",""]
[null,null,null,null,null,null,null,null,null,null,null,null,null,null,null,null,"",{"$f":"IF(ISBLANK($F1039),\"\",INT((dref-$F1039)/365.25))","v":""},{"$f":"IF(ISNUMBER(Q1039),INT(Q1039/10)*10&\"-\"&(INT(Q1039/10)+1)*10-1,\"\")","v":""},{"$f":"IF(ISNUMBER(Q1039),INT(Q1039/5)*5&\"-\"&INT(Q1039/5)*5+4,\"\")","v":""},"","",""]
[null,null,null,null,null,null,null,null,null,null,null,null,null,null,null,null,"","","","",{"$f":"IF(R1040=\"\",\"\",IF(R1040=0,\"1:-1an\",IF(R1040<=2,\"2:1-2\",IF(R1040<=5,\"3:3-5\",IF(R1040<=11,\"4:6-11\",IF(R1040>11,\"5:+11\"))))))","v":""},{"$f":"IF(J1040=\"\",\"\",IF(J1040=0,\"1:0\",IF(J1040<=5,\"2:1-5\",IF(J1040<=25,\"3:6-25\",\"4:+25\"))))","v":""},{"$f":"IF(K1040=\"\",\"\",IF(K1040=0,\"1:0\",IF(K1040<=5,\"2:1-5\",IF(K1040<=25,\"3:6-25\",\"4:+25\"))))","v":""}]
[null,null,null,null,null,null,null,null,null,null,null,null,null,null,null,null,"","","","","","",""]
[null,null,null,null,null,null,null,null,null,null,null,null,null,null,null,null,"","","","","","",""]
[null,null,null,null,null,null,null,null,null,null,null,null,null,null,null,null,"","","","","","",""]
[null,null,null,null,null,null,null,null,null,null,null,null,null,null,null,null,"","","","","","",""]
[null,null,null,null,null,null,null,null,null,null,null,null,null,null,null,null,"","","","","","",""]
[null,null,null,null,null,null,null,null,null,null,null,null,null,null,null,null,"","","","","","",""]
[null,null,null,null,null,null,null,null,null,null,null,null,null,null,null,null,"","","","","","",""]
[null,null,null,null,null,null,null,null,null,null,null,null,null,null,null,null,"","","","","","",""]
[null,null,null,null,null,null,null,null,null,null,null,null,null,null,null,null,"","","","","","",""]
[null,null,null,null,null,null,null,null,null,null,null,null,null,null,null,null,"","","","","","",""]
[null,null,null,null,null,null,null,null,null,null,null,null,null,null,null,null,"","","","","","",""]
[null,null,null,null,null,null,null,null,null,null,null,null,null,null,null,null,"","","","","","",""]
[null,null,null,null,null,null,null,null,null,null,null,null,null,null,null,null,"","","","","","",""]
[null,null,null,null,null,null,null,null,null,null,null,null,null,null,null,null,"","","","","","",""]
[null,null,null,null,null,null,null,null,null,null,null,null,null,null,null,null,"","","","","","",""]
[null,null,null,null,null,null,null,null,null,null,null,null,null,null,null,null,"","","","","","",""]
[null,null,null,null,null,null,null,null,null,null,null,null,null,null,null,null,"","","","","","",""]
[null,null,null,null,null,null,null,null,null,null,null,null,null,null,null,null,"","","","","","",""]
[null,null,null,null,null,null,null,null,null,null,null,null,null,null,null,null,"","","","","","",""]
[null,null,null,null,null,null,null,null,null,null,null,null,null,null,null,null,"","","","","","",""]
[null,null,null,null,null,null,null,null,null,null,null,null,null,null,null,null,"","","","","","",""]
[null,null,null,null,null,null,null,null,null,null,null,null,null,null,null,null,"","","","","","",""]
[null,null,null,null,null,null,null,null,null,null,null,null,null,null,null,null,"","","","","","",""]
[null,null,null,null,null,null,null,null,null,null,null,null,null,null,null,null,"","","","","","",""]
[null,null,null,null,null,null,null,null,null,null,null,null,null,null,null,null,"","","","","","",""]
[null,null,null,null,null,null,null,null,null,null,null,null,null,null,null,null,"","","","","","",""]
[null,null,null,null,null,null,null,null,null,null,null,null,null,null,null,null,"","","","","","",""]
[null,null,null,null,null,null,null,null,null,null,null,null,null,null,null,null,"","","","","","",""]
[null,null,null,null,null,null,null,null,null,null,null,null,null,null,null,null,"","","","","","",""]
[null,null,null,null,null,null,null,null,null,null,null,null,null,null,null,null,"","","","","","",""]
[null,null,null,null,null,null,null,null,null,null,null,null,null,null,null,null,"","","","","","",""]
[null,null,null,null,null,null,null,null,null,null,null,null,null,null,null,null,"","","","","","",""]
[null,null,null,null,null,null,null,null,null,null,null,null,null,null,null,null,"","","","","","",""]
[null,null,null,null,null,null,null,null,null,null,null,null,null,null,null,null,"","","","","","",""]
[null,null,null,null,null,null,null,null,null,null,null,null,null,null,null,null,"","","","","","",""]
[null,null,null,null,null,null,null,null,null,null,null,null,null,null,null,null,"","","","","","",""]
[null,null,null,null,null,null,null,null,null,null,null,null,null,null,null,null,"","","","","","",""]
[null,null,null,null,null,null,null,null,null,null,null,null,null,null,null,null,"","","","","","",""]
[null,null,null,null,null,null,null,null,null,null,null,null,null,null,null,null,"","","","","","",""]
[null,null,null,null,null,null,null,null,null,null,null,null,null,null,null,null,"","","","","","",""]
[null,null,null,null,null,null,null,null,null,null,null,null,null,null,null,null,"","","","","","",""]
[null,null,null,null,null,null,null,null,null,null,null,null,null,null,null,null,"","","","","","",""]
[null,null,null,null,null,null,null,null,null,null,null,null,null,null,null,null,"","","","","","",""]
[null,null,null,null,null,null,null,null,null,null,null,null,null,null,null,null,"","","","","","",""]
[null,null,null,null,null,null,null,null,null,null,null,null,null,null,null,null,"","","","","","",""]
[null,null,null,null,null,null,null,null,null,null,null,null,null,null,null,null,"","","","","","",""]
[null,null,null,null,null,null,null,null,null,null,null,null,null,null,null,null,"","","","","","",""]
[null,null,null,null,null,null,null,null,null,null,null,null,null,null,null,null,"","","","","","",""]
[null,null,null,null,null,null,null,null,null,null,null,null,null,null,null,null,"","","","","","",""]
[null,null,null,null,null,null,null,null,null,null,null,null,null,null,null,null,"","","","","","",""]
[null,null,null,null,null,null,null,null,null,null,null,null,null,null,null,null,"","","","","","",""]
[null,null,null,null,null,null,null,null,null,null,null,null,null,null,null,null,"","","","","","",""]
[null,null,null,null,null,null,null,null,null,null,null,null,null,null,null,null,"","","","","","",""]
[null,null,null,null,null,null,null,null,null,null,null,null,null,null,null,null,"","","","","","",""]
[null,null,null,null,null,null,null,null,null,null,null,null,null,null,null,null,{"$f":"IF(ISBLANK($E1095),\"\",INT((dref-$E1095)/365.25))","v":""},"","","","","",""]
[null,null,null,null,null,null,null,null,null,null,null,null,null,null,null,null,"","","","","","",""]
[null,null,null,null,null,null,null,null,null,null,null,null,null,null,null,null,"","","","","","",""]
[null,null,null,null,null,null,null,null,null,null,null,null,null,null,null,null,"","","","","","",""]
[null,null,null,null,null,null,null,null,null,null,null,null,null,null,null,null,"","","","","","",""]
[null,null,null,null,null,null,null,null,null,null,null,null,null,null,null,null,"","","","","","",""]
[null,null,null,null,null,null,null,null,null,null,null,null,null,null,null,null,"","","","","","",""]
[null,null,null,null,null,null,null,null,null,null,null,null,null,null,null,null,"","","","","","",""]
[null,null,null,null,null,null,null,null,null,null,null,null,null,null,null,null,"",{"$f":"IF(ISBLANK($F1103),\"\",INT((dref-$F1103)/365.25))","v":""},{"$f":"IF(ISNUMBER(Q1103),INT(Q1103/10)*10&\"-\"&(INT(Q1103/10)+1)*10-1,\"\")","v":""},{"$f":"IF(ISNUMBER(Q1103),INT(Q1103/5)*5&\"-\"&INT(Q1103/5)*5+4,\"\")","v":""},"","",""]
[null,null,null,null,null,null,null,null,null,null,null,null,null,null,null,null,"","","","",{"$f":"IF(R1104=\"\",\"\",IF(R1104=0,\"1:-1an\",IF(R1104<=2,\"2:1-2\",IF(R1104<=5,\"3:3-5\",IF(R1104<=11,\"4:6-11\",IF(R1104>11,\"5:+11\"))))))","v":""},{"$f":"IF(J1104=\"\",\"\",IF(J1104=0,\"1:0\",IF(J1104<=5,\"2:1-5\",IF(J1104<=25,\"3:6-25\",\"4:+25\"))))","v":""},{"$f":"IF(K1104=\"\",\"\",IF(K1104=0,\"1:0\",IF(K1104<=5,\"2:1-5\",IF(K1104<=25,\"3:6-25\",\"4:+25\"))))","v":""}]
[null,null,null,null,null,null,null,null,null,null,null,null,null,null,null,null,"","","","","","",""]
[null,null,null,null,null,null,null,null,null,null,null,null,null,null,null,null,"","","","","","",""]
[null,null,null,null,null,null,null,null,null,null,null,null,null,null,null,null,"","","","","","",""]
[null,null,null,null,null,null,null,null,null,null,null,null,null,null,null,null,"","","","","","",""]
[null,null,null,null,null,null,null,null,null,null,null,null,null,null,null,null,"","","","","","",""]
[null,null,null,null,null,null,null,null,null,null,null,null,null,null,null,null,"","","","","","",""]
[null,null,null,null,null,null,null,null,null,null,null,null,null,null,null,null,"","","","","","",""]
[null,null,null,null,null,null,null,null,null,null,null,null,null,null,null,null,"","","","","","",""]
[null,null,null,null,null,null,null,null,null,null,null,null,null,null,null,null,"","","","","","",""]
[null,null,null,null,null,null,null,null,null,null,null,null,null,null,null,null,"","","","","","",""]
[null,null,null,null,null,null,null,null,null,null,null,null,null,null,null,null,"","","","","","",""]
[null,null,null,null,null,null,null,null,null,null,null,null,null,null,null,null,"","","","","","",""]
[null,null,null,null,null,null,null,null,null,null,null,null,null,null,null,null,"","","","","","",""]
[null,null,null,null,null,null,null,null,null,null,null,null,null,null,null,null,"","","","","","",""]
[null,null,null,null,null,null,null,null,null,null,null,null,null,null,null,null,"","","","","","",""]
[null,null,null,null,null,null,null,null,null,null,null,null,null,null,null,null,"","","","","","",""]
[null,null,null,null,null,null,null,null,null,null,null,null,null,null,null,null,"","","","","","",""]
[null,null,null,null,null,null,null,null,null,null,null,null,null,null,null,null,"","","","","","",""]
[null,null,null,null,null,null,null,null,null,null,null,null,null,null,null,null,"","","","","","",""]
[null,null,null,null,null,null,null,null,null,null,null,null,null,null,null,null,"","","","","","",""]
[null,null,null,null,null,null,null,null,null,null,null,null,null,null,null,null,"","","","","","",""]
[null,null,null,null,null,null,null,null,null,null,null,null,null,null,null,null,"","","","","","",""]
[null,null,null,null,null,null,null,null,null,null,null,null,null,null,null,null,"","","","","","",""]
[null,null,null,null,null,null,null,null,null,null,null,null,null,null,null,null,"","","","","","",""]
[null,null,null,null,null,null,null,null,null,null,null,null,null,null,null,null,"","","","","","",""]
[null,null,null,null,null,null,null,null,null,null,null,null,null,null,null,null,"","","","","","",""]
[null,null,null,null,null,null,null,null,null,null,null,null,null,null,null,null,"","","","","","",""]
[null,null,null,null,null,null,null,null,null,null,null,null,null,null,null,null,"","","","","","",""]
[null,null,null,null,null,null,null,null,null,null,null,null,null,null,null,null,"","","","","","",""]
[null,null,null,null,null,null,null,null,null,null,null,null,null,null,null,null,"","","","","","",""]
[null,null,null,null,null,null,null,null,null,null,null,null,null,null,null,null,"","","","","","",""]
[null,null,null,null,null,null,null,null,null,null,null,null,null,null,null,null,"","","","","","",""]
[null,null,null,null,null,null,null,null,null,null,null,null,null,null,null,null,"","","","","","",""]
[null,null,null,null,null,null,null,null,null,null,null,null,null,null,null,null,"","","","","","",""]
[null,null,null,null,null,null,null,null,null,null,null,null,null,null,null,null,"","","","","","",""]
[null,null,null,null,null,null,null,null,null,null,null,null,null,null,null,null,"","","","","","",""]
[null,null,null,null,null,null,null,null,null,null,null,null,null,null,null,null,"","","","","","",""]
[null,null,null,null,null,null,null,null,null,null,null,null,null,null,null,null,"","","","","","",""]
[null,null,null,null,null,null,null,null,null,null,null,null,null,null,null,null,"","","","","","",""]
[null,null,null,null,null,null,null,null,null,null,null,null,null,null,null,null,"","","","","","",""]
[null,null,null,null,null,null,null,null,null,null,null,null,null,null,null,null,"","","","","","",""]
[null,null,null,null,null,null,null,null,null,null,null,null,null,null,null,null,"","","","","","",""]
[null,null,null,null,null,null,null,null,null,null,null,null,null,null,null,null,"","","","","","",""]
[null,null,null,null,null,null,null,null,null,null,null,null,null,null,null,null,"","","","","","",""]
[null,null,null,null,null,null,null,null,null,null,null,null,null,null,null,null,"","","","","","",""]
[null,null,null,null,null,null,null,null,null,null,null,null,null,null,null,null,"","","","","","",""]
[null,null,null,null,null,null,null,null,null,null,null,null,null,null,null,null,"","","","","","",""]
[null,null,null,null,null,null,null,null,null,null,null,null,null,null,null,null,"","","","","","",""]
[null,null,null,null,null,null,null,null,null,null,null,null,null,null,null,null,"","","","","","",""]
[null,null,null,null,null,null,null,null,null,null,null,null,null,null,null,null,"","","","","","",""]
[null,null,null,null,null,null,null,null,null,null,null,null,null,null,null,null,"","","","","","",""]
[null,null,null,null,null,null,null,null,null,null,null,null,null,null,null,null,"","","","","","",""]
[null,null,null,null,null,null,null,null,null,null,null,null,null,null,null,null,"","","","","","",""]
[null,null,null,null,null,null,null,null,null,null,null,null,null,null,null,null,"","","","","","",""]
[null,null,null,null,null,null,null,null,null,null,null,null,null,null,null,null,{"$f":"IF(ISBLANK($E1159),\"\",INT((dref-$E1159)/365.25))","v":""},"","","","","",""]
[null,null,null,null,null,null,null,null,null,null,null,null,null,null,null,null,"","","","","","",""]
[null,null,null,null,null,null,null,null,null,null,null,null,null,null,null,null,"","","","","","",""]
[null,null,null,null,null,null,null,null,null,null,null,null,null,null,null,null,"","","","","","",""]
[null,null,null,null,null,null,null,null,null,null,null,null,null,null,null,null,"","","","","","",""]
[null,null,null,null,null,null,null,null,null,null,null,null,null,null,null,null,"","","","","","",""]
[null,null,null,null,null,null,null,null,null,null,null,null,null,null,null,null,"","","","","","",""]
[null,null,null,null,null,null,null,null,null,null,null,null,null,null,null,null,"","","","","","",""]
[null,null,null,null,null,null,null,null,null,null,null,null,null,null,null,null,"",{"$f":"IF(ISBLANK($F1167),\"\",INT((dref-$F1167)/365.25))","v":""},{"$f":"IF(ISNUMBER(Q1167),INT(Q1167/10)*10&\"-\"&(INT(Q1167/10)+1)*10-1,\"\")","v":""},{"$f":"IF(ISNUMBER(Q1167),INT(Q1167/5)*5&\"-\"&INT(Q1167/5)*5+4,\"\")","v":""},"","",""]
[null,null,null,null,null,null,null,null,null,null,null,null,null,null,null,null,"","","","",{"$f":"IF(R1168=\"\",\"\",IF(R1168=0,\"1:-1an\",IF(R1168<=2,\"2:1-2\",IF(R1168<=5,\"3:3-5\",IF(R1168<=11,\"4:6-11\",IF(R1168>11,\"5:+11\"))))))","v":""},{"$f":"IF(J1168=\"\",\"\",IF(J1168=0,\"1:0\",IF(J1168<=5,\"2:1-5\",IF(J1168<=25,\"3:6-25\",\"4:+25\"))))","v":""},{"$f":"IF(K1168=\"\",\"\",IF(K1168=0,\"1:0\",IF(K1168<=5,\"2:1-5\",IF(K1168<=25,\"3:6-25\",\"4:+25\"))))","v":""}]
[null,null,null,null,null,null,null,null,null,null,null,null,null,null,null,null,"","","","","","",""]
[null,null,null,null,null,null,null,null,null,null,null,null,null,null,null,null,"","","","","","",""]
[null,null,null,null,null,null,null,null,null,null,null,null,null,null,null,null,"","","","","","",""]
[null,null,null,null,null,null,null,null,null,null,null,null,null,null,null,null,"","","","","","",""]
[null,null,null,null,null,null,null,null,null,null,null,null,null,null,null,null,"","","","","","",""]
[null,null,null,null,null,null,null,null,null,null,null,null,null,null,null,null,"","","","","","",""]
[null,null,null,null,null,null,null,null,null,null,null,null,null,null,null,null,"","","","","","",""]
[null,null,null,null,null,null,null,null,null,null,null,null,null,null,null,null,"","","","","","",""]
[null,null,null,null,null,null,null,null,null,null,null,null,null,null,null,null,"","","","","","",""]
[null,null,null,null,null,null,null,null,null,null,null,null,null,null,null,null,"","","","","","",""]
[null,null,null,null,null,null,null,null,null,null,null,null,null,null,null,null,"","","","","","",""]
[null,null,null,null,null,null,null,null,null,null,null,null,null,null,null,null,"","","","","","",""]
[null,null,null,null,null,null,null,null,null,null,null,null,null,null,null,null,"","","","","","",""]
[null,null,null,null,null,null,null,null,null,null,null,null,null,null,null,null,"","","","","","",""]
[null,null,null,null,null,null,null,null,null,null,null,null,null,null,null,null,"","","","","","",""]
[null,null,null,null,null,null,null,null,null,null,null,null,null,null,null,null,"","","","","","",""]
[null,null,null,null,null,null,null,null,null,null,null,null,null,null,null,null,"","","","","","",""]
[null,null,null,null,null,null,null,null,null,null,null,null,null,null,null,null,"","","","","","",""]
[null,null,null,null,null,null,null,null,null,null,null,null,null,null,null,null,"","","","","","",""]
[null,null,null,null,null,null,null,null,null,null,null,null,null,null,null,null,"","","","","","",""]
[null,null,null,null,null,null,null,null,null,null,null,null,null,null,null,null,"","","","","","",""]
[null,null,null,null,null,null,null,null,null,null,null,null,null,null,null,null,"","","","","","",""]
[null,null,null,null,null,null,null,null,null,null,null,null,null,null,null,null,"","","","","","",""]
[null,null,null,null,null,null,null,null,null,null,null,null,null,null,null,null,"","","","","","",""]
[null,null,null,null,null,null,null,null,null,null,null,null,null,null,null,null,"","","","","","",""]
[null,null,null,null,null,null,null,null,null,null,null,null,null,null,null,null,"","","","","","",""]
[null,null,null,null,null,null,null,null,null,null,null,null,null,null,null,null,"","","","","","",""]
[null,null,null,null,null,null,null,null,null,null,null,null,null,null,null,null,"","","","","","",""]
[null,null,null,null,null,null,null,null,null,null,null,null,null,null,null,null,"","","","","","",""]
[null,null,null,null,null,null,null,null,null,null,null,null,null,null,null,null,"","","","","","",""]
[null,null,null,null,null,null,null,null,null,null,null,null,null,null,null,null,"","","","","","",""]
[null,null,null,null,null,null,null,null,null,null,null,null,null,null,null,null,"","","","","","",""]
[null,null,null,null,null,null,null,null,null,null,null,null,null,null,null,null,"","","","","","",""]
[null,null,null,null,null,null,null,null,null,null,null,null,null,null,null,null,"","","","","","",""]
[null,null,null,null,null,null,null,null,null,null,null,null,null,null,null,null,"","","","","","",""]
[null,null,null,null,null,null,null,null,null,null,null,null,null,null,null,null,"","","","","","",""]
[null,null,null,null,null,null,null,null,null,null,null,null,null,null,null,null,"","","","","","",""]
[null,null,null,null,null,null,null,null,null,null,null,null,null,null,null,null,"","","","","","",""]
[null,null,null,null,null,null,null,null,null,null,null,null,null,null,null,null,"","","","","","",""]
[null,null,null,null,null,null,null,null,null,null,null,null,null,null,null,null,"","","","","","",""]
[null,null,null,null,null,null,null,null,null,null,null,null,null,null,null,null,"","","","","","",""]
[null,null,null,null,null,null,null,null,null,null,null,null,null,null,null,null,"","","","","","",""]
[null,null,null,null,null,null,null,null,null,null,null,null,null,null,null,null,"","","","","","",""]
[null,null,null,null,null,null,null,null,null,null,null,null,null,null,null,null,"","","","","","",""]
[null,null,null,null,null,null,null,null,null,null,null,null,null,null,null,null,"","","","","","",""]
[null,null,null,null,null,null,null,null,null,null,null,null,null,null,null,null,"","","","","","",""]
[null,null,null,null,null,null,null,null,null,null,null,null,null,null,null,null,"","","","","","",""]
[null,null,null,null,null,null,null,null,null,null,null,null,null,null,null,null,"","","","","","",""]
[null,null,null,null,null,null,null,null,null,null,null,null,null,null,null,null,"","","","","","",""]
[null,null,null,null,null,null,null,null,null,null,null,null,null,null,null,null,"","","","","","",""]
[null,null,null,null,null,null,null,null,null,null,null,null,null,null,null,null,"","","","","","",""]
[null,null,null,null,null,null,null,null,null,null,null,null,null,null,null,null,"","","","","","",""]
[null,null,null,null,null,null,null,null,null,null,null,null,null,null,null,null,"","","","","","",""]
[null,null,null,null,null,null,null,null,null,null,null,null,null,null,null,null,"","","","","","",""]
[null,null,null,null,null,null,null,null,null,null,null,null,null,null,null,null,{"$f":"IF(ISBLANK($E1223),\"\",INT((dref-$E1223)/365.25))","v":""},"","","","","",""]
[null,null,null,null,null,null,null,null,null,null,null,null,null,null,null,null,"","","","","","",""]
[null,null,null,null,null,null,null,null,null,null,null,null,null,null,null,null,"","","","","","",""]
[null,null,null,null,null,null,null,null,null,null,null,null,null,null,null,null,"","","","","","",""]
[null,null,null,null,null,null,null,null,null,null,null,null,null,null,null,null,"","","","","","",""]
[null,null,null,null,null,null,null,null,null,null,null,null,null,null,null,null,"","","","","","",""]
[null,null,null,null,null,null,null,null,null,null,null,null,null,null,null,null,"","","","","","",""]
[null,null,null,null,null,null,null,null,null,null,null,null,null,null,null,null,"","","","","","",""]
[null,null,null,null,null,null,null,null,null,null,null,null,null,null,null,null,"",{"$f":"IF(ISBLANK($F1231),\"\",INT((dref-$F1231)/365.25))","v":""},{"$f":"IF(ISNUMBER(Q1231),INT(Q1231/10)*10&\"-\"&(INT(Q1231/10)+1)*10-1,\"\")","v":""},{"$f":"IF(ISNUMBER(Q1231),INT(Q1231/5)*5&\"-\"&INT(Q1231/5)*5+4,\"\")","v":""},"","",""]
[null,null,null,null,null,null,null,null,null,null,null,null,null,null,null,null,"","","","",{"$f":"IF(R1232=\"\",\"\",IF(R1232=0,\"1:-1an\",IF(R1232<=2,\"2:1-2\",IF(R1232<=5,\"3:3-5\",IF(R1232<=11,\"4:6-11\",IF(R1232>11,\"5:+11\"))))))","v":""},{"$f":"IF(J1232=\"\",\"\",IF(J1232=0,\"1:0\",IF(J1232<=5,\"2:1-5\",IF(J1232<=25,\"3:6-25\",\"4:+25\"))))","v":""},{"$f":"IF(K1232=\"\",\"\",IF(K1232=0,\"1:0\",IF(K1232<=5,\"2:1-5\",IF(K1232<=25,\"3:6-25\",\"4:+25\"))))","v":""}]
[null,null,null,null,null,null,null,null,null,null,null,null,null,null,null,null,"","","","","","",""]
[null,null,null,null,null,null,null,null,null,null,null,null,null,null,null,null,"","","","","","",""]
[null,null,null,null,null,null,null,null,null,null,null,null,null,null,null,null,"","","","","","",""]
[null,null,null,null,null,null,null,null,null,null,null,null,null,null,null,null,"","","","","","",""]
[null,null,null,null,null,null,null,null,null,null,null,null,null,null,null,null,"","","","","","",""]
[null,null,null,null,null,null,null,null,null,null,null,null,null,null,null,null,"","","","","","",""]
[null,null,null,null,null,null,null,null,null,null,null,null,null,null,null,null,"","","","","","",""]
[null,null,null,null,null,null,null,null,null,null,null,null,null,null,null,null,"","","","","","",""]
[null,null,null,null,null,null,null,null,null,null,null,null,null,null,null,null,"","","","","","",""]
[null,null,null,null,null,null,null,null,null,null,null,null,null,null,null,null,"","","","","","",""]
[null,null,null,null,null,null,null,null,null,null,null,null,null,null,null,null,"","","","","","",""]
[null,null,null,null,null,null,null,null,null,null,null,null,null,null,null,null,"","","","","","",""]
[null,null,null,null,null,null,null,null,null,null,null,null,null,null,null,null,"","","","","","",""]
[null,null,null,null,null,null,null,null,null,null,null,null,null,null,null,null,"","","","","","",""]
[null,null,null,null,null,null,null,null,null,null,null,null,null,null,null,null,"","","","","","",""]
[null,null,null,null,null,null,null,null,null,null,null,null,null,null,null,null,"","","","","","",""]
[null,null,null,null,null,null,null,null,null,null,null,null,null,null,null,null,"","","","","","",""]
[null,null,null,null,null,null,null,null,null,null,null,null,null,null,null,null,"","","","","","",""]
[null,null,null,null,null,null,null,null,null,null,null,null,null,null,null,null,"","","","","","",""]
[null,null,null,null,null,null,null,null,null,null,null,null,null,null,null,null,"","","","","","",""]
[null,null,null,null,null,null,null,null,null,null,null,null,null,null,null,null,"","","","","","",""]
[null,null,null,null,null,null,null,null,null,null,null,null,null,null,null,null,"","","","","","",""]
[null,null,null,null,null,null,null,null,null,null,null,null,null,null,null,null,"","","","","","",""]
[null,null,null,null,null,null,null,null,null,null,null,null,null,null,null,null,"","","","","","",""]
[null,null,null,null,null,null,null,null,null,null,null,null,null,null,null,null,"","","","","","",""]
[null,null,null,null,null,null,null,null,null,null,null,null,null,null,null,null,"","","","","","",""]
[null,null,null,null,null,null,null,null,null,null,null,null,null,null,null,null,"","","","","","",""]
[null,null,null,null,null,null,null,null,null,null,null,null,null,null,null,null,"","","","","","",""]
[null,null,null,null,null,null,null,null,null,null,null,null,null,null,null,null,"","","","","","",""]
[null,null,null,null,null,null,null,null,null,null,null,null,null,null,null,null,"","","","","","",""]
[null,null,null,null,null,null,null,null,null,null,null,null,null,null,null,null,"","","","","","",""]
[null,null,null,null,null,null,null,null,null,null,null,null,null,null,null,null,"","","","","","",""]
[null,null,null,null,null,null,null,null,null,null,null,null,null,null,null,null,"","","","","","",""]
[null,null,null,null,null,null,null,null,null,null,null,null,null,null,null,null,"","","","","","",""]
[null,null,null,null,null,null,null,null,null,null,null,null,null,null,null,null,"","","","","","",""]
[null,null,null,null,null,null,null,null,null,null,null,null,null,null,null,null,"","","","","","",""]
[null,null,null,null,null,null,null,null,null,null,null,null,null,null,null,null,"","","","","","",""]
[null,null,null,null,null,null,null,null,null,null,null,null,null,null,null,null,"","","","","","",""]
[null,null,null,null,null,null,null,null,null,null,null,null,null,null,null,null,"","","","","","",""]
[null,null,null,null,null,null,null,null,null,null,null,null,null,null,null,null,"","","","","","",""]
[null,null,null,null,null,null,null,null,null,null,null,null,null,null,null,null,"","","","","","",""]
[null,null,null,null,null,null,null,null,null,null,null,null,null,null,null,null,"","","","","","",""]
[null,null,null,null,null,null,null,null,null,null,null,null,null,null,null,null,"","","","","","",""]
[null,null,null,null,null,null,null,null,null,null,null,null,null,null,null,null,"","","","","","",""]
[null,null,null,null,null,null,null,null,null,null,null,null,null,null,null,null,"","","","","","",""]
[null,null,null,null,null,null,null,null,null,null,null,null,null,null,null,null,"","","","","","",""]
[null,null,null,null,null,null,null,null,null,null,null,null,null,null,null,null,"","","","","","",""]
[null,null,null,null,null,null,null,null,null,null,null,null,null,null,null,null,"","","","","","",""]
[null,null,null,null,null,null,null,null,null,null,null,null,null,null,null,null,"","","","","","",""]
[null,null,null,null,null,null,null,null,null,null,null,null,null,null,null,null,"","","","","","",""]
[null,null,null,null,null,null,null,null,null,null,null,null,null,null,null,null,"","","","","","",""]
[null,null,null,null,null,null,null,null,null,null,null,null,null,null,null,null,"","","","","","",""]
[null,null,null,null,null,null,null,null,null,null,null,null,null,null,null,null,"","","","","","",""]
[null,null,null,null,null,null,null,null,null,null,null,null,null,null,null,null,"","","","","","",""]
[null,null,null,null,null,null,null,null,null,null,null,null,null,null,null,null,{"$f":"IF(ISBLANK($E1287),\"\",INT((dref-$E1287)/365.25))","v":""},"","","","","",""]
[null,null,null,null,null,null,null,null,null,null,null,null,null,null,null,null,"","","","","","",""]
[null,null,null,null,null,null,null,null,null,null,null,null,null,null,null,null,"","","","","","",""]
[null,null,null,null,null,null,null,null,null,null,null,null,null,null,null,null,"","","","","","",""]
[null,null,null,null,null,null,null,null,null,null,null,null,null,null,null,null,"","","","","","",""]
[null,null,null,null,null,null,null,null,null,null,null,null,null,null,null,null,"","","","","","",""]
[null,null,null,null,null,null,null,null,null,null,null,null,null,null,null,null,"","","","","","",""]
[null,null,null,null,null,null,null,null,null,null,null,null,null,null,null,null,"","","","","","",""]
[null,null,null,null,null,null,null,null,null,null,null,null,null,null,null,null,"",{"$f":"IF(ISBLANK($F1295),\"\",INT((dref-$F1295)/365.25))","v":""},{"$f":"IF(ISNUMBER(Q1295),INT(Q1295/10)*10&\"-\"&(INT(Q1295/10)+1)*10-1,\"\")","v":""},{"$f":"IF(ISNUMBER(Q1295),INT(Q1295/5)*5&\"-\"&INT(Q1295/5)*5+4,\"\")","v":""},"","",""]
[null,null,null,null,null,null,null,null,null,null,null,null,null,null,null,null,"","","","",{"$f":"IF(R1296=\"\",\"\",IF(R1296=0,\"1:-1an\",IF(R1296<=2,\"2:1-2\",IF(R1296<=5,\"3:3-5\",IF(R1296<=11,\"4:6-11\",IF(R1296>11,\"5:+11\"))))))","v":""},{"$f":"IF(J1296=\"\",\"\",IF(J1296=0,\"1:0\",IF(J1296<=5,\"2:1-5\",IF(J1296<=25,\"3:6-25\",\"4:+25\"))))","v":""},{"$f":"IF(K1296=\"\",\"\",IF(K1296=0,\"1:0\",IF(K1296<=5,\"2:1-5\",IF(K1296<=25,\"3:6-25\",\"4:+25\"))))","v":""}]
[null,null,null,null,null,null,null,null,null,null,null,null,null,null,null,null,"","","","","","",""]
[null,null,null,null,null,null,null,null,null,null,null,null,null,null,null,null,"","","","","","",""]
[null,null,null,null,null,null,null,null,null,null,null,null,null,null,null,null,"","","","","","",""]
[null,null,null,null,null,null,null,null,null,null,null,null,null,null,null,null,"","","","","","",""]
[null,null,null,null,null,null,null,null,null,null,null,null,null,null,null,null,"","","","","","",""]
[null,null,null,null,null,null,null,null,null,null,null,null,null,null,null,null,"","","","","","",""]
[null,null,null,null,null,null,null,null,null,null,null,null,null,null,null,null,"","","","","","",""]
[null,null,null,null,null,null,null,null,null,null,null,null,null,null,null,null,"","","","","","",""]
[null,null,null,null,null,null,null,null,null,null,null,null,null,null,null,null,"","","","","","",""]
[null,null,null,null,null,null,null,null,null,null,null,null,null,null,null,null,"","","","","","",""]
[null,null,null,null,null,null,null,null,null,null,null,null,null,null,null,null,"","","","","","",""]
[null,null,null,null,null,null,null,null,null,null,null,null,null,null,null,null,"","","","","","",""]
[null,null,null,null,null,null,null,null,null,null,null,null,null,null,null,null,"","","","","","",""]
[null,null,null,null,null,null,null,null,null,null,null,null,null,null,null,null,"","","","","","",""]
[null,null,null,null,null,null,null,null,null,null,null,null,null,null,null,null,"","","","","","",""]
[null,null,null,null,null,null,null,null,null,null,null,null,null,null,null,null,"","","","","","",""]
[null,null,null,null,null,null,null,null,null,null,null,null,null,null,null,null,"","","","","","",""]
[null,null,null,null,null,null,null,null,null,null,null,null,null,null,null,null,"","","","","","",""]
[null,null,null,null,null,null,null,null,null,null,null,null,null,null,null,null,"","","","","","",""]
[null,null,null,null,null,null,null,null,null,null,null,null,null,null,null,null,"","","","","","",""]
[null,null,null,null,null,null,null,null,null,null,null,null,null,null,null,null,"","","","","","",""]
[null,null,null,null,null,null,null,null,null,null,null,null,null,null,null,null,"","","","","","",""]
[null,null,null,null,null,null,null,null,null,null,null,null,null,null,null,null,"","","","","","",""]
[null,null,null,null,null,null,null,null,null,null,null,null,null,null,null,null,"","","","","","",""]
[null,null,null,null,null,null,null,null,null,null,null,null,null,null,null,null,"","","","","","",""]
[null,null,null,null,null,null,null,null,null,null,null,null,null,null,null,null,"","","","","","",""]
[null,null,null,null,null,null,null,null,null,null,null,null,null,null,null,null,"","","","","","",""]
[null,null,null,null,null,null,null,null,null,null,null,null,null,null,null,null,"","","","","","",""]
[null,null,null,null,null,null,null,null,null,null,null,null,null,null,null,null,"","","","","","",""]
[null,null,null,null,null,null,null,null,null,null,null,null,null,null,null,null,"","","","","","",""]
[null,null,null,null,null,null,null,null,null,null,null,null,null,null,null,null,"","","","","","",""]
[null,null,null,null,null,null,null,null,null,null,null,null,null,null,null,null,"","","","","","",""]
[null,null,null,null,null,null,null,null,null,null,null,null,null,null,null,null,"","","","","","",""]
[null,null,null,null,null,null,null,null,null,null,null,null,null,null,null,null,"","","","","","",""]
[null,null,null,null,null,null,null,null,null,null,null,null,null,null,null,null,"","","","","","",""]
[null,null,null,null,null,null,null,null,null,null,null,null,null,null,null,null,"","","","","","",""]
[null,null,null,null,null,null,null,null,null,null,null,null,null,null,null,null,"","","","","","",""]
[null,null,null,null,null,null,null,null,null,null,null,null,null,null,null,null,"","","","","","",""]
[null,null,null,null,null,null,null,null,null,null,null,null,null,null,null,null,"","","","","","",""]
[null,null,null,null,null,null,null,null,null,null,null,null,null,null,null,null,"","","","","","",""]
[null,null,null,null,null,null,null,null,null,null,null,null,null,null,null,null,"","","","","","",""]
[null,null,null,null,null,null,null,null,null,null,null,null,null,null,null,null,"","","","","","",""]
[null,null,null,null,null,null,null,null,null,null,null,null,null,null,null,null,"","","","","","",""]
[null,null,null,null,null,null,null,null,null,null,null,null,null,null,null,null,"","","","","","",""]
[null,null,null,null,null,null,null,null,null,null,null,null,null,null,null,null,"","","","","","",""]
[null,null,null,null,null,null,null,null,null,null,null,null,null,null,null,null,"","","","","","",""]
[null,null,null,null,null,null,null,null,null,null,null,null,null,null,null,null,"","","","","","",""]
[null,null,null,null,null,null,null,null,null,null,null,null,null,null,null,null,"","","","","","",""]
[null,null,null,null,null,null,null,null,null,null,null,null,null,null,null,null,"","","","","","",""]
[null,null,null,null,null,null,null,null,null,null,null,null,null,null,null,null,"","","","","","",""]
[null,null,null,null,null,null,null,null,null,null,null,null,null,null,null,null,"","","","","","",""]
[null,null,null,null,null,null,null,null,null,null,null,null,null,null,null,null,"","","","","","",""]
[null,null,null,null,null,null,null,null,null,null,null,null,null,null,null,null,"","","","","","",""]
[null,null,null,null,null,null,null,null,null,null,null,null,null,null,null,null,"","","","","","",""]
[null,null,null,null,null,null,null,null,null,null,null,null,null,null,null,null,{"$f":"IF(ISBLANK($E1351),\"\",INT((dref-$E1351)/365.25))","v":""},"","","","","",""]
[null,null,null,null,null,null,null,null,null,null,null,null,null,null,null,null,"","","","","","",""]
[null,null,null,null,null,null,null,null,null,null,null,null,null,null,null,null,"","","","","","",""]
[null,null,null,null,null,null,null,null,null,null,null,null,null,null,null,null,"","","","","","",""]
[null,null,null,null,null,null,null,null,null,null,null,null,null,null,null,null,"","","","","","",""]
[null,null,null,null,null,null,null,null,null,null,null,null,null,null,null,null,"","","","","","",""]
[null,null,null,null,null,null,null,null,null,null,null,null,null,null,null,null,"","","","","","",""]
[null,null,null,null,null,null,null,null,null,null,null,null,null,null,null,null,"","","","","","",""]
[null,null,null,null,null,null,null,null,null,null,null,null,null,null,null,null,"",{"$f":"IF(ISBLANK($F1359),\"\",INT((dref-$F1359)/365.25))","v":""},{"$f":"IF(ISNUMBER(Q1359),INT(Q1359/10)*10&\"-\"&(INT(Q1359/10)+1)*10-1,\"\")","v":""},{"$f":"IF(ISNUMBER(Q1359),INT(Q1359/5)*5&\"-\"&INT(Q1359/5)*5+4,\"\")","v":""},"","",""]
[null,null,null,null,null,null,null,null,null,null,null,null,null,null,null,null,"","","","",{"$f":"IF(R1360=\"\",\"\",IF(R1360=0,\"1:-1an\",IF(R1360<=2,\"2:1-2\",IF(R1360<=5,\"3:3-5\",IF(R1360<=11,\"4:6-11\",IF(R1360>11,\"5:+11\"))))))","v":""},{"$f":"IF(J1360=\"\",\"\",IF(J1360=0,\"1:0\",IF(J1360<=5,\"2:1-5\",IF(J1360<=25,\"3:6-25\",\"4:+25\"))))","v":""},{"$f":"IF(K1360=\"\",\"\",IF(K1360=0,\"1:0\",IF(K1360<=5,\"2:1-5\",IF(K1360<=25,\"3:6-25\",\"4:+25\"))))","v":""}]
[null,null,null,null,null,null,null,null,null,null,null,null,null,null,null,null,"","","","","","",""]
[null,null,null,null,null,null,null,null,null,null,null,null,null,null,null,null,"","","","","","",""]
[null,null,null,null,null,null,null,null,null,null,null,null,null,null,null,null,"","","","","","",""]
[null,null,null,null,null,null,null,null,null,null,null,null,null,null,null,null,"","","","","","",""]
[null,null,null,null,null,null,null,null,null,null,null,null,null,null,null,null,"","","","","","",""]
[null,null,null,null,null,null,null,null,null,null,null,null,null,null,null,null,"","","","","","",""]
[null,null,null,null,null,null,null,null,null,null,null,null,null,null,null,null,"","","","","","",""]
[null,null,null,null,null,null,null,null,null,null,null,null,null,null,null,null,"","","","","","",""]
[null,null,null,null,null,null,null,null,null,null,null,null,null,null,null,null,"","","","","","",""]
[null,null,null,null,null,null,null,null,null,null,null,null,null,null,null,null,"","","","","","",""]
[null,null,null,null,null,null,null,null,null,null,null,null,null,null,null,null,"","","","","","",""]
[null,null,null,null,null,null,null,null,null,null,null,null,null,null,null,null,"","","","","","",""]
[null,null,null,null,null,null,null,null,null,null,null,null,null,null,null,null,"","","","","","",""]
[null,null,null,null,null,null,null,null,null,null,null,null,null,null,null,null,"","","","","","",""]
[null,null,null,null,null,null,null,null,null,null,null,null,null,null,null,null,"","","","","","",""]
[null,null,null,null,null,null,null,null,null,null,null,null,null,null,null,null,"","","","","","",""]
[null,null,null,null,null,null,null,null,null,null,null,null,null,null,null,null,"","","","","","",""]
[null,null,null,null,null,null,null,null,null,null,null,null,null,null,null,null,"","","","","","",""]
[null,null,null,null,null,null,null,null,null,null,null,null,null,null,null,null,"","","","","","",""]
[null,null,null,null,null,null,null,null,null,null,null,null,null,null,null,null,"","","","","","",""]
[null,null,null,null,null,null,null,null,null,null,null,null,null,null,null,null,"","","","","","",""]
[null,null,null,null,null,null,null,null,null,null,null,null,null,null,null,null,"","","","","","",""]
[null,null,null,null,null,null,null,null,null,null,null,null,null,null,null,null,"","","","","","",""]
[null,null,null,null,null,null,null,null,null,null,null,null,null,null,null,null,"","","","","","",""]
[null,null,null,null,null,null,null,null,null,null,null,null,null,null,null,null,"","","","","","",""]
[null,null,null,null,null,null,null,null,null,null,null,null,null,null,null,null,"","","","","","",""]
[null,null,null,null,null,null,null,null,null,null,null,null,null,null,null,null,"","","","","","",""]
[null,null,null,null,null,null,null,null,null,null,null,null,null,null,null,null,"","","","","","",""]
[null,null,null,null,null,null,null,null,null,null,null,null,null,null,null,null,"","","","","","",""]
[null,null,null,null,null,null,null,null,null,null,null,null,null,null,null,null,"","","","","","",""]
[null,null,null,null,null,null,null,null,null,null,null,null,null,null,null,null,"","","","","","",""]
[null,null,null,null,null,null,null,null,null,null,null,null,null,null,null,null,"","","","","","",""]
[null,null,null,null,null,null,null,null,null,null,null,null,null,null,null,null,"","","","","","",""]
[null,null,null,null,null,null,null,null,null,null,null,null,null,null,null,null,"","","","","","",""]
[null,null,null,null,null,null,null,null,null,null,null,null,null,null,null,null,"","","","","","",""]
[null,null,null,null,null,null,null,null,null,null,null,null,null,null,null,null,"","","","","","",""]
[null,null,null,null,null,null,null,null,null,null,null,null,null,null,null,null,"","","","","","",""]
[null,null,null,null,null,null,null,null,null,null,null,null,null,null,null,null,"","","","","","",""]
[null,null,null,null,null,null,null,null,null,null,null,null,null,null,null,null,"","","","","","",""]
[null,null,null,null,null,null,null,null,null,null,null,null,null,null,null,null,"","","","","","",""]
[null,null,null,null,null,null,null,null,null,null,null,null,null,null,null,null,"","","","","","",""]
[null,null,null,null,null,null,null,null,null,null,null,null,null,null,null,null,"","","","","","",""]
[null,null,null,null,null,null,null,null,null,null,null,null,null,null,null,null,"","","","","","",""]
[null,null,null,null,null,null,null,null,null,null,null,null,null,null,null,null,"","","","","","",""]
[null,null,null,null,null,null,null,null,null,null,null,null,null,null,null,null,"","","","","","",""]
[null,null,null,null,null,null,null,null,null,null,null,null,null,null,null,null,"","","","","","",""]
[null,null,null,null,null,null,null,null,null,null,null,null,null,null,null,null,"","","","","","",""]
[null,null,null,null,null,null,null,null,null,null,null,null,null,null,null,null,"","","","","","",""]
[null,null,null,null,null,null,null,null,null,null,null,null,null,null,null,null,"","","","","","",""]
[null,null,null,null,null,null,null,null,null,null,null,null,null,null,null,null,"","","","","","",""]
[null,null,null,null,null,null,null,null,null,null,null,null,null,null,null,null,"","","","","","",""]
[null,null,null,null,null,null,null,null,null,null,null,null,null,null,null,null,"","","","","","",""]
[null,null,null,null,null,null,null,null,null,null,null,null,null,null,null,null,"","","","","","",""]
[null,null,null,null,null,null,null,null,null,null,null,null,null,null,null,null,"","","","","","",""]
[null,null,null,null,null,null,null,null,null,null,null,null,null,null,null,null,{"$f":"IF(ISBLANK($E1415),\"\",INT((dref-$E1415)/365.25))","v":""},"","","","","",""]
[null,null,null,null,null,null,null,null,null,null,null,null,null,null,null,null,"","","","","","",""]
[null,null,null,null,null,null,null,null,null,null,null,null,null,null,null,null,"","","","","","",""]
[null,null,null,null,null,null,null,null,null,null,null,null,null,null,null,null,"","","","","","",""]
[null,null,null,null,null,null,null,null,null,null,null,null,null,null,null,null,"","","","","","",""]
[null,null,null,null,null,null,null,null,null,null,null,null,null,null,null,null,"","","","","","",""]
[null,null,null,null,null,null,null,null,null,null,null,null,null,null,null,null,"","","","","","",""]
[null,null,null,null,null,null,null,null,null,null,null,null,null,null,null,null,"","","","","","",""]
[null,null,null,null,null,null,null,null,null,null,null,null,null,null,null,null,"",{"$f":"IF(ISBLANK($F1423),\"\",INT((dref-$F1423)/365.25))","v":""},{"$f":"IF(ISNUMBER(Q1423),INT(Q1423/10)*10&\"-\"&(INT(Q1423/10)+1)*10-1,\"\")","v":""},{"$f":"IF(ISNUMBER(Q1423),INT(Q1423/5)*5&\"-\"&INT(Q1423/5)*5+4,\"\")","v":""},"","",""]
[null,null,null,null,null,null,null,null,null,null,null,null,null,null,null,null,"","","","",{"$f":"IF(R1424=\"\",\"\",IF(R1424=0,\"1:-1an\",IF(R1424<=2,\"2:1-2\",IF(R1424<=5,\"3:3-5\",IF(R1424<=11,\"4:6-11\",IF(R1424>11,\"5:+11\"))))))","v":""},{"$f":"IF(J1424=\"\",\"\",IF(J1424=0,\"1:0\",IF(J1424<=5,\"2:1-5\",IF(J1424<=25,\"3:6-25\",\"4:+25\"))))","v":""},{"$f":"IF(K1424=\"\",\"\",IF(K1424=0,\"1:0\",IF(K1424<=5,\"2:1-5\",IF(K1424<=25,\"3:6-25\",\"4:+25\"))))","v":""}]
[null,null,null,null,null,null,null,null,null,null,null,null,null,null,null,null,"","","","","","",""]
[null,null,null,null,null,null,null,null,null,null,null,null,null,null,null,null,"","","","","","",""]
[null,null,null,null,null,null,null,null,null,null,null,null,null,null,null,null,"","","","","","",""]
[null,null,null,null,null,null,null,null,null,null,null,null,null,null,null,null,"","","","","","",""]
[null,null,null,null,null,null,null,null,null,null,null,null,null,null,null,null,"","","","","","",""]
[null,null,null,null,null,null,null,null,null,null,null,null,null,null,null,null,"","","","","","",""]
[null,null,null,null,null,null,null,null,null,null,null,null,null,null,null,null,"","","","","","",""]
[null,null,null,null,null,null,null,null,null,null,null,null,null,null,null,null,"","","","","","",""]
[null,null,null,null,null,null,null,null,null,null,null,null,null,null,null,null,"","","","","","",""]
[null,null,null,null,null,null,null,null,null,null,null,null,null,null,null,null,"","","","","","",""]
[null,null,null,null,null,null,null,null,null,null,null,null,null,null,null,null,"","","","","","",""]
[null,null,null,null,null,null,null,null,null,null,null,null,null,null,null,null,"","","","","","",""]
[null,null,null,null,null,null,null,null,null,null,null,null,null,null,null,null,"","","","","","",""]
[null,null,null,null,null,null,null,null,null,null,null,null,null,null,null,null,"","","","","","",""]
[null,null,null,null,null,null,null,null,null,null,null,null,null,null,null,null,"","","","","","",""]
[null,null,null,null,null,null,null,null,null,null,null,null,null,null,null,null,"","","","","","",""]
[null,null,null,null,null,null,null,null,null,null,null,null,null,null,null,null,"","","","","","",""]
[null,null,null,null,null,null,null,null,null,null,null,null,null,null,null,null,"","","","","","",""]
[null,null,null,null,null,null,null,null,null,null,null,null,null,null,null,null,"","","","","","",""]
[null,null,null,null,null,null,null,null,null,null,null,null,null,null,null,null,"","","","","","",""]
[null,null,null,null,null,null,null,null,null,null,null,null,null,null,null,null,"","","","","","",""]
[null,null,null,null,null,null,null,null,null,null,null,null,null,null,null,null,"","","","","","",""]
[null,null,null,null,null,null,null,null,null,null,null,null,null,null,null,null,"","","","","","",""]
[null,null,null,null,null,null,null,null,null,null,null,null,null,null,null,null,"","","","","","",""]
[null,null,null,null,null,null,null,null,null,null,null,null,null,null,null,null,"","","","","","",""]
[null,null,null,null,null,null,null,null,null,null,null,null,null,null,null,null,"","","","","","",""]
[null,null,null,null,null,null,null,null,null,null,null,null,null,null,null,null,"","","","","","",""]
[null,null,null,null,null,null,null,null,null,null,null,null,null,null,null,null,"","","","","","",""]
[null,null,null,null,null,null,null,null,null,null,null,null,null,null,null,null,"","","","","","",""]
[null,null,null,null,null,null,null,null,null,null,null,null,null,null,null,null,"","","","","","",""]
[null,null,null,null,null,null,null,null,null,null,null,null,null,null,null,null,"","","","","","",""]
[null,null,null,null,null,null,null,null,null,null,null,null,null,null,null,null,"","","","","","",""]
[null,null,null,null,null,null,null,null,null,null,null,null,null,null,null,null,"","","","","","",""]
[null,null,null,null,null,null,null,null,null,null,null,null,null,null,null,null,"","","","","","",""]
[null,null,null,null,null,null,null,null,null,null,null,null,null,null,null,null,"","","","","","",""]
[null,null,null,null,null,null,null,null,null,null,null,null,null,null,null,null,"","","","","","",""]
[null,null,null,null,null,null,null,null,null,null,null,null,null,null,null,null,"","","","","","",""]
[null,null,null,null,null,null,null,null,null,null,null,null,null,null,null,null,"","","","","","",""]
[null,null,null,null,null,null,null,null,null,null,null,null,null,null,null,null,"","","","","","",""]
[null,null,null,null,null,null,null,null,null,null,null,null,null,null,null,null,"","","","","","",""]
[null,null,null,null,null,null,null,null,null,null,null,null,null,null,null,null,"","","","","","",""]
[null,null,null,null,null,null,null,null,null,null,null,null,null,null,null,null,"","","","","","",""]
[null,null,null,null,null,null,null,null,null,null,null,null,null,null,null,null,"","","","","","",""]
[null,null,null,null,null,null,null,null,null,null,null,null,null,null,null,null,"","","","","","",""]
[null,null,null,null,null,null,null,null,null,null,null,null,null,null,null,null,"","","","","","",""]
[null,null,null,null,null,null,null,null,null,null,null,null,null,null,null,null,"","","","","","",""]
[null,null,null,null,null,null,null,null,null,null,null,null,null,null,null,null,"","","","","","",""]
[null,null,null,null,null,null,null,null,null,null,null,null,null,null,null,null,"","","","","","",""]
[null,null,null,null,null,null,null,null,null,null,null,null,null,null,null,null,"","","","","","",""]
[null,null,null,null,null,null,null,null,null,null,null,null,null,null,null,null,"","","","","","",""]
[null,null,null,null,null,null,null,null,null,null,null,null,null,null,null,null,"","","","","","",""]
[null,null,null,null,null,null,null,null,null,null,null,null,null,null,null,null,"","","","","","",""]
[null,null,null,null,null,null,null,null,null,null,null,null,null,null,null,null,"","","","","","",""]
[null,null,null,null,null,null,null,null,null,null,null,null,null,null,null,null,"","","","","","",""]
[null,null,null,null,null,null,null,null,null,null,null,null,null,null,null,null,{"$f":"IF(ISBLANK($E1479),\"\",INT((dref-$E1479)/365.25))","v":""},"","","","","",""]
[null,null,null,null,null,null,null,null,null,null,null,null,null,null,null,null,"","","","","","",""]
[null,null,null,null,null,null,null,null,null,null,null,null,null,null,null,null,"","","","","","",""]
[null,null,null,null,null,null,null,null,null,null,null,null,null,null,null,null,"","","","","","",""]
[null,null,null,null,null,null,null,null,null,null,null,null,null,null,null,null,"","","","","","",""]
[null,null,null,null,null,null,null,null,null,null,null,null,null,null,null,null,"","","","","","",""]
[null,null,null,null,null,null,null,null,null,null,null,null,null,null,null,null,"","","","","","",""]
[null,null,null,null,null,null,null,null,null,null,null,null,null,null,null,null,"","","","","","",""]
[null,null,null,null,null,null,null,null,null,null,null,null,null,null,null,null,"",{"$f":"IF(ISBLANK($F1487),\"\",INT((dref-$F1487)/365.25))","v":""},{"$f":"IF(ISNUMBER(Q1487),INT(Q1487/10)*10&\"-\"&(INT(Q1487/10)+1)*10-1,\"\")","v":""},{"$f":"IF(ISNUMBER(Q1487),INT(Q1487/5)*5&\"-\"&INT(Q1487/5)*5+4,\"\")","v":""},"","",""]
[null,null,null,null,null,null,null,null,null,null,null,null,null,null,null,null,"","","","",{"$f":"IF(R1488=\"\",\"\",IF(R1488=0,\"1:-1an\",IF(R1488<=2,\"2:1-2\",IF(R1488<=5,\"3:3-5\",IF(R1488<=11,\"4:6-11\",IF(R1488>11,\"5:+11\"))))))","v":""},{"$f":"IF(J1488=\"\",\"\",IF(J1488=0,\"1:0\",IF(J1488<=5,\"2:1-5\",IF(J1488<=25,\"3:6-25\",\"4:+25\"))))","v":""},{"$f":"IF(K1488=\"\",\"\",IF(K1488=0,\"1:0\",IF(K1488<=5,\"2:1-5\",IF(K1488<=25,\"3:6-25\",\"4:+25\"))))","v":""}]
[null,null,null,null,null,null,null,null,null,null,null,null,null,null,null,null,"","","","","","",""]
[null,null,null,null,null,null,null,null,null,null,null,null,null,null,null,null,"","","","","","",""]
[null,null,null,null,null,null,null,null,null,null,null,null,null,null,null,null,"","","","","","",""]
[null,null,null,null,null,null,null,null,null,null,null,null,null,null,null,null,"","","","","","",""]
[null,null,null,null,null,null,null,null,null,null,null,null,null,null,null,null,"","","","","","",""]
[null,null,null,null,null,null,null,null,null,null,null,null,null,null,null,null,"","","","","","",""]
[null,null,null,null,null,null,null,null,null,null,null,null,null,null,null,null,"","","","","","",""]
[null,null,null,null,null,null,null,null,null,null,null,null,null,null,null,null,"","","","","","",""]
[null,null,null,null,null,null,null,null,null,null,null,null,null,null,null,null,"","","","","","",""]
[null,null,null,null,null,null,null,null,null,null,null,null,null,null,null,null,"","","","","","",""]
[null,null,null,null,null,null,null,null,null,null,null,null,null,null,null,null,"","","","","","",""]
[null,null,null,null,null,null,null,null,null,null,null,null,null,null,null,null,"","","","","","",""]
[null,null,null,null,null,null,null,null,null,null,null,null,null,null,null,null,"","","","","","",""]
[null,null,null,null,null,null,null,null,null,null,null,null,null,null,null,null,"","","","","","",""]
[null,null,null,null,null,null,null,null,null,null,null,null,null,null,null,null,"","","","","","",""]
[null,null,null,null,null,null,null,null,null,null,null,null,null,null,null,null,"","","","","","",""]
[null,null,null,null,null,null,null,null,null,null,null,null,null,null,null,null,"","","","","","",""]
[null,null,null,null,null,null,null,null,null,null,null,null,null,null,null,null,"","","","","","",""]
[null,null,null,null,null,null,null,null,null,null,null,null,null,null,null,null,"","","","","","",""]
[null,null,null,null,null,null,null,null,null,null,null,null,null,null,null,null,"","","","","","",""]
[null,null,null,null,null,null,null,null,null,null,null,null,null,null,null,null,"","","","","","",""]
[null,null,null,null,null,null,null,null,null,null,null,null,null,null,null,null,"","","","","","",""]
[null,null,null,null,null,null,null,null,null,null,null,null,null,null,null,null,"","","","","","",""]
[null,null,null,null,null,null,null,null,null,null,null,null,null,null,null,null,"","","","","","",""]
[null,null,null,null,null,null,null,null,null,null,null,null,null,null,null,null,"","","","","","",""]
[null,null,null,null,null,null,null,null,null,null,null,null,null,null,null,null,"","","","","","",""]
[null,null,null,null,null,null,null,null,null,null,null,null,null,null,null,null,"","","","","","",""]
[null,null,null,null,null,null,null,null,null,null,null,null,null,null,null,null,"","","","","","",""]
[null,null,null,null,null,null,null,null,null,null,null,null,null,null,null,null,"","","","","","",""]
[null,null,null,null,null,null,null,null,null,null,null,null,null,null,null,null,"","","","","","",""]
[null,null,null,null,null,null,null,null,null,null,null,null,null,null,null,null,"","","","","","",""]
[null,null,null,null,null,null,null,null,null,null,null,null,null,null,null,null,"","","","","","",""]
[null,null,null,null,null,null,null,null,null,null,null,null,null,null,null,null,"","","","","","",""]
[null,null,null,null,null,null,null,null,null,null,null,null,null,null,null,null,"","","","","","",""]
[null,null,null,null,null,null,null,null,null,null,null,null,null,null,null,null,"","","","","","",""]
[null,null,null,null,null,null,null,null,null,null,null,null,null,null,null,null,"","","","","","",""]
[null,null,null,null,null,null,null,null,null,null,null,null,null,null,null,null,"","","","","","",""]
[null,null,null,null,null,null,null,null,null,null,null,null,null,null,null,null,"","","","","","",""]
[null,null,null,null,null,null,null,null,null,null,null,null,null,null,null,null,"","","","","","",""]
[null,null,null,null,null,null,null,null,null,null,null,null,null,null,null,null,"","","","","","",""]
[null,null,null,null,null,null,null,null,null,null,null,null,null,null,null,null,"","","","","","",""]
[null,null,null,null,null,null,null,null,null,null,null,null,null,null,null,null,"","","","","","",""]
[null,null,null,null,null,null,null,null,null,null,null,null,null,null,null,null,"","","","","","",""]
[null,null,null,null,null,null,null,null,null,null,null,null,null,null,null,null,"","","","","","",""]
[null,null,null,null,null,null,null,null,null,null,null,null,null,null,null,null,"","","","","","",""]
[null,null,null,null,null,null,null,null,null,null,null,null,null,null,null,null,"","","","","","",""]
[null,null,null,null,null,null,null,null,null,null,null,null,null,null,null,null,"","","","","","",""]
[null,null,null,null,null,null,null,null,null,null,null,null,null,null,null,null,"","","","","","",""]
[null,null,null,null,null,null,null,null,null,null,null,null,null,null,null,null,"","","","","","",""]
[null,null,null,null,null,null,null,null,null,null,null,null,null,null,null,null,"","","","","","",""]
[null,null,null,null,null,null,null,null,null,null,null,null,null,null,null,null,"","","","","","",""]
[null,null,null,null,null,null,null,null,null,null,null,null,null,null,null,null,"","","","","","",""]
[null,null,null,null,null,null,null,null,null,null,null,null,null,null,null,null,"","","","","","",""]
[null,null,null,null,null,null,null,null,null,null,null,null,null,null,null,null,"","","","","","",""]
[null,null,null,null,null,null,null,null,null,null,null,null,null,null,null,null,{"$f":"IF(ISBLANK($E1543),\"\",INT((dref-$E1543)/365.25))","v":""},"","","","","",""]
[null,null,null,null,null,null,null,null,null,null,null,null,null,null,null,null,"","","","","","",""]
[null,null,null,null,null,null,null,null,null,null,null,null,null,null,null,null,"","","","","","",""]
[null,null,null,null,null,null,null,null,null,null,null,null,null,null,null,null,"","","","","","",""]
[null,null,null,null,null,null,null,null,null,null,null,null,null,null,null,null,"","","","","","",""]
[null,null,null,null,null,null,null,null,null,null,null,null,null,null,null,null,"","","","","","",""]
[null,null,null,null,null,null,null,null,null,null,null,null,null,null,null,null,"","","","","","",""]
[null,null,null,null,null,null,null,null,null,null,null,null,null,null,null,null,"","","","","","",""]
[null,null,null,null,null,null,null,null,null,null,null,null,null,null,null,null,"",{"$f":"IF(ISBLANK($F1551),\"\",INT((dref-$F1551)/365.25))","v":""},{"$f":"IF(ISNUMBER(Q1551),INT(Q1551/10)*10&\"-\"&(INT(Q1551/10)+1)*10-1,\"\")","v":""},{"$f":"IF(ISNUMBER(Q1551),INT(Q1551/5)*5&\"-\"&INT(Q1551/5)*5+4,\"\")","v":""},"","",""]
[null,null,null,null,null,null,null,null,null,null,null,null,null,null,null,null,"","","","",{"$f":"IF(R1552=\"\",\"\",IF(R1552=0,\"1:-1an\",IF(R1552<=2,\"2:1-2\",IF(R1552<=5,\"3:3-5\",IF(R1552<=11,\"4:6-11\",IF(R1552>11,\"5:+11\"))))))","v":""},{"$f":"IF(J1552=\"\",\"\",IF(J1552=0,\"1:0\",IF(J1552<=5,\"2:1-5\",IF(J1552<=25,\"3:6-25\",\"4:+25\"))))","v":""},{"$f":"IF(K1552=\"\",\"\",IF(K1552=0,\"1:0\",IF(K1552<=5,\"2:1-5\",IF(K1552<=25,\"3:6-25\",\"4:+25\"))))","v":""}]
[null,null,null,null,null,null,null,null,null,null,null,null,null,null,null,null,"","","","","","",""]
[null,null,null,null,null,null,null,null,null,null,null,null,null,null,null,null,"","","","","","",""]
[null,null,null,null,null,null,null,null,null,null,null,null,null,null,null,null,"","","","","","",""]
[null,null,null,null,null,null,null,null,null,null,null,null,null,null,null,null,"","","","","","",""]
[null,null,null,null,null,null,null,null,null,null,null,null,null,null,null,null,"","","","","","",""]
[null,null,null,null,null,null,null,null,null,null,null,null,null,null,null,null,"","","","","","",""]
[null,null,null,null,null,null,null,null,null,null,null,null,null,null,null,null,"","","","","","",""]
[null,null,null,null,null,null,null,null,null,null,null,null,null,null,null,null,"","","","","","",""]
[null,null,null,null,null,null,null,null,null,null,null,null,null,null,null,null,"","","","","","",""]
[null,null,null,null,null,null,null,null,null,null,null,null,null,null,null,null,"","","","","","",""]
[null,null,null,null,null,null,null,null,null,null,null,null,null,null,null,null,"","","","","","",""]
[null,null,null,null,null,null,null,null,null,null,null,null,null,null,null,null,"","","","","","",""]
[null,null,null,null,null,null,null,null,null,null,null,null,null,null,null,null,"","","","","","",""]
[null,null,null,null,null,null,null,null,null,null,null,null,null,null,null,null,"","","","","","",""]
[null,null,null,null,null,null,null,null,null,null,null,null,null,null,null,null,"","","","","","",""]
[null,null,null,null,null,null,null,null,null,null,null,null,null,null,null,null,"","","","","","",""]
[null,null,null,null,null,null,null,null,null,null,null,null,null,null,null,null,"","","","","","",""]
[null,null,null,null,null,null,null,null,null,null,null,null,null,null,null,null,"","","","","","",""]
[null,null,null,null,null,null,null,null,null,null,null,null,null,null,null,null,"","","","","","",""]
[null,null,null,null,null,null,null,null,null,null,null,null,null,null,null,null,"","","","","","",""]
[null,null,null,null,null,null,null,null,null,null,null,null,null,null,null,null,"","","","","","",""]
[null,null,null,null,null,null,null,null,null,null,null,null,null,null,null,null,"","","","","","",""]
[null,null,null,null,null,null,null,null,null,null,null,null,null,null,null,null,"","","","","","",""]
[null,null,null,null,null,null,null,null,null,null,null,null,null,null,null,null,"","","","","","",""]
[null,null,null,null,null,null,null,null,null,null,null,null,null,null,null,null,"","","","","","",""]
[null,null,null,null,null,null,null,null,null,null,null,null,null,null,null,null,"","","","","","",""]
[null,null,null,null,null,null,null,null,null,null,null,null,null,null,null,null,"","","","","","",""]
[null,null,null,null,null,null,null,null,null,null,null,null,null,null,null,null,"","","","","","",""]
[null,null,null,null,null,null,null,null,null,null,null,null,null,null,null,null,"","","","","","",""]
[null,null,null,null,null,null,null,null,null,null,null,null,null,null,null,null,"","","","","","",""]
[null,null,null,null,null,null,null,null,null,null,null,null,null,null,null,null,"","","","","","",""]
[null,null,null,null,null,null,null,null,null,null,null,null,null,null,null,null,"","","","","","",""]
[null,null,null,null,null,null,null,null,null,null,null,null,null,null,null,null,"","","","","","",""]
[null,null,null,null,null,null,null,null,null,null,null,null,null,null,null,null,"","","","","","",""]
[null,null,null,null,null,null,null,null,null,null,null,null,null,null,null,null,"","","","","","",""]
[null,null,null,null,null,null,null,null,null,null,null,null,null,null,null,null,"","","","","","",""]
[null,null,null,null,null,null,null,null,null,null,null,null,null,null,null,null,"","","","","","",""]
[null,null,null,null,null,null,null,null,null,null,null,null,null,null,null,null,"","","","","","",""]
[null,null,null,null,null,null,null,null,null,null,null,null,null,null,null,null,"","","","","","",""]
[null,null,null,null,null,null,null,null,null,null,null,null,null,null,null,null,"","","","","","",""]
[null,null,null,null,null,null,null,null,null,null,null,null,null,null,null,null,"","","","","","",""]
[null,null,null,null,null,null,null,null,null,null,null,null,null,null,null,null,"","","","","","",""]
[null,null,null,null,null,null,null,null,null,null,null,null,null,null,null,null,"","","","","","",""]
[null,null,null,null,null,null,null,null,null,null,null,null,null,null,null,null,"","","","","","",""]
[null,null,null,null,null,null,null,null,null,null,null,null,null,null,null,null,"","","","","","",""]
[null,null,null,null,null,null,null,null,null,null,null,null,null,null,null,null,"","","","","","",""]
[null,null,null,null,null,null,null,null,null,null,null,null,null,null,null,null,"","","","","","",""]
[null,null,null,null,null,null,null,null,null,null,null,null,null,null,null,null,"","","","","","",""]
[null,null,null,null,null,null,null,null,null,null,null,null,null,null,null,null,"","","","","","",""]
[null,null,null,null,null,null,null,null,null,null,null,null,null,null,null,null,"","","","","","",""]
[null,null,null,null,null,null,null,null,null,null,null,null,null,null,null,null,"","","","","","",""]
[null,null,null,null,null,null,null,null,null,null,null,null,null,null,null,null,"","","","","","",""]
[null,null,null,null,null,null,null,null,null,null,null,null,null,null,null,null,"","","","","","",""]
[null,null,null,null,null,null,null,null,null,null,null,null,null,null,null,null,"","","","","","",""]
[null,null,null,null,null,null,null,null,null,null,null,null,null,null,null,null,{"$f":"IF(ISBLANK($E1607),\"\",INT((dref-$E1607)/365.25))","v":""},"","","","","",""]
[null,null,null,null,null,null,null,null,null,null,null,null,null,null,null,null,"","","","","","",""]
[null,null,null,null,null,null,null,null,null,null,null,null,null,null,null,null,"","","","","","",""]
[null,null,null,null,null,null,null,null,null,null,null,null,null,null,null,null,"","","","","","",""]
[null,null,null,null,null,null,null,null,null,null,null,null,null,null,null,null,"","","","","","",""]
[null,null,null,null,null,null,null,null,null,null,null,null,null,null,null,null,"","","","","","",""]
[null,null,null,null,null,null,null,null,null,null,null,null,null,null,null,null,"","","","","","",""]
[null,null,null,null,null,null,null,null,null,null,null,null,null,null,null,null,"","","","","","",""]
[null,null,null,null,null,null,null,null,null,null,null,null,null,null,null,null,"",{"$f":"IF(ISBLANK($F1615),\"\",INT((dref-$F1615)/365.25))","v":""},{"$f":"IF(ISNUMBER(Q1615),INT(Q1615/10)*10&\"-\"&(INT(Q1615/10)+1)*10-1,\"\")","v":""},{"$f":"IF(ISNUMBER(Q1615),INT(Q1615/5)*5&\"-\"&INT(Q1615/5)*5+4,\"\")","v":""},"","",""]
[null,null,null,null,null,null,null,null,null,null,null,null,null,null,null,null,"","","","",{"$f":"IF(R1616=\"\",\"\",IF(R1616=0,\"1:-1an\",IF(R1616<=2,\"2:1-2\",IF(R1616<=5,\"3:3-5\",IF(R1616<=11,\"4:6-11\",IF(R1616>11,\"5:+11\"))))))","v":""},{"$f":"IF(J1616=\"\",\"\",IF(J1616=0,\"1:0\",IF(J1616<=5,\"2:1-5\",IF(J1616<=25,\"3:6-25\",\"4:+25\"))))","v":""},{"$f":"IF(K1616=\"\",\"\",IF(K1616=0,\"1:0\",IF(K1616<=5,\"2:1-5\",IF(K1616<=25,\"3:6-25\",\"4:+25\"))))","v":""}]
[null,null,null,null,null,null,null,null,null,null,null,null,null,null,null,null,"","","","","","",""]
[null,null,null,null,null,null,null,null,null,null,null,null,null,null,null,null,"","","","","","",""]
[null,null,null,null,null,null,null,null,null,null,null,null,null,null,null,null,"","","","","","",""]
[null,null,null,null,null,null,null,null,null,null,null,null,null,null,null,null,"","","","","","",""]
[null,null,null,null,null,null,null,null,null,null,null,null,null,null,null,null,"","","","","","",""]
[null,null,null,null,null,null,null,null,null,null,null,null,null,null,null,null,"","","","","","",""]
[null,null,null,null,null,null,null,null,null,null,null,null,null,null,null,null,"","","","","","",""]
[null,null,null,null,null,null,null,null,null,null,null,null,null,null,null,null,"","","","","","",""]
[null,null,null,null,null,null,null,null,null,null,null,null,null,null,null,null,"","","","","","",""]
[null,null,null,null,null,null,null,null,null,null,null,null,null,null,null,null,"","","","","","",""]
[null,null,null,null,null,null,null,null,null,null,null,null,null,null,null,null,"","","","","","",""]
[null,null,null,null,null,null,null,null,null,null,null,null,null,null,null,null,"","","","","","",""]
[null,null,null,null,null,null,null,null,null,null,null,null,null,null,null,null,"","","","","","",""]
[null,null,null,null,null,null,null,null,null,null,null,null,null,null,null,null,"","","","","","",""]
[null,null,null,null,null,null,null,null,null,null,null,null,null,null,null,null,"","","","","","",""]
[null,null,null,null,null,null,null,null,null,null,null,null,null,null,null,null,"","","","","","",""]
[null,null,null,null,null,null,null,null,null,null,null,null,null,null,null,null,"","","","","","",""]
[null,null,null,null,null,null,null,null,null,null,null,null,null,null,null,null,"","","","","","",""]
[null,null,null,null,null,null,null,null,null,null,null,null,null,null,null,null,"","","","","","",""]
[null,null,null,null,null,null,null,null,null,null,null,null,null,null,null,null,"","","","","","",""]
[null,null,null,null,null,null,null,null,null,null,null,null,null,null,null,null,"","","","","","",""]
[null,null,null,null,null,null,null,null,null,null,null,null,null,null,null,null,"","","","","","",""]
[null,null,null,null,null,null,null,null,null,null,null,null,null,null,null,null,"","","","","","",""]
[null,null,null,null,null,null,null,null,null,null,null,null,null,null,null,null,"","","","","","",""]
[null,null,null,null,null,null,null,null,null,null,null,null,null,null,null,null,"","","","","","",""]
[null,null,null,null,null,null,null,null,null,null,null,null,null,null,null,null,"","","","","","",""]
[null,null,null,null,null,null,null,null,null,null,null,null,null,null,null,null,"","","","","","",""]
[null,null,null,null,null,null,null,null,null,null,null,null,null,null,null,null,"","","","","","",""]
[null,null,null,null,null,null,null,null,null,null,null,null,null,null,null,null,"","","","","","",""]
[null,null,null,null,null,null,null,null,null,null,null,null,null,null,null,null,"","","","","","",""]
[null,null,null,null,null,null,null,null,null,null,null,null,null,null,null,null,"","","","","","",""]
[null,null,null,null,null,null,null,null,null,null,null,null,null,null,null,null,"","","","","","",""]
[null,null,null,null,null,null,null,null,null,null,null,null,null,null,null,null,"","","","","","",""]
[null,null,null,null,null,null,null,null,null,null,null,null,null,null,null,null,"","","","","","",""]
[null,null,null,null,null,null,null,null,null,null,null,null,null,null,null,null,"","","","","","",""]
[null,null,null,null,null,null,null,null,null,null,null,null,null,null,null,null,"","","","","","",""]
[null,null,null,null,null,null,null,null,null,null,null,null,null,null,null,null,"","","","","","",""]
[null,null,null,null,null,null,null,null,null,null,null,null,null,null,null,null,"","","","","","",""]
[null,null,null,null,null,null,null,null,null,null,null,null,null,null,null,null,"","","","","","",""]
[null,null,null,null,null,null,null,null,null,null,null,null,null,null,null,null,"","","","","","",""]
[null,null,null,null,null,null,null,null,null,null,null,null,null,null,null,null,"","","","","","",""]
[null,null,null,null,null,null,null,null,null,null,null,null,null,null,null,null,"","","","","","",""]
[null,null,null,null,null,null,null,null,null,null,null,null,null,null,null,null,"","","","","","",""]
[null,null,null,null,null,null,null,null,null,null,null,null,null,null,null,null,"","","","","","",""]
[null,null,null,null,null,null,null,null,null,null,null,null,null,null,null,null,"","","","","","",""]
[null,null,null,null,null,null,null,null,null,null,null,null,null,null,null,null,"","","","","","",""]
[null,null,null,null,null,null,null,null,null,null,null,null,null,null,null,null,"","","","","","",""]
[null,null,null,null,null,null,null,null,null,null,null,null,null,null,null,null,"","","","","","",""]
[null,null,null,null,null,null,null,null,null,null,null,null,null,null,null,null,"","","","","","",""]
[null,null,null,null,null,null,null,null,null,null,null,null,null,null,null,null,"","","","","","",""]
[null,null,null,null,null,null,null,null,null,null,null,null,null,null,null,null,"","","","","","",""]
[null,null,null,null,null,null,null,null,null,null,null,null,null,null,null,null,"","","","","","",""]
[null,null,null,null,null,null,null,null,null,null,null,null,null,null,null,null,"","","","","","",""]
[null,null,null,null,null,null,null,null,null,null,null,null,null,null,null,null,"","","","","","",""]
[null,null,null,null,null,null,null,null,null,null,null,null,null,null,null,null,{"$f":"IF(ISBLANK($E1671),\"\",INT((dref-$E1671)/365.25))","v":""},"","","","","",""]
[null,null,null,null,null,null,null,null,null,null,null,null,null,null,null,null,"","","","","","",""]
[null,null,null,null,null,null,null,null,null,null,null,null,null,null,null,null,"","","","","","",""]
[null,null,null,null,null,null,null,null,null,null,null,null,null,null,null,null,"","","","","","",""]
[null,null,null,null,null,null,null,null,null,null,null,null,null,null,null,null,"","","","","","",""]
[null,null,null,null,null,null,null,null,null,null,null,null,null,null,null,null,"","","","","","",""]
[null,null,null,null,null,null,null,null,null,null,null,null,null,null,null,null,"","","","","","",""]
[null,null,null,null,null,null,null,null,null,null,null,null,null,null,null,null,"","","","","","",""]
[null,null,null,null,null,null,null,null,null,null,null,null,null,null,null,null,"",{"$f":"IF(ISBLANK($F1679),\"\",INT((dref-$F1679)/365.25))","v":""},{"$f":"IF(ISNUMBER(Q1679),INT(Q1679/10)*10&\"-\"&(INT(Q1679/10)+1)*10-1,\"\")","v":""},{"$f":"IF(ISNUMBER(Q1679),INT(Q1679/5)*5&\"-\"&INT(Q1679/5)*5+4,\"\")","v":""},"","",""]
[null,null,null,null,null,null,null,null,null,null,null,null,null,null,null,null,"","","","",{"$f":"IF(R1680=\"\",\"\",IF(R1680=0,\"1:-1an\",IF(R1680<=2,\"2:1-2\",IF(R1680<=5,\"3:3-5\",IF(R1680<=11,\"4:6-11\",IF(R1680>11,\"5:+11\"))))))","v":""},{"$f":"IF(J1680=\"\",\"\",IF(J1680=0,\"1:0\",IF(J1680<=5,\"2:1-5\",IF(J1680<=25,\"3:6-25\",\"4:+25\"))))","v":""},{"$f":"IF(K1680=\"\",\"\",IF(K1680=0,\"1:0\",IF(K1680<=5,\"2:1-5\",IF(K1680<=25,\"3:6-25\",\"4:+25\"))))","v":""}]
[null,null,null,null,null,null,null,null,null,null,null,null,null,null,null,null,"","","","","","",""]
[null,null,null,null,null,null,null,null,null,null,null,null,null,null,null,null,"","","","","","",""]
[null,null,null,null,null,null,null,null,null,null,null,null,null,null,null,null,"","","","","","",""]
[null,null,null,null,null,null,null,null,null,null,null,null,null,null,null,null,"","","","","","",""]
[null,null,null,null,null,null,null,null,null,null,null,null,null,null,null,null,"","","","","","",""]
[null,null,null,null,null,null,null,null,null,null,null,null,null,null,null,null,"","","","","","",""]
[null,null,null,null,null,null,null,null,null,null,null,null,null,null,null,null,"","","","","","",""]
[null,null,null,null,null,null,null,null,null,null,null,null,null,null,null,null,"","","","","","",""]
[null,null,null,null,null,null,null,null,null,null,null,null,null,null,null,null,"","","","","","",""]
[null,null,null,null,null,null,null,null,null,null,null,null,null,null,null,null,"","","","","","",""]
[null,null,null,null,null,null,null,null,null,null,null,null,null,null,null,null,"","","","","","",""]
[null,null,null,null,null,null,null,null,null,null,null,null,null,null,null,null,"","","","","","",""]
[null,null,null,null,null,null,null,null,null,null,null,null,null,null,null,null,"","","","","","",""]
[null,null,null,null,null,null,null,null,null,null,null,null,null,null,null,null,"","","","","","",""]
[null,null,null,null,null,null,null,null,null,null,null,null,null,null,null,null,"","","","","","",""]
[null,null,null,null,null,null,null,null,null,null,null,null,null,null,null,null,"","","","","","",""]
[null,null,null,null,null,null,null,null,null,null,null,null,null,null,null,null,"","","","","","",""]
[null,null,null,null,null,null,null,null,null,null,null,null,null,null,null,null,"","","","","","",""]
[null,null,null,null,null,null,null,null,null,null,null,null,null,null,null,null,"","","","","","",""]
[null,null,null,null,null,null,null,null,null,null,null,null,null,null,null,null,"","","","","","",""]
[null,null,null,null,null,null,null,null,null,null,null,null,null,null,null,null,"","","","","","",""]
[null,null,null,null,null,null,null,null,null,null,null,null,null,null,null,null,"","","","","","",""]
[null,null,null,null,null,null,null,null,null,null,null,null,null,null,null,null,"","","","","","",""]
[null,null,null,null,null,null,null,null,null,null,null,null,null,null,null,null,"","","","","","",""]
[null,null,null,null,null,null,null,null,null,null,null,null,null,null,null,null,"","","","","","",""]
[null,null,null,null,null,null,null,null,null,null,null,null,null,null,null,null,"","","","","","",""]
[null,null,null,null,null,null,null,null,null,null,null,null,null,null,null,null,"","","","","","",""]
[null,null,null,null,null,null,null,null,null,null,null,null,null,null,null,null,"","","","","","",""]
[null,null,null,null,null,null,null,null,null,null,null,null,null,null,null,null,"","","","","","",""]
[null,null,null,null,null,null,null,null,null,null,null,null,null,null,null,null,"","","","","","",""]
[null,null,null,null,null,null,null,null,null,null,null,null,null,null,null,null,"","","","","","",""]
[null,null,null,null,null,null,null,null,null,null,null,null,null,null,null,null,"","","","","","",""]
[null,null,null,null,null,null,null,null,null,null,null,null,null,null,null,null,"","","","","","",""]
[null,null,null,null,null,null,null,null,null,null,null,null,null,null,null,null,"","","","","","",""]
[null,null,null,null,null,null,null,null,null,null,null,null,null,null,null,null,"","","","","","",""]
[null,null,null,null,null,null,null,null,null,null,null,null,null,null,null,null,"","","","","","",""]
[null,null,null,null,null,null,null,null,null,null,null,null,null,null,null,null,"","","","","","",""]
[null,null,null,null,null,null,null,null,null,null,null,null,null,null,null,null,"","","","","","",""]
[null,null,null,null,null,null,null,null,null,null,null,null,null,null,null,null,"","","","","","",""]
[null,null,null,null,null,null,null,null,null,null,null,null,null,null,null,null,"","","","","","",""]
[null,null,null,null,null,null,null,null,null,null,null,null,null,null,null,null,"","","","","","",""]
[null,null,null,null,null,null,null,null,null,null,null,null,null,null,null,null,"","","","","","",""]
[null,null,null,null,null,null,null,null,null,null,null,null,null,null,null,null,"","","","","","",""]
[null,null,null,null,null,null,null,null,null,null,null,null,null,null,null,null,"","","","","","",""]
[null,null,null,null,null,null,null,null,null,null,null,null,null,null,null,null,"","","","","","",""]
[null,null,null,null,null,null,null,null,null,null,null,null,null,null,null,null,"","","","","","",""]
[null,null,null,null,null,null,null,null,null,null,null,null,null,null,null,null,"","","","","","",""]
[null,null,null,null,null,null,null,null,null,null,null,null,null,null,null,null,"","","","","","",""]
[null,null,null,null,null,null,null,null,null,null,null,null,null,null,null,null,"","","","","","",""]
[null,null,null,null,null,null,null,null,null,null,null,null,null,null,null,null,"","","","","","",""]
[null,null,null,null,null,null,null,null,null,null,null,null,null,null,null,null,"","","","","","",""]
[null,null,null,null,null,null,null,null,null,null,null,null,null,null,null,null,"","","","","","",""]
[null,null,null,null,null,null,null,null,null,null,null,null,null,null,null,null,"","","","","","",""]
[null,null,null,null,null,null,null,null,null,null,null,null,null,null,null,null,"","","","","","",""]
[null,null,null,null,null,null,null,null,null,null,null,null,null,null,null,null,{"$f":"IF(ISBLANK($E1735),\"\",INT((dref-$E1735)/365.25))","v":""},"","","","","",""]
[null,null,null,null,null,null,null,null,null,null,null,null,null,null,null,null,"","","","","","",""]
[null,null,null,null,null,null,null,null,null,null,null,null,null,null,null,null,"","","","","","",""]
[null,null,null,null,null,null,null,null,null,null,null,null,null,null,null,null,"","","","","","",""]
[null,null,null,null,null,null,null,null,null,null,null,null,null,null,null,null,"","","","","","",""]
[null,null,null,null,null,null,null,null,null,null,null,null,null,null,null,null,"","","","","","",""]
[null,null,null,null,null,null,null,null,null,null,null,null,null,null,null,null,"","","","","","",""]
[null,null,null,null,null,null,null,null,null,null,null,null,null,null,null,null,"","","","","","",""]
[null,null,null,null,null,null,null,null,null,null,null,null,null,null,null,null,"",{"$f":"IF(ISBLANK($F1743),\"\",INT((dref-$F1743)/365.25))","v":""},{"$f":"IF(ISNUMBER(Q1743),INT(Q1743/10)*10&\"-\"&(INT(Q1743/10)+1)*10-1,\"\")","v":""},{"$f":"IF(ISNUMBER(Q1743),INT(Q1743/5)*5&\"-\"&INT(Q1743/5)*5+4,\"\")","v":""},"","",""]
[null,null,null,null,null,null,null,null,null,null,null,null,null,null,null,null,"","","","",{"$f":"IF(R1744=\"\",\"\",IF(R1744=0,\"1:-1an\",IF(R1744<=2,\"2:1-2\",IF(R1744<=5,\"3:3-5\",IF(R1744<=11,\"4:6-11\",IF(R1744>11,\"5:+11\"))))))","v":""},{"$f":"IF(J1744=\"\",\"\",IF(J1744=0,\"1:0\",IF(J1744<=5,\"2:1-5\",IF(J1744<=25,\"3:6-25\",\"4:+25\"))))","v":""},{"$f":"IF(K1744=\"\",\"\",IF(K1744=0,\"1:0\",IF(K1744<=5,\"2:1-5\",IF(K1744<=25,\"3:6-25\",\"4:+25\"))))","v":""}]
[null,null,null,null,null,null,null,null,null,null,null,null,null,null,null,null,"","","","","","",""]
[null,null,null,null,null,null,null,null,null,null,null,null,null,null,null,null,"","","","","","",""]
[null,null,null,null,null,null,null,null,null,null,null,null,null,null,null,null,"","","","","","",""]
[null,null,null,null,null,null,null,null,null,null,null,null,null,null,null,null,"","","","","","",""]
[null,null,null,null,null,null,null,null,null,null,null,null,null,null,null,null,"","","","","","",""]
[null,null,null,null,null,null,null,null,null,null,null,null,null,null,null,null,"","","","","","",""]
[null,null,null,null,null,null,null,null,null,null,null,null,null,null,null,null,"","","","","","",""]
[null,null,null,null,null,null,null,null,null,null,null,null,null,null,null,null,"","","","","","",""]
[null,null,null,null,null,null,null,null,null,null,null,null,null,null,null,null,"","","","","","",""]
[null,null,null,null,null,null,null,null,null,null,null,null,null,null,null,null,"","","","","","",""]
[null,null,null,null,null,null,null,null,null,null,null,null,null,null,null,null,"","","","","","",""]
[null,null,null,null,null,null,null,null,null,null,null,null,null,null,null,null,"","","","","","",""]
[null,null,null,null,null,null,null,null,null,null,null,null,null,null,null,null,"","","","","","",""]
[null,null,null,null,null,null,null,null,null,null,null,null,null,null,null,null,"","","","","","",""]
[null,null,null,null,null,null,null,null,null,null,null,null,null,null,null,null,"","","","","","",""]
[null,null,null,null,null,null,null,null,null,null,null,null,null,null,null,null,"","","","","","",""]
[null,null,null,null,null,null,null,null,null,null,null,null,null,null,null,null,"","","","","","",""]
[null,null,null,null,null,null,null,null,null,null,null,null,null,null,null,null,"","","","","","",""]
[null,null,null,null,null,null,null,null,null,null,null,null,null,null,null,null,"","","","","","",""]
[null,null,null,null,null,null,null,null,null,null,null,null,null,null,null,null,"","","","","","",""]
[null,null,null,null,null,null,null,null,null,null,null,null,null,null,null,null,"","","","","","",""]
[null,null,null,null,null,null,null,null,null,null,null,null,null,null,null,null,"","","","","","",""]
[null,null,null,null,null,null,null,null,null,null,null,null,null,null,null,null,"","","","","","",""]
[null,null,null,null,null,null,null,null,null,null,null,null,null,null,null,null,"","","","","","",""]
[null,null,null,null,null,null,null,null,null,null,null,null,null,null,null,null,"","","","","","",""]
[null,null,null,null,null,null,null,null,null,null,null,null,null,null,null,null,"","","","","","",""]
[null,null,null,null,null,null,null,null,null,null,null,null,null,null,null,null,"","","","","","",""]
[null,null,null,null,null,null,null,null,null,null,null,null,null,null,null,null,"","","","","","",""]
[null,null,null,null,null,null,null,null,null,null,null,null,null,null,null,null,"","","","","","",""]
[null,null,null,null,null,null,null,null,null,null,null,null,null,null,null,null,"","","","","","",""]
[null,null,null,null,null,null,null,null,null,null,null,null,null,null,null,null,"","","","","","",""]
[null,null,null,null,null,null,null,null,null,null,null,null,null,null,null,null,"","","","","","",""]
[null,null,null,null,null,null,null,null,null,null,null,null,null,null,null,null,"","","","","","",""]
[null,null,null,null,null,null,null,null,null,null,null,null,null,null,null,null,"","","","","","",""]
[null,null,null,null,null,null,null,null,null,null,null,null,null,null,null,null,"","","","","","",""]
[null,null,null,null,null,null,null,null,null,null,null,null,null,null,null,null,"","","","","","",""]
[null,null,null,null,null,null,null,null,null,null,null,null,null,null,null,null,"","","","","","",""]
[null,null,null,null,null,null,null,null,null,null,null,null,null,null,null,null,"","","","","","",""]
[null,null,null,null,null,null,null,null,null,null,null,null,null,null,null,null,"","","","","","",""]
[null,null,null,null,null,null,null,null,null,null,null,null,null,null,null,null,"","","","","","",""]
[null,null,null,null,null,null,null,null,null,null,null,null,null,null,null,null,"","","","","","",""]
[null,null,null,null,null,null,null,null,null,null,null,null,null,null,null,null,"","","","","","",""]
[null,null,null,null,null,null,null,null,null,null,null,null,null,null,null,null,"","","","","","",""]
[null,null,null,null,null,null,null,null,null,null,null,null,null,null,null,null,"","","","","","",""]
[null,null,null,null,null,null,null,null,null,null,null,null,null,null,null,null,"","","","","","",""]
[null,null,null,null,null,null,null,null,null,null,null,null,null,null,null,null,"","","","","","",""]
[null,null,null,null,null,null,null,null,null,null,null,null,null,null,null,null,"","","","","","",""]
[null,null,null,null,null,null,null,null,null,null,null,null,null,null,null,null,"","","","","","",""]
[null,null,null,null,null,null,null,null,null,null,null,null,null,null,null,null,"","","","","","",""]
[null,null,null,null,null,null,null,null,null,null,null,null,null,null,null,null,"","","","","","",""]
[null,null,null,null,null,null,null,null,null,null,null,null,null,null,null,null,"","","","","","",""]
[null,null,null,null,null,null,null,null,null,null,null,null,null,null,null,null,"","","","","","",""]
[null,null,null,null,null,null,null,null,null,null,null,null,null,null,null,null,"","","","","","",""]
[null,null,null,null,null,null,null,null,null,null,null,null,null,null,null,null,"","","","","","",""]
[null,null,null,null,null,null,null,null,null,null,null,null,null,null,null,null,{"$f":"IF(ISBLANK($E1799),\"\",INT((dref-$E1799)/365.25))","v":""},"","","","","",""]
[null,null,null,null,null,null,null,null,null,null,null,null,null,null,null,null,"","","","","","",""]
[null,null,null,null,null,null,null,null,null,null,null,null,null,null,null,null,"","","","","","",""]
[null,null,null,null,null,null,null,null,null,null,null,null,null,null,null,null,"","","","","","",""]
[null,null,null,null,null,null,null,null,null,null,null,null,null,null,null,null,"","","","","","",""]
[null,null,null,null,null,null,null,null,null,null,null,null,null,null,null,null,"","","","","","",""]
[null,null,null,null,null,null,null,null,null,null,null,null,null,null,null,null,"","","","","","",""]
[null,null,null,null,null,null,null,null,null,null,null,null,null,null,null,null,"","","","","","",""]
[null,null,null,null,null,null,null,null,null,null,null,null,null,null,null,null,"",{"$f":"IF(ISBLANK($F1807),\"\",INT((dref-$F1807)/365.25))","v":""},{"$f":"IF(ISNUMBER(Q1807),INT(Q1807/10)*10&\"-\"&(INT(Q1807/10)+1)*10-1,\"\")","v":""},{"$f":"IF(ISNUMBER(Q1807),INT(Q1807/5)*5&\"-\"&INT(Q1807/5)*5+4,\"\")","v":""},"","",""]
[null,null,null,null,null,null,null,null,null,null,null,null,null,null,null,null,"","","","",{"$f":"IF(R1808=\"\",\"\",IF(R1808=0,\"1:-1an\",IF(R1808<=2,\"2:1-2\",IF(R1808<=5,\"3:3-5\",IF(R1808<=11,\"4:6-11\",IF(R1808>11,\"5:+11\"))))))","v":""},{"$f":"IF(J1808=\"\",\"\",IF(J1808=0,\"1:0\",IF(J1808<=5,\"2:1-5\",IF(J1808<=25,\"3:6-25\",\"4:+25\"))))","v":""},{"$f":"IF(K1808=\"\",\"\",IF(K1808=0,\"1:0\",IF(K1808<=5,\"2:1-5\",IF(K1808<=25,\"3:6-25\",\"4:+25\"))))","v":""}]
[null,null,null,null,null,null,null,null,null,null,null,null,null,null,null,null,"","","","","","",""]
[null,null,null,null,null,null,null,null,null,null,null,null,null,null,null,null,"","","","","","",""]
[null,null,null,null,null,null,null,null,null,null,null,null,null,null,null,null,"","","","","","",""]
[null,null,null,null,null,null,null,null,null,null,null,null,null,null,null,null,"","","","","","",""]
[null,null,null,null,null,null,null,null,null,null,null,null,null,null,null,null,"","","","","","",""]
[null,null,null,null,null,null,null,null,null,null,null,null,null,null,null,null,"","","","","","",""]
[null,null,null,null,null,null,null,null,null,null,null,null,null,null,null,null,"","","","","","",""]
[null,null,null,null,null,null,null,null,null,null,null,null,null,null,null,null,"","","","","","",""]
[null,null,null,null,null,null,null,null,null,null,null,null,null,null,null,null,"","","","","","",""]
[null,null,null,null,null,null,null,null,null,null,null,null,null,null,null,null,"","","","","","",""]
[null,null,null,null,null,null,null,null,null,null,null,null,null,null,null,null,"","","","","","",""]
[null,null,null,null,null,null,null,null,null,null,null,null,null,null,null,null,"","","","","","",""]
[null,null,null,null,null,null,null,null,null,null,null,null,null,null,null,null,"","","","","","",""]
[null,null,null,null,null,null,null,null,null,null,null,null,null,null,null,null,"","","","","","",""]
[null,null,null,null,null,null,null,null,null,null,null,null,null,null,null,null,"","","","","","",""]
[null,null,null,null,null,null,null,null,null,null,null,null,null,null,null,null,"","","","","","",""]
[null,null,null,null,null,null,null,null,null,null,null,null,null,null,null,null,"","","","","","",""]
[null,null,null,null,null,null,null,null,null,null,null,null,null,null,null,null,"","","","","","",""]
[null,null,null,null,null,null,null,null,null,null,null,null,null,null,null,null,"","","","","","",""]
[null,null,null,null,null,null,null,null,null,null,null,null,null,null,null,null,"","","","","","",""]
[null,null,null,null,null,null,null,null,null,null,null,null,null,null,null,null,"","","","","","",""]
[null,null,null,null,null,null,null,null,null,null,null,null,null,null,null,null,"","","","","","",""]
[null,null,null,null,null,null,null,null,null,null,null,null,null,null,null,null,"","","","","","",""]
[null,null,null,null,null,null,null,null,null,null,null,null,null,null,null,null,"","","","","","",""]
[null,null,null,null,null,null,null,null,null,null,null,null,null,null,null,null,"","","","","","",""]
[null,null,null,null,null,null,null,null,null,null,null,null,null,null,null,null,"","","","","","",""]
[null,null,null,null,null,null,null,null,null,null,null,null,null,null,null,null,"","","","","","",""]
[null,null,null,null,null,null,null,null,null,null,null,null,null,null,null,null,"","","","","","",""]
[null,null,null,null,null,null,null,null,null,null,null,null,null,null,null,null,"","","","","","",""]
[null,null,null,null,null,null,null,null,null,null,null,null,null,null,null,null,"","","","","","",""]
[null,null,null,null,null,null,null,null,null,null,null,null,null,null,null,null,"","","","","","",""]
[null,null,null,null,null,null,null,null,null,null,null,null,null,null,null,null,"","","","","","",""]
[null,null,null,null,null,null,null,null,null,null,null,null,null,null,null,null,"","","","","","",""]
[null,null,null,null,null,null,null,null,null,null,null,null,null,null,null,null,"","","","","","",""]
[null,null,null,null,null,null,null,null,null,null,null,null,null,null,null,null,"","","","","","",""]
[null,null,null,null,null,null,null,null,null,null,null,null,null,null,null,null,"","","","","","",""]
[null,null,null,null,null,null,null,null,null,null,null,null,null,null,null,null,"","","","","","",""]
[null,null,null,null,null,null,null,null,null,null,null,null,null,null,null,null,"","","","","","",""]
[null,null,null,null,null,null,null,null,null,null,null,null,null,null,null,null,"","","","","","",""]
[null,null,null,null,null,null,null,null,null,null,null,null,null,null,null,null,"","","","","","",""]
[null,null,null,null,null,null,null,null,null,null,null,null,null,null,null,null,"","","","","","",""]
[null,null,null,null,null,null,null,null,null,null,null,null,null,null,null,null,"","","","","","",""]
[null,null,null,null,null,null,null,null,null,null,null,null,null,null,null,null,"","","","","","",""]
[null,null,null,null,null,null,null,null,null,null,null,null,null,null,null,null,"","","","","","",""]
[null,null,null,null,null,null,null,null,null,null,null,null,null,null,null,null,"","","","","","",""]
[null,null,null,null,null,null,null,null,null,null,null,null,null,null,null,null,"","","","","","",""]
[null,null,null,null,null,null,null,null,null,null,null,null,null,null,null,null,"","","","","","",""]
[null,null,null,null,null,null,null,null,null,null,null,null,null,null,null,null,"","","","","","",""]
[null,null,null,null,null,null,null,null,null,null,null,null,null,null,null,null,"","","","","","",""]
[null,null,null,null,null,null,null,null,null,null,null,null,null,null,null,null,"","","","","","",""]
[null,null,null,null,null,null,null,null,null,null,null,null,null,null,null,null,"","","","","","",""]
[null,null,null,null,null,null,null,null,null,null,null,null,null,null,null,null,"","","","","","",""]
[null,null,null,null,null,null,null,null,null,null,null,null,null,null,null,null,"","","","","","",""]
[null,null,null,null,null,null,null,null,null,null,null,null,null,null,null,null,"","","","","","",""]
[null,null,null,null,null,null,null,null,null,null,null,null,null,null,null,null,{"$f":"IF(ISBLANK($E1863),\"\",INT((dref-$E1863)/365.25))","v":""},"","","","","",""]
[null,null,null,null,null,null,null,null,null,null,null,null,null,null,null,null,"","","","","","",""]
[null,null,null,null,null,null,null,null,null,null,null,null,null,null,null,null,"","","","","","",""]
[null,null,null,null,null,null,null,null,null,null,null,null,null,null,null,null,"","","","","","",""]
[null,null,null,null,null,null,null,null,null,null,null,null,null,null,null,null,"","","","","","",""]
[null,null,null,null,null,null,null,null,null,null,null,null,null,null,null,null,"","","","","","",""]
[null,null,null,null,null,null,null,null,null,null,null,null,null,null,null,null,"","","","","","",""]
[null,null,null,null,null,null,null,null,null,null,null,null,null,null,null,null,"","","","","","",""]
[null,null,null,null,null,null,null,null,null,null,null,null,null,null,null,null,"",{"$f":"IF(ISBLANK($F1871),\"\",INT((dref-$F1871)/365.25))","v":""},{"$f":"IF(ISNUMBER(Q1871),INT(Q1871/10)*10&\"-\"&(INT(Q1871/10)+1)*10-1,\"\")","v":""},{"$f":"IF(ISNUMBER(Q1871),INT(Q1871/5)*5&\"-\"&INT(Q1871/5)*5+4,\"\")","v":""},"","",""]
[null,null,null,null,null,null,null,null,null,null,null,null,null,null,null,null,"","","","",{"$f":"IF(R1872=\"\",\"\",IF(R1872=0,\"1:-1an\",IF(R1872<=2,\"2:1-2\",IF(R1872<=5,\"3:3-5\",IF(R1872<=11,\"4:6-11\",IF(R1872>11,\"5:+11\"))))))","v":""},{"$f":"IF(J1872=\"\",\"\",IF(J1872=0,\"1:0\",IF(J1872<=5,\"2:1-5\",IF(J1872<=25,\"3:6-25\",\"4:+25\"))))","v":""},{"$f":"IF(K1872=\"\",\"\",IF(K1872=0,\"1:0\",IF(K1872<=5,\"2:1-5\",IF(K1872<=25,\"3:6-25\",\"4:+25\"))))","v":""}]
[null,null,null,null,null,null,null,null,null,null,null,null,null,null,null,null,"","","","","","",""]
[null,null,null,null,null,null,null,null,null,null,null,null,null,null,null,null,"","","","","","",""]
[null,null,null,null,null,null,null,null,null,null,null,null,null,null,null,null,"","","","","","",""]
[null,null,null,null,null,null,null,null,null,null,null,null,null,null,null,null,"","","","","","",""]
[null,null,null,null,null,null,null,null,null,null,null,null,null,null,null,null,"","","","","","",""]
[null,null,null,null,null,null,null,null,null,null,null,null,null,null,null,null,"","","","","","",""]
[null,null,null,null,null,null,null,null,null,null,null,null,null,null,null,null,"","","","","","",""]
[null,null,null,null,null,null,null,null,null,null,null,null,null,null,null,null,"","","","","","",""]
[null,null,null,null,null,null,null,null,null,null,null,null,null,null,null,null,"","","","","","",""]
[null,null,null,null,null,null,null,null,null,null,null,null,null,null,null,null,"","","","","","",""]
[null,null,null,null,null,null,null,null,null,null,null,null,null,null,null,null,"","","","","","",""]
[null,null,null,null,null,null,null,null,null,null,null,null,null,null,null,null,"","","","","","",""]
[null,null,null,null,null,null,null,null,null,null,null,null,null,null,null,null,"","","","","","",""]
[null,null,null,null,null,null,null,null,null,null,null,null,null,null,null,null,"","","","","","",""]
[null,null,null,null,null,null,null,null,null,null,null,null,null,null,null,null,"","","","","","",""]
[null,null,null,null,null,null,null,null,null,null,null,null,null,null,null,null,"","","","","","",""]
[null,null,null,null,null,null,null,null,null,null,null,null,null,null,null,null,"","","","","","",""]
[null,null,null,null,null,null,null,null,null,null,null,null,null,null,null,null,"","","","","","",""]
[null,null,null,null,null,null,null,null,null,null,null,null,null,null,null,null,"","","","","","",""]
[null,null,null,null,null,null,null,null,null,null,null,null,null,null,null,null,"","","","","","",""]
[null,null,null,null,null,null,null,null,null,null,null,null,null,null,null,null,"","","","","","",""]
[null,null,null,null,null,null,null,null,null,null,null,null,null,null,null,null,"","","","","","",""]
[null,null,null,null,null,null,null,null,null,null,null,null,null,null,null,null,"","","","","","",""]
[null,null,null,null,null,null,null,null,null,null,null,null,null,null,null,null,"","","","","","",""]
[null,null,null,null,null,null,null,null,null,null,null,null,null,null,null,null,"","","","","","",""]
[null,null,null,null,null,null,null,null,null,null,null,null,null,null,null,null,"","","","","","",""]
[null,null,null,null,null,null,null,null,null,null,null,null,null,null,null,null,"","","","","","",""]
[null,null,null,null,null,null,null,null,null,null,null,null,null,null,null,null,"","","","","","",""]
[null,null,null,null,null,null,null,null,null,null,null,null,null,null,null,null,"","","","","","",""]
[null,null,null,null,null,null,null,null,null,null,null,null,null,null,null,null,"","","","","","",""]
[null,null,null,null,null,null,null,null,null,null,null,null,null,null,null,null,"","","","","","",""]
[null,null,null,null,null,null,null,null,null,null,null,null,null,null,null,null,"","","","","","",""]
[null,null,null,null,null,null,null,null,null,null,null,null,null,null,null,null,"","","","","","",""]
[null,null,null,null,null,null,null,null,null,null,null,null,null,null,null,null,"","","","","","",""]
[null,null,null,null,null,null,null,null,null,null,null,null,null,null,null,null,"","","","","","",""]
[null,null,null,null,null,null,null,null,null,null,null,null,null,null,null,null,"","","","","","",""]
[null,null,null,null,null,null,null,null,null,null,null,null,null,null,null,null,"","","","","","",""]
[null,null,null,null,null,null,null,null,null,null,null,null,null,null,null,null,"","","","","","",""]
[null,null,null,null,null,null,null,null,null,null,null,null,null,null,null,null,"","","","","","",""]
[null,null,null,null,null,null,null,null,null,null,null,null,null,null,null,null,"","","","","","",""]
[null,null,null,null,null,null,null,null,null,null,null,null,null,null,null,null,"","","","","","",""]
[null,null,null,null,null,null,null,null,null,null,null,null,null,null,null,null,"","","","","","",""]
[null,null,null,null,null,null,null,null,null,null,null,null,null,null,null,null,"","","","","","",""]
[null,null,null,null,null,null,null,null,null,null,null,null,null,null,null,null,"","","","","","",""]
[null,null,null,null,null,null,null,null,null,null,null,null,null,null,null,null,"","","","","","",""]
[null,null,null,null,null,null,null,null,null,null,null,null,null,null,null,null,"","","","","","",""]
[null,null,null,null,null,null,null,null,null,null,null,null,null,null,null,null,"","","","","","",""]
[null,null,null,null,null,null,null,null,null,null,null,null,null,null,null,null,"","","","","","",""]
[null,null,null,null,null,null,null,null,null,null,null,null,null,null,null,null,"","","","","","",""]
[null,null,null,null,null,null,null,null,null,null,null,null,null,null,null,null,"","","","","","",""]
[null,null,null,null,null,null,null,null,null,null,null,null,null,null,null,null,"","","","","","",""]
[null,null,null,null,null,null,null,null,null,null,null,null,null,null,null,null,"","","","","","",""]
[null,null,null,null,null,null,null,null,null,null,null,null,null,null,null,null,"","","","","","",""]
[null,null,null,null,null,null,null,null,null,null,null,null,null,null,null,null,"","","","","","",""]
[null,null,null,null,null,null,null,null,null,null,null,null,null,null,null,null,{"$f":"IF(ISBLANK($E1927),\"\",INT((dref-$E1927)/365.25))","v":""},"","","","","",""]
[null,null,null,null,null,null,null,null,null,null,null,null,null,null,null,null,"","","","","","",""]
[null,null,null,null,null,null,null,null,null,null,null,null,null,null,null,null,"","","","","","",""]
[null,null,null,null,null,null,null,null,null,null,null,null,null,null,null,null,"","","","","","",""]
[null,null,null,null,null,null,null,null,null,null,null,null,null,null,null,null,"","","","","","",""]
[null,null,null,null,null,null,null,null,null,null,null,null,null,null,null,null,"","","","","","",""]
[null,null,null,null,null,null,null,null,null,null,null,null,null,null,null,null,"","","","","","",""]
[null,null,null,null,null,null,null,null,null,null,null,null,null,null,null,null,"","","","","","",""]
[null,null,null,null,null,null,null,null,null,null,null,null,null,null,null,null,"",{"$f":"IF(ISBLANK($F1935),\"\",INT((dref-$F1935)/365.25))","v":""},{"$f":"IF(ISNUMBER(Q1935),INT(Q1935/10)*10&\"-\"&(INT(Q1935/10)+1)*10-1,\"\")","v":""},{"$f":"IF(ISNUMBER(Q1935),INT(Q1935/5)*5&\"-\"&INT(Q1935/5)*5+4,\"\")","v":""},"","",""]
[null,null,null,null,null,null,null,null,null,null,null,null,null,null,null,null,"","","","",{"$f":"IF(R1936=\"\",\"\",IF(R1936=0,\"1:-1an\",IF(R1936<=2,\"2:1-2\",IF(R1936<=5,\"3:3-5\",IF(R1936<=11,\"4:6-11\",IF(R1936>11,\"5:+11\"))))))","v":""},{"$f":"IF(J1936=\"\",\"\",IF(J1936=0,\"1:0\",IF(J1936<=5,\"2:1-5\",IF(J1936<=25,\"3:6-25\",\"4:+25\"))))","v":""},{"$f":"IF(K1936=\"\",\"\",IF(K1936=0,\"1:0\",IF(K1936<=5,\"2:1-5\",IF(K1936<=25,\"3:6-25\",\"4:+25\"))))","v":""}]
[null,null,null,null,null,null,null,null,null,null,null,null,null,null,null,null,"","","","","","",""]
[null,null,null,null,null,null,null,null,null,null,null,null,null,null,null,null,"","","","","","",""]
[null,null,null,null,null,null,null,null,null,null,null,null,null,null,null,null,"","","","","","",""]
[null,null,null,null,null,null,null,null,null,null,null,null,null,null,null,null,"","","","","","",""]
[null,null,null,null,null,null,null,null,null,null,null,null,null,null,null,null,"","","","","","",""]
[null,null,null,null,null,null,null,null,null,null,null,null,null,null,null,null,"","","","","","",""]
[null,null,null,null,null,null,null,null,null,null,null,null,null,null,null,null,"","","","","","",""]
[null,null,null,null,null,null,null,null,null,null,null,null,null,null,null,null,"","","","","","",""]
[null,null,null,null,null,null,null,null,null,null,null,null,null,null,null,null,"","","","","","",""]
[null,null,null,null,null,null,null,null,null,null,null,null,null,null,null,null,"","","","","","",""]
[null,null,null,null,null,null,null,null,null,null,null,null,null,null,null,null,"","","","","","",""]
[null,null,null,null,null,null,null,null,null,null,null,null,null,null,null,null,"","","","","","",""]
[null,null,null,null,null,null,null,null,null,null,null,null,null,null,null,null,"","","","","","",""]
[null,null,null,null,null,null,null,null,null,null,null,null,null,null,null,null,"","","","","","",""]
[null,null,null,null,null,null,null,null,null,null,null,null,null,null,null,null,"","","","","","",""]
[null,null,null,null,null,null,null,null,null,null,null,null,null,null,null,null,"","","","","","",""]
[null,null,null,null,null,null,null,null,null,null,null,null,null,null,null,null,"","","","","","",""]
[null,null,null,null,null,null,null,null,null,null,null,null,null,null,null,null,"","","","","","",""]
[null,null,null,null,null,null,null,null,null,null,null,null,null,null,null,null,"","","","","","",""]
[null,null,null,null,null,null,null,null,null,null,null,null,null,null,null,null,"","","","","","",""]
[null,null,null,null,null,null,null,null,null,null,null,null,null,null,null,null,"","","","","","",""]
[null,null,null,null,null,null,null,null,null,null,null,null,null,null,null,null,"","","","","","",""]
[null,null,null,null,null,null,null,null,null,null,null,null,null,null,null,null,"","","","","","",""]
[null,null,null,null,null,null,null,null,null,null,null,null,null,null,null,null,"","","","","","",""]
[null,null,null,null,null,null,null,null,null,null,null,null,null,null,null,null,"","","","","","",""]
[null,null,null,null,null,null,null,null,null,null,null,null,null,null,null,null,"","","","","","",""]
[null,null,null,null,null,null,null,null,null,null,null,null,null,null,null,null,"","","","","","",""]
[null,null,null,null,null,null,null,null,null,null,null,null,null,null,null,null,"","","","","","",""]
[null,null,null,null,null,null,null,null,null,null,null,null,null,null,null,null,"","","","","","",""]
[null,null,null,null,null,null,null,null,null,null,null,null,null,null,null,null,"","","","","","",""]
[null,null,null,null,null,null,null,null,null,null,null,null,null,null,null,null,"","","","","","",""]
[null,null,null,null,null,null,null,null,null,null,null,null,null,null,null,null,"","","","","","",""]
[null,null,null,null,null,null,null,null,null,null,null,null,null,null,null,null,"","","","","","",""]
[null,null,null,null,null,null,null,null,null,null,null,null,null,null,null,null,"","","","","","",""]
[null,null,null,null,null,null,null,null,null,null,null,null,null,null,null,null,"","","","","","",""]
[null,null,null,null,null,null,null,null,null,null,null,null,null,null,null,null,"","","","","","",""]
[null,null,null,null,null,null,null,null,null,null,null,null,null,null,null,null,"","","","","","",""]
[null,null,null,null,null,null,null,null,null,null,null,null,null,null,null,null,"","","","","","",""]
[null,null,null,null,null,null,null,null,null,null,null,null,null,null,null,null,"","","","","","",""]
[null,null,null,null,null,null,null,null,null,null,null,null,null,null,null,null,"","","","","","",""]
[null,null,null,null,null,null,null,null,null,null,null,null,null,null,null,null,"","","","","","",""]
[null,null,null,null,null,null,null,null,null,null,null,null,null,null,null,null,"","","","","","",""]
[null,null,null,null,null,null,null,null,null,null,null,null,null,null,null,null,"","","","","","",""]
[null,null,null,null,null,null,null,null,null,null,null,null,null,null,null,null,"","","","","","",""]
[null,null,null,null,null,null,null,null,null,null,null,null,null,null,null,null,"","","","","","",""]
[null,null,null,null,null,null,null,null,null,null,null,null,null,null,null,null,"","","","","","",""]
[null,null,null,null,null,null,null,null,null,null,null,null,null,null,null,null,"","","","","","",""]
[null,null,null,null,null,null,null,null,null,null,null,null,null,null,null,null,"","","","","","",""]
[null,null,null,null,null,null,null,null,null,null,null,null,null,null,null,null,"","","","","","",""]
[null,null,null,null,null,null,null,null,null,null,null,null,null,null,null,null,"","","","","","",""]
[null,null,null,null,null,null,null,null,null,null,null,null,null,null,null,null,"","","","","","",""]
[null,null,null,null,null,null,null,null,null,null,null,null,null,null,null,null,"","","","","","",""]
[null,null,null,null,null,null,null,null,null,null,null,null,null,null,null,null,"","","","","","",""]
[null,null,null,null,null,null,null,null,null,null,null,null,null,null,null,null,"","","","","","",""]
[null,null,null,null,null,null,null,null,null,null,null,null,null,null,null,null,{"$f":"IF(ISBLANK($E1991),\"\",INT((dref-$E1991)/365.25))","v":""},"","","","","",""]
[null,null,null,null,null,null,null,null,null,null,null,null,null,null,null,null,"","","","","","",""]
[null,null,null,null,null,null,null,null,null,null,null,null,null,null,null,null,"","","","","","",""]
[null,null,null,null,null,null,null,null,null,null,null,null,null,null,null,null,"","","","","","",""]
[null,null,null,null,null,null,null,null,null,null,null,null,null,null,null,null,"","","","","","",""]
[null,null,null,null,null,null,null,null,null,null,null,null,null,null,null,null,"","","","","","",""]
[null,null,null,null,null,null,null,null,null,null,null,null,null,null,null,null,"","","","","","",""]
[null,null,null,null,null,null,null,null,null,null,null,null,null,null,null,null,"","","","","","",""]
[null,null,null,null,null,null,null,null,null,null,null,null,null,null,null,null,"",{"$f":"IF(ISBLANK($F1999),\"\",INT((dref-$F1999)/365.25))","v":""},{"$f":"IF(ISNUMBER(Q1999),INT(Q1999/10)*10&\"-\"&(INT(Q1999/10)+1)*10-1,\"\")","v":""},{"$f":"IF(ISNUMBER(Q1999),INT(Q1999/5)*5&\"-\"&INT(Q1999/5)*5+4,\"\")","v":""},"","",""]
[null,null,null,null,null,null,null,null,null,null,null,null,null,null,null,null,"","","","",{"$f":"IF(R2000=\"\",\"\",IF(R2000=0,\"1:-1an\",IF(R2000<=2,\"2:1-2\",IF(R2000<=5,\"3:3-5\",IF(R2000<=11,\"4:6-11\",IF(R2000>11,\"5:+11\"))))))","v":""},{"$f":"IF(J2000=\"\",\"\",IF(J2000=0,\"1:0\",IF(J2000<=5,\"2:1-5\",IF(J2000<=25,\"3:6-25\",\"4:+25\"))))","v":""},""]

{"sheet":"Repartition Ages","index":2,"n_rows":73,"n_cols":24,"rows_kept":73,"cut":false,"hidden":false,"merged":[]}
[]
[]
[null,null,"QUELLE EST LA REPARTITION PAR AGE  ?"]
[]
[null,null,"DESCRIPTION GENERALE"]
[]
[]
[null,null,"Avertissement: toujours vérifier la cohérence entre les tableaux et les graphiques liés et ajuster la plage de sélection des données si besoin"]
[]
[null,null,null,"REPARTION EN NOMBRE ",null,null,null,null,null,null,null,"HISTOGRAMME DES AGES",null,null,null,null,null,"Suite ->",null,null,"AGE MOYEN"]
[]
[null,null,null,"menu de tri complémentaire",null,null,null,null,null,null,null,null,null,null,null,null,null,null,null,null,"menu de tri complémentaire"]
[]
[]
[]
[null,null,null,null,null,null,null,null,null,null,null,"SERVICE/SECTEUR","(Tout)"]
[null,null,null,"SERVICE/SECTEUR","(Tout)",null,null,null,null,null,null,"METIER/EMPLOI","(Tout)"]
[null,null,null,"METIER/EMPLOI","(Tout)"]
[null,null,null,null,null,null,null,null,null,null,null,"NB sur MATRICULE",null,null,null,null,null,null,null,null,"Moyenne sur Age","SEXE"]
[null,null,null,"NB sur MATRICULE","SEXE",null,null,null,null,null,null,"Age","Somme",null,null,null,null,null,null,null,"METIER/EMPLOI","H","F","Total"]
[null,null,null,"Tranche âge 5","H","F","Total",null,null,null,null,19,2,null,null,null,null,null,null,null,"chef d'équipe",37,null,37]
[null,null,null,"15-19",6,1,7,null,null,null,null,20,1,null,null,null,null,null,null,null,"commercial",39.666666666666664,42.333333333333336,41.444444444444443]
[null,null,null,"20-24",3,2,5,null,null,null,null,21,1,null,null,null,null,null,null,null,"comptable",44.5,null,44.5]
[null,null,null,"25-29",2,5,7,null,null,null,null,22,1,null,null,null,null,null,null,null,"directeur",40.666666666666664,null,40.666666666666664]
[null,null,null,"30-34",5,4,9,null,null,null,null,23,1,null,null,null,null,null,null,null,"opérateur",42.03846153846154,37.789473684210527,40.244444444444447]
[null,null,null,"35-39",6,5,11,null,null,null,null,24,1,null,null,null,null,null,null,null,"secrétaire",null,39.5,39.5]
[null,null,null,"40-44",4,2,6,null,null,null,null,25,1,null,null,null,null,null,null,null,"technicien",43.5,null,43.5]
[null,null,null,"45-49",5,3,8,null,null,null,null,26,1,null,null,null,null,null,null,null,"Total",41.382978723404257,38.96551724137931,40.460526315789473]
[null,null,null,"50-54",4,3,7,null,null,null,null,27,1]
[null,null,null,"55-59",4,2,6,null,null,null,null,28,2]
[null,null,null,"60-64",5,1,6,null,null,null,null,29,2]
[null,null,null,"65-69",3,1,4,null,null,null,null,30,2]
[null,null,null,"Total",47,29,76,null,null,null,null,31,1]
[null,null,null,null,null,null,null,null,null,null,null,32,4]
[null,null,null,null,null,null,null,null,null,null,null,33,1]
[null,null,null,null,null,null,null,null,null,null,null,34,1]
[null,null,null,null,null,null,null,null,null,null,null,35,4]
[null,null,null,null,null,null,null,null,null,null,null,36,2]
[null,null,null,null,null,null,null,null,null,null,null,37,3]
[null,null,null,null,null,null,null,null,null,null,null,38,1]
[null,null,null,null,null,null,null,null,null,null,null,39,1]
[null,null,null,null,null,null,null,null,null,null,null,40,1]
[null,null,null,null,null,null,null,null,null,null,null,41,1]
[null,null,null,null,null,null,null,null,null,null,null,42,2]
[null,null,null,null,null,null,null,null,null,null,null,43,1]
[null,null,null,null,null,null,null,null,null,null,null,44,1]
[null,null,null,null,null,null,null,null,null,null,null,45,1]
[null,null,null,null,null,null,null,null,null,null,null,46,2]
[null,null,null,null,null,null,null,null,null,null,null,47,1]
[null,null,null,null,null,null,null,null,null,null,null,48,2]
[null,null,null,null,null,null,null,null,null,null,null,49,2]
[null,null,null,null,null,null,null,null,null,null,null,50,1]
[null,null,null,null,null,null,null,null,null,null,null,51,3]
[null,null,null,null,null,null,null,null,null,null,null,52,1]
[null,null,null,null,null,null,null,null,null,null,null,53,1]
[null,null,null,null,null,null,null,null,null,null,null,54,1]
[null,null,null,null,null,null,null,null,null,null,null,55,2]
[null,null,null,null,null,null,null,null,null,null,null,56,1]
[null,null,null,null,null,null,null,null,null,null,null,57,1]
[null,null,null,null,null,null,null,null,null,null,null,58,1]
[null,null,null,null,null,null,null,null,null,null,null,59,1]
[null,null,null,null,null,null,null,null,null,null,null,60,2]
[null,null,null,null,null,null,null,null,null,null,null,61,1]
[null,null,null,null,null,null,null,null,null,null,null,62,1]
[null,null,null,null,null,null,null,null,null,null,null,63,1]
[null,null,null,null,null,null,null,null,null,null,null,64,1]
[null,null,null,null,null,null,null,null,null,null,null,65,1]
[null,null,null,null,null,null,null,null,null,null,null,66,2]
[null,null,null,null,null,null,null,null,null,null,null,67,1]
[null,null,null,null,null,null,null,null,null,null,null,18,1]
[null,null,null,null,null,null,null,null,null,null,null,17,1]
[null,null,null,null,null,null,null,null,null,null,null,16,3]
[null,null,null,null,null,null,null,null,null,null,null,"Total",76]

{"sheet":"Repartition Anciennetés","index":3,"n_rows":75,"n_cols":24,"rows_kept":75,"cut":false,"hidden":false,"merged":[]}
[]
[]
[null,null,"QUELLE EST LA REPARTITION  PAR ANCIENNETE  ?"]
[]
[null,null,"DESCRIPTION GENERALE"]
[]
[]
[null,null,"Avertissement: toujours vérifier la cohérence entre les tableaux et les graphiques liés et ajuster la plage de sélection des données si besoin"]
[]
[null,null,null,"REPARTION EN NOMBRE ",null,null,null,null,null,null,null,"HISTOGRAMME DES ANCIENNETES",null,null,null,null,null,null,null,null,"AGE MOYEN"]
[]
[null,null,null,"menu de tri complémentaire",null,null,null,null,null,null,null,null,null,null,null,null,null,null,null,null,"menu de tri complémentaire"]
[]
[]
[]
[null,null,null,null,null,null,null,null,null,null,null,"SERVICE/SECTEUR","(Tout)"]
[null,null,null,"SERVICE/SECTEUR","(Tout)",null,null,null,null,null,null,"METIER/EMPLOI","(Tout)",null,null,null,null,null,null,null,"METIER/EMPLOI","(Tout)"]
[null,null,null,"METIER/EMPLOI","(Tout)"]
[null,null,null,null,null,null,null,null,null,null,null,"NB sur MATRICULE",null,null,null,null,null,null,null,null,"Moyenne sur Ancienneté","SEXE"]
[null,null,null,"NB sur MATRICULE","SEXE",null,null,null,null,null,null,"Ancienneté","Somme",null,null,null,null,null,null,null,"SERVICE/SECTEUR","H","F","Total"]
[null,null,null,"Tranche ancienneté ","H","F","Total",null,null,null,null,0,2,null,null,null,null,null,null,null,"DIR",24,null,24]
[null,null,null,"1:-1an",1,1,2,null,null,null,null,1,1,null,null,null,null,null,null,null,"PROD",22.72972972972973,18.578947368421051,21.321428571428573]
[null,null,null,"2:1-2",2,1,3,null,null,null,null,2,2,null,null,null,null,null,null,null,"SA",25.285714285714285,23.2,24.058823529411764]
[null,null,null,"3:3-5",7,5,12,null,null,null,null,3,9,null,null,null,null,null,null,null,"Total",23.191489361702128,20.172413793103448,22.039473684210527]
[null,null,null,"4:6-11",6,4,10,null,null,null,null,4,2]
[null,null,null,"5:+11",31,18,49,null,null,null,null,5,1]
[null,null,null,"Total",47,29,76,null,null,null,null,6,2]
[null,null,null,null,null,null,null,null,null,null,null,7,1]
[null,null,null,null,null,null,null,null,null,null,null,8,1]
[null,null,null,null,null,null,null,null,null,null,null,9,1]
[null,null,null,null,null,null,null,null,null,null,null,10,3]
[null,null,null,null,null,null,null,null,null,null,null,11,2]
[null,null,null,null,null,null,null,null,null,null,null,12,2]
[null,null,null,null,null,null,null,null,null,null,null,13,1]
[null,null,null,null,null,null,null,null,null,null,null,14,2]
[null,null,null,null,null,null,null,null,null,null,null,15,1]
[null,null,null,null,null,null,null,null,null,null,null,16,1]
[null,null,null,null,null,null,null,null,null,null,null,17,1]
[null,null,null,null,null,null,null,null,null,null,null,18,1]
[null,null,null,null,null,null,null,null,null,null,null,19,1]
[null,null,null,null,null,null,null,null,null,null,null,20,2]
[null,null,null,null,null,null,null,null,null,null,null,21,1]
[null,null,null,null,null,null,null,null,null,null,null,22,1]
[null,null,null,null,null,null,null,null,null,null,null,23,2]
[null,null,null,null,null,null,null,null,null,null,null,24,1]
[null,null,null,null,null,null,null,null,null,null,null,25,1]
[null,null,null,null,null,null,null,null,null,null,null,26,1]
[null,null,null,null,null,null,null,null,null,null,null,27,1]
[null,null,null,null,null,null,null,null,null,null,null,28,1]
[null,null,null,null,null,null,null,null,null,null,null,29,2]
[null,null,null,null,null,null,null,null,null,null,null,30,1]
[null,null,null,null,null,null,null,null,null,null,null,31,1]
[null,null,null,null,null,null,null,null,null,null,null,32,1]
[null,null,null,null,null,null,null,null,null,null,null,33,1]
[null,null,null,null,null,null,null,null,null,null,null,34,2]
[null,null,null,null,null,null,null,null,null,null,null,35,1]
[null,null,null,null,null,null,null,null,null,null,null,36,1]
[null,null,null,null,null,null,null,null,null,null,null,37,1]
[null,null,null,null,null,null,null,null,null,null,null,38,1]
[null,null,null,null,null,null,null,null,null,null,null,39,1]
[null,null,null,null,null,null,null,null,null,null,null,40,1]
[null,null,null,null,null,null,null,null,null,null,null,41,1]
[null,null,null,null,null,null,null,null,null,null,null,42,1]
[null,null,null,null,null,null,null,null,null,null,null,43,1]
[null,null,null,null,null,null,null,null,null,null,null,44,1]
[null,null,null,null,null,null,null,null,null,null,null,45,2]
[null,null,null,null,null,null,null,null,null,null,null,46,1]
[null,null,null,null,null,null,null,null,null,null,null,47,1]
[null,null,null,null,null,null,null,null,null,null,null,48,1]
[null,null,null,null,null,null,null,null,null,null,null,49,1]
[null,null,null,null,null,null,null,null,null,null,null,50,1]
[null,null,null,null,null,null,null,null,null,null,null,51,1]
[null,null,null,null,null,null,null,null,null,null,null,52,1]
[null,null,null,null,null,null,null,null,null,null,null,53,1]
[null,null,null,null,null,null,null,null,null,null,null,"Total",76]

{"sheet":"AGE.ANC.SEX par Services","index":4,"n_rows":111,"n_cols":22,"rows_kept":111,"cut":false,"hidden":false,"merged":[]}
[]
[]
[null,null,"QUELLE EST LA REPARTITION DES SALARIES PAR SERVICE  ?"]
[null,null,"Axe d'analyse: Répartition"]
[]
[]
[]
[null,null,"SERVICES PAR AGE"]
[]
[null,null,null,"REPARTION EN NOMBRE ",null,null,null,null,null,null,null,null,null,"REPARTITION EN POURCENTAGE "]
[]
[]
[]
[null,null,null,null,null,null,null,null,null,null,null,null,null,"SEXE","(Tout)"]
[null,null,null,"NB sur MATRICULE","Tranche âge 10"]
[null,null,null,"SERVICE/SECTEUR","10-19","20-29","30-39","40-49","50-59","60-69","Total",null,null,"NB sur MATRICULE","Tranche âge 10"]
[null,null,null,"DIR",null,null,2,null,1,null,3,null,null,"SERVICE/SECTEUR","10-19","20-29","30-39","40-49","50-59","60-69","Total"]
[null,null,null,"PROD",7,8,15,8,11,7,56,null,null,"DIR",0,0,0.66666666666666663,0,0.33333333333333331,0,1]
[null,null,null,"SA",null,4,3,6,1,3,17,null,null,"PROD",0.125,0.14285714285714285,0.26785714285714285,0.14285714285714285,0.19642857142857142,0.125,1]
[null,null,null,"Total",7,12,20,14,13,10,76,null,null,"SA",0,0.23529411764705882,0.17647058823529413,0.35294117647058826,5.8823529411764705E-2,0.17647058823529413,1]
[null,null,null,null,null,null,null,null,null,null,null,null,null,"Total",9.2105263157894732E-2,0.15789473684210525,0.26315789473684209,0.18421052631578946,0.17105263157894737,0.13157894736842105,1]
[]
[]
[]
[]
[]
[]
[]
[]
[]
[]
[]
[]
[]
[]
[]
[]
[]
[]
[]
[]
[]
[]
[]
[]
[]
[]
[]
[null,null,null," SERVICES PAR ANCIENNETE"]
[]
[null,null,null,"REPARTION EN NOMBRE ",null,null,null,null,null,null,null,null,null,"REPARTITION EN POURCENTAGE "]
[]
[null,null,null,"NB sur MATRICULE","Tranche ancienneté "]
[null,null,null,"SERVICE/SECTEUR","1:-1an","2:1-2","3:3-5","4:6-11","5:+11","Total"]
[null,null,null,"DIR",null,null,null,1,2,3]
[null,null,null,"PROD",2,3,11,4,36,56,null,null,null,null,"NB sur MATRICULE","Tranche ancienneté "]
[null,null,null,"SA",null,null,1,5,11,17,null,null,null,null,"SERVICE/SECTEUR","1:-1an","2:1-2","3:3-5","4:6-11","5:+11","Total"]
[null,null,null,"Total",2,3,12,10,49,76,null,null,null,null,"DIR",0,0,0,0.33333333333333331,0.66666666666666663,1]
[null,null,null,null,null,null,null,null,null,null,null,null,null,null,"PROD",3.5714285714285712E-2,5.3571428571428568E-2,0.19642857142857142,7.1428571428571425E-2,0.6428571428571429,1]
[null,null,null,null,null,null,null,null,null,null,null,null,null,null,"SA",0,0,5.8823529411764705E-2,0.29411764705882354,0.6470588235294118,1]
[null,null,null,null,null,null,null,null,null,null,null,null,null,null,"Total",2.6315789473684209E-2,3.9473684210526314E-2,0.15789473684210525,0.13157894736842105,0.64473684210526316,1]
[]
[]
[]
[]
[]
[]
[]
[]
[]
[]
[]
[]
[]
[]
[]
[]
[]
[]
[]
[]
[]
[]
[]
[]
[]
[]
[]
[]
[]
[null,null,null," SERVICES PAR SEXE"]
[]
[]
[null,null,"Avertissement: toujours vérifier la cohérence entre les tableaux et les graphiques liés et ajuster la plage de sélection des données si besoin"]
[]
[null,null,null,"REPARTION EN NOMBRE ",null,null,null,null,null,null,null,null,"REPARTITION EN % PAR SERVICES",null,null,null,null,null,"REPARTITION DES SERVICES PAR SEXE en %"]
[]
[null,null,null,"menu de tri complémentaire",null,null,null,null,null,null,null,null,"menu de tri complémentaire"]
[]
[]
[]
[]
[null,null,null,null,null,null,null,null,null,null,null,null,null,null,null,null,null,null,"NB sur MATRICULE","Étiquettes de colonnes"]
[null,null,null,null,null,null,null,null,null,null,null,null,null,null,null,null,null,null,"Étiquettes de lignes","F","H","Total"]
[null,null,null,null,null,null,null,null,null,null,null,null,"NB sur MATRICULE","SEXE",null,null,null,null,"DIR",0,6.3829787234042548E-2,3.9473684210526314E-2]
[null,null,null,"NB sur MATRICULE","SEXE",null,null,null,null,null,null,null,"SERVICE/SECTEUR","H","F","Total",null,null,"PROD",0.65517241379310343,0.78723404255319152,0.73684210526315785]
[null,null,null,"SERVICE/SECTEUR","H","F","Total",null,null,null,null,null,"DIR",1,0,1,null,null,"SA",0.34482758620689657,0.14893617021276595,0.22368421052631579]
[null,null,null,"DIR",3,null,3,null,null,null,null,null,"PROD",0.6607142857142857,0.3392857142857143,1,null,null,"Total",1,1,1]
[null,null,null,"PROD",37,19,56,null,null,null,null,null,"SA",0.41176470588235292,0.58823529411764708,1]
[null,null,null,"SA",7,10,17,null,null,null,null,null,"Total",0.61842105263157898,0.38157894736842107,1]
[null,null,null,"Total",47,29,76]

{"sheet":"AGE.ANC.SEX par Métiers","index":5,"n_rows":117,"n_cols":80,"rows_kept":117,"cut":false,"hidden":false,"merged":[]}
[]
[]
[null,null,"QUELLE EST LA REPARTITION DES SALARIES PAR METIERS/EMPLOIS  ?",null,null,null,null,null,null,null,null,null,null,null,null,null,null,null,null,null,null,null,null,"Suite ->"]
[null,null,"Axe d'analyse: Répartition"]
[]
[]
[]
[null,null,"EMPLOIS/METIERS PAR AGE"]
[]
[null,null,null,"REPARTION EN NOMBRE ",null,null,null,null,null,null,null,null,null,"REPARTITION EN POURCENTAGE ",null,null,null,null,null,null,null,null,null,null,"HISTOGRAMME (par METIERS)"]
[]
[]
[]
[null,null,null,null,null,null,null,null,null,null,null,null,null,null,null,null,null,null,null,null,null,null,null,null,"METIER/EMPLOI","(Tout)"]
[null,null,null,"NB sur MATRICULE","Tranche âge 10"]
[null,null,null,"METIER/EMPLOI","10-19","20-29","30-39","40-49","50-59","60-69","Total",null,null,"NB sur MATRICULE","Tranche âge 10",null,null,null,null,null,null,null,null,null,"NB sur MATRICULE","Étiquettes de colonnes"]
[null,null,null,"chef d'équipe",1,1,3,null,2,null,7,null,null,"METIER/EMPLOI","10-19","20-29","30-39","40-49","50-59","60-69","Total",null,null,null,null,19,20,21,22,23,24,25,26,27,28,29,30,31,32,33,34,35,36,37,38,39,40,41,42,43,44,45,46,47,48,49,50,51,52,53,54,55,56,57,58,59,60,61,62,63,64,65,66,67,18,17,16,"Total"]
[null,null,null,"commercial",null,2,2,3,1,1,9,null,null,"chef d'équipe",0.14285714285714285,0.14285714285714285,0.42857142857142855,0,0.2857142857142857,0,1,null,null,null,"Somme",2,1,1,1,1,1,1,1,1,2,2,2,1,4,1,1,4,2,3,1,1,1,1,2,1,1,1,2,1,2,2,1,3,1,1,1,2,1,1,1,1,2,1,1,1,1,1,2,1,1,1,3,76]
[null,null,null,"comptable",null,1,null,2,null,1,4,null,null,"commercial",0,0.22222222222222221,0.22222222222222221,0.33333333333333331,0.1111111111111111,0.1111111111111111,1]
[null,null,null,"directeur",null,null,2,null,1,null,3,null,null,"comptable",0,0.25,0,0.5,0,0.25,1]
[null,null,null,"opérateur",5,7,11,8,9,5,45,null,null,"directeur",0,0,0.66666666666666663,0,0.33333333333333331,0,1]
[null,null,null,"secrétaire",null,1,1,1,null,1,4,null,null,"opérateur",0.1111111111111111,0.15555555555555556,0.24444444444444444,0.17777777777777778,0.2,0.1111111111111111,1]
[null,null,null,"technicien",1,null,1,null,null,2,4,null,null,"secrétaire",0,0.25,0.25,0.25,0,0.25,1]
[null,null,null,"Total",7,12,20,14,13,10,76,null,null,"technicien",0.25,0,0.25,0,0,0.5,1]
[null,null,null,null,null,null,null,null,null,null,null,null,null,"Total",9.2105263157894732E-2,0.15789473684210525,0.26315789473684209,0.18421052631578946,0.17105263157894737,0.13157894736842105,1]
[]
[]
[]
[]
[]
[]
[]
[]
[]
[]
[]
[]
[]
[]
[]
[]
[]
[]
[]
[]
[]
[]
[]
[null,null,null,"EMPLOIS/METIERS PAR ANCIENNETE "]
[]
[]
[null,null,null,null,null,null,null,null,null,null,null,null,null,null,null,null,null,null,null,null,null,null,null,null,"HISTOGRAMME (par METIERS)"]
[null,null,null,"NB sur MATRICULE","Tranche ancienneté "]
[null,null,null,"METIER/EMPLOI","1:-1an","2:1-2","3:3-5","4:6-11","5:+11","Total"]
[null,null,null,"chef d'équipe",null,1,1,null,5,7]
[null,null,null,"commercial",null,null,null,3,6,9,null,null,null,null,"NB sur MATRICULE","Tranche ancienneté ",null,null,null,null,null,null,null,null,"METIER/EMPLOI","(Tout)"]
[null,null,null,"comptable",null,null,null,1,3,4,null,null,null,null,"METIER/EMPLOI","1:-1an","2:1-2","3:3-5","4:6-11","5:+11","Total"]
[null,null,null,"directeur",null,null,null,1,2,3,null,null,null,null,"chef d'équipe",0,0.14285714285714285,0.14285714285714285,0,0.7142857142857143,1,null,null,null,"NB sur MATRICULE","Étiquettes de colonnes"]
[null,null,null,"opérateur",2,1,9,4,29,45,null,null,null,null,"commercial",0,0,0,0.33333333333333331,0.66666666666666663,1,null,null,null,null,0,1,2,3,4,5,6,7,8,9,10,11,12,13,14,15,16,17,18,19,20,21,22,23,24,25,26,27,28,29,30,31,32,33,34,35,36,37,38,39,40,41,42,43,44,45,46,47,48,49,50,51,52,53,"Total"]
[null,null,null,"secrétaire",null,null,1,1,2,4,null,null,null,null,"comptable",0,0,0,0.25,0.75,1,null,null,null,"Somme",2,1,2,9,2,1,2,1,1,1,3,2,2,1,2,1,1,1,1,1,2,1,1,2,1,1,1,1,1,2,1,1,1,1,2,1,1,1,1,1,1,1,1,1,1,2,1,1,1,1,1,1,1,1,76]
[null,null,null,"technicien",null,1,1,null,2,4,null,null,null,null,"directeur",0,0,0,0.33333333333333331,0.66666666666666663,1]
[null,null,null,"Total",2,3,12,10,49,76,null,null,null,null,"opérateur",4.4444444444444446E-2,2.2222222222222223E-2,0.2,8.8888888888888892E-2,0.64444444444444449,1]
[null,null,null,null,null,null,null,null,null,null,null,null,null,null,"secrétaire",0,0,0.25,0.25,0.5,1]
[null,null,null,null,null,null,null,null,null,null,null,null,null,null,"technicien",0,0.25,0.25,0,0.5,1]
[null,null,null,null,null,null,null,null,null,null,null,null,null,null,"Total",2.6315789473684209E-2,3.9473684210526314E-2,0.15789473684210525,0.13157894736842105,0.64473684210526316,1]
[]
[]
[]
[]
[]
[]
[]
[]
[]
[]
[]
[]
[]
[]
[]
[]
[]
[]
[]
[]
[]
[]
[]
[]
[]
[]
[]
[null,null,null," EMPLOIS/METIERS PAR SEXE"]
[]
[]
[null,null,"Avertissement: toujours vérifier la cohérence entre les tableaux et les graphiques liés et ajuster la plage de sélection des données si besoin"]
[]
[null,null,null,"REPARTION EN NOMBRE ",null,null,null,null,null,null,null,null,"REPARTITION EN % PAR METIERS",null,null,null,null,null,"REPARTITION DES METIERS PAR SEXE en %"]
[]
[null,null,null,"menu de tri complémentaire",null,null,null,null,null,null,null,null,"menu de tri complémentaire"]
[]
[]
[]
[]
[null,null,null,null,null,null,null,null,null,null,null,null,null,null,null,null,null,null,"NB sur MATRICULE","Étiquettes de colonnes"]
[null,null,null,null,null,null,null,null,null,null,null,null,null,null,null,null,null,null,"Étiquettes de lignes","F","H","Total"]
[null,null,null,null,null,null,null,null,null,null,null,null,"NB sur MATRICULE","SEXE",null,null,null,null,"chef d'équipe",0,0.14893617021276595,9.2105263157894732E-2]
[null,null,null,"NB sur MATRICULE","SEXE",null,null,null,null,null,null,null,"METIER/EMPLOI","H","F","Total",null,null,"commercial",0.20689655172413793,6.3829787234042548E-2,0.11842105263157894]
[null,null,null,"METIER/EMPLOI","H","F","Total",null,null,null,null,null,"chef d'équipe",1,0,1,null,null,"comptable",0,8.5106382978723402E-2,5.2631578947368418E-2]
[null,null,null,"chef d'équipe",7,null,7,null,null,null,null,null,"commercial",0.33333333333333331,0.66666666666666663,1,null,null,"directeur",0,6.3829787234042548E-2,3.9473684210526314E-2]
[null,null,null,"commercial",3,6,9,null,null,null,null,null,"comptable",1,0,1,null,null,"opérateur",0.65517241379310343,0.55319148936170215,0.59210526315789469]
[null,null,null,"comptable",4,null,4,null,null,null,null,null,"directeur",1,0,1,null,null,"secrétaire",0.13793103448275862,0,5.2631578947368418E-2]
[null,null,null,"directeur",3,null,3,null,null,null,null,null,"opérateur",0.57777777777777772,0.42222222222222222,1,null,null,"technicien",0,8.5106382978723402E-2,5.2631578947368418E-2]
[null,null,null,"opérateur",26,19,45,null,null,null,null,null,"secrétaire",0,1,1,null,null,"Total",1,1,1]
[null,null,null,"secrétaire",null,4,4,null,null,null,null,null,"technicien",1,0,1]
[null,null,null,"technicien",4,null,4,null,null,null,null,null,"Total",0.61842105263157898,0.38157894736842107,1]
[null,null,null,"Total",47,29,76]

{"sheet":"ANALYSES COMPLEMENTAIRES REP","index":6,"n_rows":5,"n_cols":24,"rows_kept":5,"cut":false,"hidden":false,"merged":[]}
[]
[]
[null,"Dans cet onglet, un Tableau Croisé Dynamique vierge vous permet de faire des croisements complémentaires pour analyser la répartition des salariés dan les différentes activités. "]
[null,null,null,null,null,null,null,null,null,null,null,null,null,null,null,null,null,null,null,null,null,null,null,"Suite ->"]
[null,null,"Axe d'analyse: Répartition"]

{"sheet":"Evolution AGE 3 ans","index":7,"n_rows":2002,"n_cols":10,"rows_kept":2002,"cut":false,"hidden":false,"merged":[]}
[]
[]
[null,null,"QUELLE EST L'EVOLUTION DE LA STRUCTURE DEMOGRAPHIQUE DE L'ENTREPRISE ? : HISTOGRAMME DECALE"]
[]
[]
[]
[null,null,"AGE N","AGE N-3","AGE N-3 + 3",null,null,"AGES","Effectifs année n","Effectifs (annee n-3) + 3"]
[null,null,null,null,{"$f":"$D8+3","v":3},null,null,16,{"$f":"COUNTIF('Evolution AGE 3 ans'!$C$7:$C$2008,16)","v":0},{"$f":"COUNTIF('Evolution AGE 3 ans'!$E$7:$E$2007,16)","v":0}]
[null,null,null,null,{"$f":"$D9+3","v":3},null,null,17,{"$f":"COUNTIF('Evolution AGE 3 ans'!$C$7:$C$2008,17)","v":0},{"$f":"COUNTIF('Evolution AGE 3 ans'!$E$7:$E$2007,17)","v":0}]
[null,null,null,null,3,null,null,18,{"$f":"COUNTIF('Evolution AGE 3 ans'!$C$7:$C$2008,18)","v":0},{"$f":"COUNTIF('Evolution AGE 3 ans'!$E$7:$E$2007,18)","v":0}]
[null,null,null,null,3,null,null,19,{"$f":"COUNTIF('Evolution AGE 3 ans'!$C$7:$C$2008,19)","v":0},{"$f":"COUNTIF('Evolution AGE 3 ans'!$E$7:$E$2007,19)","v":0}]
[null,null,null,null,3,null,null,20,{"$f":"COUNTIF('Evolution AGE 3 ans'!$C$7:$C$2008,20)","v":0},{"$f":"COUNTIF('Evolution AGE 3 ans'!$E$7:$E$2007,20)","v":0}]
[null,null,null,null,3,null,null,21,{"$f":"COUNTIF('Evolution AGE 3 ans'!$C$7:$C$2008,21)","v":0},{"$f":"COUNTIF('Evolution AGE 3 ans'!$E$7:$E$2007,21)","v":0}]
[null,null,null,null,3,null,null,22,{"$f":"COUNTIF('Evolution AGE 3 ans'!$C$7:$C$2008,22)","v":0},{"$f":"COUNTIF('Evolution AGE 3 ans'!$E$7:$E$2007,22)","v":0}]
[null,null,null,null,3,null,null,23,{"$f":"COUNTIF('Evolution AGE 3 ans'!$C$7:$C$2008,23)","v":0},{"$f":"COUNTIF('Evolution AGE 3 ans'!$E$7:$E$2007,23)","v":0}]
[null,null,null,null,3,null,null,24,{"$f":"COUNTIF('Evolution AGE 3 ans'!$C$7:$C$2008,24)","v":0},{"$f":"COUNTIF('Evolution AGE 3 ans'!$E$7:$E$2008,24)","v":0}]
[null,null,null,null,3,null,null,25,{"$f":"COUNTIF('Evolution AGE 3 ans'!$C$7:$C$2008,25)","v":0},{"$f":"COUNTIF('Evolution AGE 3 ans'!$E$7:$E$2007,25)","v":0}]
[null,null,null,null,3,null,null,26,{"$f":"COUNTIF('Evolution AGE 3 ans'!$C$7:$C$2008,26)","v":0},{"$f":"COUNTIF('Evolution AGE 3 ans'!$E$7:$E$2008,26)","v":0}]
[null,null,null,null,3,null,null,27,{"$f":"COUNTIF('Evolution AGE 3 ans'!$C$7:$C$2008,27)","v":0},{"$f":"COUNTIF('Evolution AGE 3 ans'!$E$7:$E$2007,27)","v":0}]
[null,null,null,null,3,null,null,28,{"$f":"COUNTIF('Evolution AGE 3 ans'!$C$7:$C$2008,28)","v":0},{"$f":"COUNTIF('Evolution AGE 3 ans'!$E$7:$E$2007,28)","v":0}]
[null,null,null,null,3,null,null,29,{"$f":"COUNTIF('Evolution AGE 3 ans'!$C$7:$C$2008,29)","v":0},{"$f":"COUNTIF('Evolution AGE 3 ans'!$E$7:$E$2007,29)","v":0}]
[null,null,null,null,3,null,null,30,{"$f":"COUNTIF('Evolution AGE 3 ans'!$C$7:$C$2008,30)","v":0},{"$f":"COUNTIF('Evolution AGE 3 ans'!$E$7:$E$2007,30)","v":0}]
[null,null,null,null,3,null,null,31,{"$f":"COUNTIF('Evolution AGE 3 ans'!$C$7:$C$2008,31)","v":0},{"$f":"COUNTIF('Evolution AGE 3 ans'!$E$7:$E$2007,31)","v":0}]
[null,null,null,null,3,null,null,32,{"$f":"COUNTIF('Evolution AGE 3 ans'!$C$7:$C$2008,32)","v":0},{"$f":"COUNTIF('Evolution AGE 3 ans'!$E$7:$E$2007,32)","v":0}]
[null,null,null,null,3,null,null,33,{"$f":"COUNTIF('Evolution AGE 3 ans'!$C$7:$C$2008,33)","v":0},{"$f":"COUNTIF('Evolution AGE 3 ans'!$E$7:$E$2007,33)","v":0}]
[null,null,null,null,3,null,null,34,{"$f":"COUNTIF('Evolution AGE 3 ans'!$C$7:$C$2008,34)","v":0},{"$f":"COUNTIF('Evolution AGE 3 ans'!$E$7:$E$2007,34)","v":0}]
[null,null,null,null,3,null,null,35,{"$f":"COUNTIF('Evolution AGE 3 ans'!$C$7:$C$2008,35)","v":0},{"$f":"COUNTIF('Evolution AGE 3 ans'!$E$7:$E$2007,35)","v":0}]
[null,null,null,null,3,null,null,36,{"$f":"COUNTIF('Evolution AGE 3 ans'!$C$7:$C$2008,36)","v":0},{"$f":"COUNTIF('Evolution AGE 3 ans'!$E$7:$E$2007,36)","v":0}]
[null,null,null,null,3,null,null,37,{"$f":"COUNTIF('Evolution AGE 3 ans'!$C$7:$C$2008,37)","v":0},{"$f":"COUNTIF('Evolution AGE 3 ans'!$E$7:$E$2007,37)","v":0}]
[null,null,null,null,3,null,null,38,{"$f":"COUNTIF('Evolution AGE 3 ans'!$C$7:$C$2008,38)","v":0},{"$f":"COUNTIF('Evolution AGE 3 ans'!$E$7:$E$2007,38)","v":0}]
[null,null,null,null,3,null,null,39,{"$f":"COUNTIF('Evolution AGE 3 ans'!$C$7:$C$2008,39)","v":0},{"$f":"COUNTIF('Evolution AGE 3 ans'!$E$7:$E$2007,39)","v":0}]
[null,null,null,null,3,null,null,40,{"$f":"COUNTIF('Evolution AGE 3 ans'!$C$7:$C$2008,40)","v":0},{"$f":"COUNTIF('Evolution AGE 3 ans'!$E$7:$E$2007,40)","v":0}]
[null,null,null,null,3,null,null,41,{"$f":"COUNTIF('Evolution AGE 3 ans'!$C$7:$C$2008,41)","v":0},{"$f":"COUNTIF('Evolution AGE 3 ans'!$E$7:$E$2007,41)","v":0}]
[null,null,null,null,3,null,null,42,{"$f":"COUNTIF('Evolution AGE 3 ans'!$C$7:$C$2008,42)","v":0},{"$f":"COUNTIF('Evolution AGE 3 ans'!$E$7:$E$2007,42)","v":0}]
[null,null,null,null,3,null,null,43,{"$f":"COUNTIF('Evolution AGE 3 ans'!$C$7:$C$2008,43)","v":0},{"$f":"COUNTIF('Evolution AGE 3 ans'!$E$7:$E$2007,43)","v":0}]
[null,null,null,null,3,null,null,44,{"$f":"COUNTIF('Evolution AGE 3 ans'!$C$7:$C$2008,44)","v":0},{"$f":"COUNTIF('Evolution AGE 3 ans'!$E$7:$E$2007,44)","v":0}]
[null,null,null,null,3,null,null,45,{"$f":"COUNTIF('Evolution AGE 3 ans'!$C$7:$C$2008,45)","v":0},{"$f":"COUNTIF('Evolution AGE 3 ans'!$E$7:$E$2007,45)","v":0}]
[null,null,null,null,3,null,null,46,{"$f":"COUNTIF('Evolution AGE 3 ans'!$C$7:$C$2008,46)","v":0},{"$f":"COUNTIF('Evolution AGE 3 ans'!$E$7:$E$2007,46)","v":0}]
[null,null,null,null,3,null,null,47,{"$f":"COUNTIF('Evolution AGE 3 ans'!$C$7:$C$2008,47)","v":0},{"$f":"COUNTIF('Evolution AGE 3 ans'!$E$7:$E$2007,47)","v":0}]
[null,null,null,null,3,null,null,48,{"$f":"COUNTIF('Evolution AGE 3 ans'!$C$7:$C$2008,48)","v":0},{"$f":"COUNTIF('Evolution AGE 3 ans'!$E$7:$E$2007,48)","v":0}]
[null,null,null,null,3,null,null,49,{"$f":"COUNTIF('Evolution AGE 3 ans'!$C$7:$C$2008,49)","v":0},{"$f":"COUNTIF('Evolution AGE 3 ans'!$E$7:$E$2007,49)","v":0}]
[null,null,null,null,3,null,null,50,{"$f":"COUNTIF('Evolution AGE 3 ans'!$C$7:$C$2008,50)","v":0},{"$f":"COUNTIF('Evolution AGE 3 ans'!$E$7:$E$2007,50)","v":0}]
[null,null,null,null,3,null,null,51,{"$f":"COUNTIF('Evolution AGE 3 ans'!$C$7:$C$2008,51)","v":0},{"$f":"COUNTIF('Evolution AGE 3 ans'!$E$7:$E$2008,51)","v":0}]
[null,null,null,null,3,null,null,52,{"$f":"COUNTIF('Evolution AGE 3 ans'!$C$7:$C$2008,52)","v":0},{"$f":"COUNTIF('Evolution AGE 3 ans'!$E$7:$E$2007,52)","v":0}]
[null,null,null,null,3,null,null,53,{"$f":"COUNTIF('Evolution AGE 3 ans'!$C$7:$C$2008,53)","v":0},{"$f":"COUNTIF('Evolution AGE 3 ans'!$E$7:$E$2007,53)","v":0}]
[null,null,null,null,3,null,null,54,{"$f":"COUNTIF('Evolution AGE 3 ans'!$C$7:$C$2008,54)","v":0},{"$f":"COUNTIF('Evolution AGE 3 ans'!$E$7:$E$2007,54)","v":0}]
[null,null,null,null,3,null,null,55,{"$f":"COUNTIF('Evolution AGE 3 ans'!$C$7:$C$2008,55)","v":0},{"$f":"COUNTIF('Evolution AGE 3 ans'!$E$7:$E$2007,55)","v":0}]
[null,null,null,null,3,null,null,56,{"$f":"COUNTIF('Evolution AGE 3 ans'!$C$7:$C$2008,56)","v":0},{"$f":"COUNTIF('Evolution AGE 3 ans'!$E$7:$E$2007,56)","v":0}]
[null,null,null,null,3,null,null,57,{"$f":"COUNTIF('Evolution AGE 3 ans'!$C$7:$C$2008,57)","v":0},{"$f":"COUNTIF('Evolution AGE 3 ans'!$E$7:$E$2007,57)","v":0}]
[null,null,null,null,3,null,null,58,{"$f":"COUNTIF('Evolution AGE 3 ans'!$C$7:$C$2008,58)","v":0},{"$f":"COUNTIF('Evolution AGE 3 ans'!$E$7:$E$2007,58)","v":0}]
[null,null,null,null,3,null,null,59,{"$f":"COUNTIF('Evolution AGE 3 ans'!$C$7:$C$2008,59)","v":0},{"$f":"COUNTIF('Evolution AGE 3 ans'!$E$7:$E$2007,59)","v":0}]
[null,null,null,null,3,null,null,60,{"$f":"COUNTIF('Evolution AGE 3 ans'!$C$7:$C$2008,60)","v":0},{"$f":"COUNTIF('Evolution AGE 3 ans'!$E$7:$E$2007,60)","v":0}]
[null,null,null,null,3,null,null,61,{"$f":"COUNTIF('Evolution AGE 3 ans'!$C$7:$C$2008,61)","v":0},{"$f":"COUNTIF('Evolution AGE 3 ans'!$E$7:$E$2007,61)","v":0}]
[null,null,null,null,3,null,null,62,{"$f":"COUNTIF('Evolution AGE 3 ans'!$C$7:$C$2008,62)","v":0},{"$f":"COUNTIF('Evolution AGE 3 ans'!$E$7:$E$2007,62)","v":0}]
[null,null,null,null,3,null,null,63,{"$f":"COUNTIF('Evolution AGE 3 ans'!$C$7:$C$2008,63)","v":0},{"$f":"COUNTIF('Evolution AGE 3 ans'!$E$7:$E$2007,63)","v":0}]
[null,null,null,null,3,null,null,64,{"$f":"COUNTIF('Evolution AGE 3 ans'!$C$7:$C$2008,64)","v":0},{"$f":"COUNTIF('Evolution AGE 3 ans'!$E$7:$E$2007,64)","v":0}]
[null,null,null,null,3,null,null,65,{"$f":"COUNTIF('Evolution AGE 3 ans'!$C$7:$C$2008,65)","v":0},{"$f":"COUNTIF('Evolution AGE 3 ans'!$E$7:$E$2007,65)","v":0}]
[null,null,null,null,3,null,null,66,{"$f":"COUNTIF('Evolution AGE 3 ans'!$C$7:$C$2008,66)","v":0},{"$f":"COUNTIF('Evolution AGE 3 ans'!$E$7:$E$2007,66)","v":0}]
[null,null,null,null,3,null,null,67,{"$f":"COUNTIF('Evolution AGE 3 ans'!$C$7:$C$2008,67)","v":0},{"$f":"COUNTIF('Evolution AGE 3 ans'!$E$7:$E$2007,67)","v":0}]
[null,null,null,null,3]
[null,null,null,null,3]
[null,null,null,null,3]
[null,null,null,null,3]
[null,null,null,null,3,null,null,"TOTAL EFFECTIF",{"$f":"SUM(I8:I59)","v":0},{"$f":"SUM(J8:J59)","v":0}]
[null,null,null,null,3]
[null,null,null,null,3]
[null,null,null,null,3]
[null,null,null,null,3]
[null,null,null,null,3]
[null,null,null,null,3]
[null,null,null,null,3]
[null,null,null,null,3]
[null,null,null,null,{"$f":"$D73+3","v":3}]
[null,null,null,null,3]
[null,null,null,null,3]
[null,null,null,null,3]
[null,null,null,null,3]
[null,null,null,null,3]
[null,null,null,null,3]
[null,null,null,null,3]
[null,null,null,null,3]
[null,null,null,null,3]
[null,null,null,null,3]
[null,null,null,null,3]
[null,null,null,null,3]
[null,null,null,null,3]
[null,null,null,null,3]
[null,null,null,null,3]
[null,null,null,null,3]
[null,null,null,null,3]
[null,null,null,null,3]
[null,null,null,null,3]
[null,null,null,null,3]
[null,null,null,null,3]
[null,null,null,null,3]
[null,null,null,null,3]
[null,null,null,null,3]
[null,null,null,null,3]
[null,null,null,null,3]
[null,null,null,null,3]
[null,null,null,null,3]
[null,null,null,null,3]
[null,null,null,null,3]
[null,null,null,null,3]
[null,null,null,null,3]
[null,null,null,null,3]
[null,null,null,null,3]
[null,null,null,null,3]
[null,null,null,null,3]
[null,null,null,null,3]
[null,null,null,null,3]
[null,null,null,null,3]
[null,null,null,null,3]
[null,null,null,null,3]
[null,null,null,null,3]
[null,null,null,null,3]
[null,null,null,null,3]
[null,null,null,null,3]
[null,null,null,null,3]
[null,null,null,null,3]
[null,null,null,null,3]
[null,null,null,null,3]
[null,null,null,null,3]
[null,null,null,null,3]
[null,null,null,null,3]
[null,null,null,null,3]
[null,null,null,null,3]
[null,null,null,null,3]
[null,null,null,null,3]
[null,null,null,null,3]
[null,null,null,null,3]
[null,null,null,null,3]
[null,null,null,null,3]
[null,null,null,null,3]
[null,null,null,null,3]
[null,null,null,null,3]
[null,null,null,null,{"$f":"$D137+3","v":3}]
[null,null,null,null,3]
[null,null,null,null,3]
[null,null,null,null,3]
[null,null,null,null,3]
[null,null,null,null,3]
[null,null,null,null,3]
[null,null,null,null,3]
[null,null,null,null,3]
[null,null,null,null,3]
[null,null,null,null,3]
[null,null,null,null,3]
[null,null,null,null,3]
[null,null,null,null,3]
[null,null,null,null,3]
[null,null,null,null,3]
[null,null,null,null,3]
[null,null,null,null,3]
[null,null,null,null,3]
[null,null,null,null,3]
[null,null,null,null,3]
[null,null,null,null,3]
[null,null,null,null,3]
[null,null,null,null,3]
[null,null,null,null,3]
[null,null,null,null,3]
[null,null,null,null,3]
[null,null,null,null,3]
[null,null,null,null,3]
[null,null,null,null,3]
[null,null,null,null,3]
[null,null,null,null,3]
[null,null,null,null,3]
[null,null,null,null,3]
[null,null,null,null,3]
[null,null,null,null,3]
[null,null,null,null,3]
[null,null,null,null,3]
[null,null,null,null,3]
[null,null,null,null,3]
[null,null,null,null,3]
[null,null,null,null,3]
[null,null,null,null,3]
[null,null,null,null,3]
[null,null,null,null,3]
[null,null,null,null,3]
[null,null,null,null,3]
[null,null,null,null,3]
[null,null,null,null,3]
[null,null,null,null,3]
[null,null,null,null,3]
[null,null,null,null,3]
[null,null,null,null,3]
[null,null,null,null,3]
[null,null,null,null,3]
[null,null,null,null,3]
[null,null,null,null,3]
[null,null,null,null,3]
[null,null,null,null,3]
[null,null,null,null,3]
[null,null,null,null,3]
[null,null,null,null,3]
[null,null,null,null,3]
[null,null,null,null,3]
[null,null,null,null,{"$f":"$D201+3","v":3}]
[null,null,null,null,3]
[null,null,null,null,3]
[null,null,null,null,3]
[null,null,null,null,3]
[null,null,null,null,3]
[null,null,null,null,3]
[null,null,null,null,3]
[null,null,null,null,3]
[null,null,null,null,3]
[null,null,null,null,3]
[null,null,null,null,3]
[null,null,null,null,3]
[null,null,null,null,3]
[null,null,null,null,3]
[null,null,null,null,3]
[null,null,null,null,3]
[null,null,null,null,3]
[null,null,null,null,3]
[null,null,null,null,3]
[null,null,null,null,3]
[null,null,null,null,3]
[null,null,null,null,3]
[null,null,null,null,3]
[null,null,null,null,3]
[null,null,null,null,3]
[null,null,null,null,3]
[null,null,null,null,3]
[null,null,null,null,3]
[null,null,null,null,3]
[null,null,null,null,3]
[null,null,null,null,3]
[null,null,null,null,3]
[null,null,null,null,3]
[null,null,null,null,3]
[null,null,null,null,3]
[null,null,null,null,3]
[null,null,null,null,3]
[null,null,null,null,3]
[null,null,null,null,3]
[null,null,null,null,3]
[null,null,null,null,3]
[null,null,null,null,3]
[null,null,null,null,3]
[null,null,null,null,3]
[null,null,null,null,3]
[null,null,null,null,3]
[null,null,null,null,3]
[null,null,null,null,3]
[null,null,null,null,3]
[null,null,null,null,3]
[null,null,null,null,3]
[null,null,null,null,3]
[null,null,null,null,3]
[null,null,null,null,3]
[null,null,null,null,3]
[null,null,null,null,3]
[null,null,null,null,3]
[null,null,null,null,3]
[null,null,null,null,3]
[null,null,null,null,3]
[null,null,null,null,3]
[null,null,null,null,3]
[null,null,null,null,3]
[null,null,null,null,{"$f":"$D265+3","v":3}]
[null,null,null,null,3]
[null,null,null,null,3]
[null,null,null,null,3]
[null,null,null,null,3]
[null,null,null,null,3]
[null,null,null,null,3]
[null,null,null,null,3]
[null,null,null,null,3]
[null,null,null,null,3]
[null,null,null,null,3]
[null,null,null,null,3]
[null,null,null,null,3]
[null,null,null,null,3]
[null,null,null,null,3]
[null,null,null,null,3]
[null,null,null,null,3]
[null,null,null,null,3]
[null,null,null,null,3]
[null,null,null,null,3]
[null,null,null,null,3]
[null,null,null,null,3]
[null,null,null,null,3]
[null,null,null,null,3]
[null,null,null,null,3]
[null,null,null,null,3]
[null,null,null,null,3]
[null,null,null,null,3]
[null,null,null,null,3]
[null,null,null,null,3]
[null,null,null,null,3]
[null,null,null,null,3]
[null,null,null,null,3]
[null,null,null,null,3]
[null,null,null,null,3]
[null,null,null,null,3]
[null,null,null,null,3]
[null,null,null,null,3]
[null,null,null,null,3]
[null,null,null,null,3]
[null,null,null,null,3]
[null,null,null,null,3]
[null,null,null,null,3]
[null,null,null,null,3]
[null,null,null,null,3]
[null,null,null,null,3]
[null,null,null,null,3]
[null,null,null,null,3]
[null,null,null,null,3]
[null,null,null,null,3]
[null,null,null,null,3]
[null,null,null,null,3]
[null,null,null,null,3]
[null,null,null,null,3]
[null,null,null,null,3]
[null,null,null,null,3]
[null,null,null,null,3]
[null,null,null,null,3]
[null,null,null,null,3]
[null,null,null,null,3]
[null,null,null,null,3]
[null,null,null,null,3]
[null,null,null,null,3]
[null,null,null,null,3]
[null,null,null,null,{"$f":"$D329+3","v":3}]
[null,null,null,null,3]
[null,null,null,null,3]
[null,null,null,null,3]
[null,null,null,null,3]
[null,null,null,null,3]
[null,null,null,null,3]
[null,null,null,null,3]
[null,null,null,null,3]
[null,null,null,null,3]
[null,null,null,null,3]
[null,null,null,null,3]
[null,null,null,null,3]
[null,null,null,null,3]
[null,null,null,null,3]
[null,null,null,null,3]
[null,null,null,null,3]
[null,null,null,null,3]
[null,null,null,null,3]
[null,null,null,null,3]
[null,null,null,null,3]
[null,null,null,null,3]
[null,null,null,null,3]
[null,null,null,null,3]
[null,null,null,null,3]
[null,null,null,null,3]
[null,null,null,null,3]
[null,null,null,null,3]
[null,null,null,null,3]
[null,null,null,null,3]
[null,null,null,null,3]
[null,null,null,null,3]
[null,null,null,null,3]
[null,null,null,null,3]
[null,null,null,null,3]
[null,null,null,null,3]
[null,null,null,null,3]
[null,null,null,null,3]
[null,null,null,null,3]
[null,null,null,null,3]
[null,null,null,null,3]
[null,null,null,null,3]
[null,null,null,null,3]
[null,null,null,null,3]
[null,null,null,null,3]
[null,null,null,null,3]
[null,null,null,null,3]
[null,null,null,null,3]
[null,null,null,null,3]
[null,null,null,null,3]
[null,null,null,null,3]
[null,null,null,null,3]
[null,null,null,null,3]
[null,null,null,null,3]
[null,null,null,null,3]
[null,null,null,null,3]
[null,null,null,null,3]
[null,null,null,null,3]
[null,null,null,null,3]
[null,null,null,null,3]
[null,null,null,null,3]
[null,null,null,null,3]
[null,null,null,null,3]
[null,null,null,null,3]
[null,null,null,null,{"$f":"$D393+3","v":3}]
[null,null,null,null,3]
[null,null,null,null,3]
[null,null,null,null,3]
[null,null,null,null,3]
[null,null,null,null,3]
[null,null,null,null,3]
[null,null,null,null,3]
[null,null,null,null,3]
[null,null,null,null,3]
[null,null,null,null,3]
[null,null,null,null,3]
[null,null,null,null,3]
[null,null,null,null,3]
[null,null,null,null,3]
[null,null,null,null,3]
[null,null,null,null,3]
[null,null,null,null,3]
[null,null,null,null,3]
[null,null,null,null,3]
[null,null,null,null,3]
[null,null,null,null,3]
[null,null,null,null,3]
[null,null,null,null,3]
[null,null,null,null,3]
[null,null,null,null,3]
[null,null,null,null,3]
[null,null,null,null,3]
[null,null,null,null,3]
[null,null,null,null,3]
[null,null,null,null,3]
[null,null,null,null,3]
[null,null,null,null,3]
[null,null,null,null,3]
[null,null,null,null,3]
[null,null,null,null,3]
[null,null,null,null,3]
[null,null,null,null,3]
[null,null,null,null,3]
[null,null,null,null,3]
[null,null,null,null,3]
[null,null,null,null,3]
[null,null,null,null,3]
[null,null,null,null,3]
[null,null,null,null,3]
[null,null,null,null,3]
[null,null,null,null,3]
[null,null,null,null,3]
[null,null,null,null,3]
[null,null,null,null,3]
[null,null,null,null,3]
[null,null,null,null,3]
[null,null,null,null,3]
[null,null,null,null,3]
[null,null,null,null,3]
[null,null,null,null,3]
[null,null,null,null,3]
[null,null,null,null,3]
[null,null,null,null,3]
[null,null,null,null,3]
[null,null,null,null,3]
[null,null,null,null,3]
[null,null,null,null,3]
[null,null,null,null,3]
[null,null,null,null,{"$f":"$D457+3","v":3}]
[null,null,null,null,3]
[null,null,null,null,3]
[null,null,null,null,3]
[null,null,null,null,3]
[null,null,null,null,3]
[null,null,null,null,3]
[null,null,null,null,3]
[null,null,null,null,3]
[null,null,null,null,3]
[null,null,null,null,3]
[null,null,null,null,3]
[null,null,null,null,3]
[null,null,null,null,3]
[null,null,null,null,3]
[null,null,null,null,3]
[null,null,null,null,3]
[null,null,null,null,3]
[null,null,null,null,3]
[null,null,null,null,3]
[null,null,null,null,3]
[null,null,null,null,3]
[null,null,null,null,3]
[null,null,null,null,3]
[null,null,null,null,3]
[null,null,null,null,3]
[null,null,null,null,3]
[null,null,null,null,3]
[null,null,null,null,3]
[null,null,null,null,3]
[null,null,null,null,3]
[null,null,null,null,3]
[null,null,null,null,3]
[null,null,null,null,3]
[null,null,null,null,3]
[null,null,null,null,3]
[null,null,null,null,3]
[null,null,null,null,3]
[null,null,null,null,3]
[null,null,null,null,3]
[null,null,null,null,3]
[null,null,null,null,3]
[null,null,null,null,3]
[null,null,null,null,3]
[null,null,null,null,3]
[null,null,null,null,3]
[null,null,null,null,3]
[null,null,null,null,3]
[null,null,null,null,3]
[null,null,null,null,3]
[null,null,null,null,3]
[null,null,null,null,3]
[null,null,null,null,3]
[null,null,null,null,3]
[null,null,null,null,3]
[null,null,null,null,3]
[null,null,null,null,3]
[null,null,null,null,3]
[null,null,null,null,3]
[null,null,null,null,3]
[null,null,null,null,3]
[null,null,null,null,3]
[null,null,null,null,3]
[null,null,null,null,3]
[null,null,null,null,{"$f":"$D521+3","v":3}]
[null,null,null,null,3]
[null,null,null,null,3]
[null,null,null,null,3]
[null,null,null,null,3]
[null,null,null,null,3]
[null,null,null,null,3]
[null,null,null,null,3]
[null,null,null,null,3]
[null,null,null,null,3]
[null,null,null,null,3]
[null,null,null,null,3]
[null,null,null,null,3]
[null,null,null,null,3]
[null,null,null,null,3]
[null,null,null,null,3]
[null,null,null,null,3]
[null,null,null,null,3]
[null,null,null,null,3]
[null,null,null,null,3]
[null,null,null,null,3]
[null,null,null,null,3]
[null,null,null,null,3]
[null,null,null,null,3]
[null,null,null,null,3]
[null,null,null,null,3]
[null,null,null,null,3]
[null,null,null,null,3]
[null,null,null,null,3]
[null,null,null,null,3]
[null,null,null,null,3]
[null,null,null,null,3]
[null,null,null,null,3]
[null,null,null,null,3]
[null,null,null,null,3]
[null,null,null,null,3]
[null,null,null,null,3]
[null,null,null,null,3]
[null,null,null,null,3]
[null,null,null,null,3]
[null,null,null,null,3]
[null,null,null,null,3]
[null,null,null,null,3]
[null,null,null,null,3]
[null,null,null,null,3]
[null,null,null,null,3]
[null,null,null,null,3]
[null,null,null,null,3]
[null,null,null,null,3]
[null,null,null,null,3]
[null,null,null,null,3]
[null,null,null,null,3]
[null,null,null,null,3]
[null,null,null,null,3]
[null,null,null,null,3]
[null,null,null,null,3]
[null,null,null,null,3]
[null,null,null,null,3]
[null,null,null,null,3]
[null,null,null,null,3]
[null,null,null,null,3]
[null,null,null,null,3]
[null,null,null,null,3]
[null,null,null,null,3]
[null,null,null,null,{"$f":"$D585+3","v":3}]
[null,null,null,null,3]
[null,null,null,null,3]
[null,null,null,null,3]
[null,null,null,null,3]
[null,null,null,null,3]
[null,null,null,null,3]
[null,null,null,null,3]
[null,null,null,null,3]
[null,null,null,null,3]
[null,null,null,null,3]
[null,null,null,null,3]
[null,null,null,null,3]
[null,null,null,null,3]
[null,null,null,null,3]
[null,null,null,null,3]
[null,null,null,null,3]
[null,null,null,null,3]
[null,null,null,null,3]
[null,null,null,null,3]
[null,null,null,null,3]
[null,null,null,null,3]
[null,null,null,null,3]
[null,null,null,null,3]
[null,null,null,null,3]
[null,null,null,null,3]
[null,null,null,null,3]
[null,null,null,null,3]
[null,null,null,null,3]
[null,null,null,null,3]
[null,null,null,null,3]
[null,null,null,null,3]
[null,null,null,null,3]
[null,null,null,null,3]
[null,null,null,null,3]
[null,null,null,null,3]
[null,null,null,null,3]
[null,null,null,null,3]
[null,null,null,null,3]
[null,null,null,null,3]
[null,null,null,null,3]
[null,null,null,null,3]
[null,null,null,null,3]
[null,null,null,null,3]
[null,null,null,null,3]
[null,null,null,null,3]
[null,null,null,null,3]
[null,null,null,null,3]
[null,null,null,null,3]
[null,null,null,null,3]
[null,null,null,null,3]
[null,null,null,null,3]
[null,null,null,null,3]
[null,null,null,null,3]
[null,null,null,null,3]
[null,null,null,null,3]
[null,null,null,null,3]
[null,null,null,null,3]
[null,null,null,null,3]
[null,null,null,null,3]
[null,null,null,null,3]
[null,null,null,null,3]
[null,null,null,null,3]
[null,null,null,null,3]
[null,null,null,null,{"$f":"$D649+3","v":3}]
[null,null,null,null,3]
[null,null,null,null,3]
[null,null,null,null,3]
[null,null,null,null,3]
[null,null,null,null,3]
[null,null,null,null,3]
[null,null,null,null,3]
[null,null,null,null,3]
[null,null,null,null,3]
[null,null,null,null,3]
[null,null,null,null,3]
[null,null,null,null,3]
[null,null,null,null,3]
[null,null,null,null,3]
[null,null,null,null,3]
[null,null,null,null,3]
[null,null,null,null,3]
[null,null,null,null,3]
[null,null,null,null,3]
[null,null,null,null,3]
[null,null,null,null,3]
[null,null,null,null,3]
[null,null,null,null,3]
[null,null,null,null,3]
[null,null,null,null,3]
[null,null,null,null,3]
[null,null,null,null,3]
[null,null,null,null,3]
[null,null,null,null,3]
[null,null,null,null,3]
[null,null,null,null,3]
[null,null,null,null,3]
[null,null,null,null,3]
[null,null,null,null,3]
[null,null,null,null,3]
[null,null,null,null,3]
[null,null,null,null,3]
[null,null,null,null,3]
[null,null,null,null,3]
[null,null,null,null,3]
[null,null,null,null,3]
[null,null,null,null,3]
[null,null,null,null,3]
[null,null,null,null,3]
[null,null,null,null,3]
[null,null,null,null,3]
[null,null,null,null,3]
[null,null,null,null,3]
[null,null,null,null,3]
[null,null,null,null,3]
[null,null,null,null,3]
[null,null,null,null,3]
[null,null,null,null,3]
[null,null,null,null,3]
[null,null,null,null,3]
[null,null,null,null,3]
[null,null,null,null,3]
[null,null,null,null,3]
[null,null,null,null,3]
[null,null,null,null,3]
[null,null,null,null,3]
[null,null,null,null,3]
[null,null,null,null,3]
[null,null,null,null,{"$f":"$D713+3","v":3}]
[null,null,null,null,3]
[null,null,null,null,3]
[null,null,null,null,3]
[null,null,null,null,3]
[null,null,null,null,3]
[null,null,null,null,3]
[null,null,null,null,3]
[null,null,null,null,3]
[null,null,null,null,3]
[null,null,null,null,3]
[null,null,null,null,3]
[null,null,null,null,3]
[null,null,null,null,3]
[null,null,null,null,3]
[null,null,null,null,3]
[null,null,null,null,3]
[null,null,null,null,3]
[null,null,null,null,3]
[null,null,null,null,3]
[null,null,null,null,3]
[null,null,null,null,3]
[null,null,null,null,3]
[null,null,null,null,3]
[null,null,null,null,3]
[null,null,null,null,3]
[null,null,null,null,3]
[null,null,null,null,3]
[null,null,null,null,3]
[null,null,null,null,3]
[null,null,null,null,3]
[null,null,null,null,3]
[null,null,null,null,3]
[null,null,null,null,3]
[null,null,null,null,3]
[null,null,null,null,3]
[null,null,null,null,3]
[null,null,null,null,3]
[null,null,null,null,3]
[null,null,null,null,3]
[null,null,null,null,3]
[null,null,null,null,3]
[null,null,null,null,3]
[null,null,null,null,3]
[null,null,null,null,3]
[null,null,null,null,3]
[null,null,null,null,3]
[null,null,null,null,3]
[null,null,null,null,3]
[null,null,null,null,3]
[null,null,null,null,3]
[null,null,null,null,3]
[null,null,null,null,3]
[null,null,null,null,3]
[null,null,null,null,3]
[null,null,null,null,3]
[null,null,null,null,3]
[null,null,null,null,3]
[null,null,null,null,3]
[null,null,null,null,3]
[null,null,null,null,3]
[null,null,null,null,3]
[null,null,null,null,3]
[null,null,null,null,3]
[null,null,null,null,{"$f":"$D777+3","v":3}]
[null,null,null,null,3]
[null,null,null,null,3]
[null,null,null,null,3]
[null,null,null,null,3]
[null,null,null,null,3]
[null,null,null,null,3]
[null,null,null,null,3]
[null,null,null,null,3]
[null,null,null,null,3]
[null,null,null,null,3]
[null,null,null,null,3]
[null,null,null,null,3]
[null,null,null,null,3]
[null,null,null,null,3]
[null,null,null,null,3]
[null,null,null,null,3]
[null,null,null,null,3]
[null,null,null,null,3]
[null,null,null,null,3]
[null,null,null,null,3]
[null,null,null,null,3]
[null,null,null,null,3]
[null,null,null,null,3]
[null,null,null,null,3]
[null,null,null,null,3]
[null,null,null,null,3]
[null,null,null,null,3]
[null,null,null,null,3]
[null,null,null,null,3]
[null,null,null,null,3]
[null,null,null,null,3]
[null,null,null,null,3]
[null,null,null,null,3]
[null,null,null,null,3]
[null,null,null,null,3]
[null,null,null,null,3]
[null,null,null,null,3]
[null,null,null,null,3]
[null,null,null,null,3]
[null,null,null,null,3]
[null,null,null,null,3]
[null,null,null,null,3]
[null,null,null,null,3]
[null,null,null,null,3]
[null,null,null,null,3]
[null,null,null,null,3]
[null,null,null,null,3]
[null,null,null,null,3]
[null,null,null,null,3]
[null,null,null,null,3]
[null,null,null,null,3]
[null,null,null,null,3]
[null,null,null,null,3]
[null,null,null,null,3]
[null,null,null,null,3]
[null,null,null,null,3]
[null,null,null,null,3]
[null,null,null,null,3]
[null,null,null,null,3]
[null,null,null,null,3]
[null,null,null,null,3]
[null,null,null,null,3]
[null,null,null,null,3]
[null,null,null,null,{"$f":"$D841+3","v":3}]
[null,null,null,null,3]
[null,null,null,null,3]
[null,null,null,null,3]
[null,null,null,null,3]
[null,null,null,null,3]
[null,null,null,null,3]
[null,null,null,null,3]
[null,null,null,null,3]
[null,null,null,null,3]
[null,null,null,null,3]
[null,null,null,null,3]
[null,null,null,null,3]
[null,null,null,null,3]
[null,null,null,null,3]
[null,null,null,null,3]
[null,null,null,null,3]
[null,null,null,null,3]
[null,null,null,null,3]
[null,null,null,null,3]
[null,null,null,null,3]
[null,null,null,null,3]
[null,null,null,null,3]
[null,null,null,null,3]
[null,null,null,null,3]
[null,null,null,null,3]
[null,null,null,null,3]
[null,null,null,null,3]
[null,null,null,null,3]
[null,null,null,null,3]
[null,null,null,null,3]
[null,null,null,null,3]
[null,null,null,null,3]
[null,null,null,null,3]
[null,null,null,null,3]
[null,null,null,null,3]
[null,null,null,null,3]
[null,null,null,null,3]
[null,null,null,null,3]
[null,null,null,null,3]
[null,null,null,null,3]
[null,null,null,null,3]
[null,null,null,null,3]
[null,null,null,null,3]
[null,null,null,null,3]
[null,null,null,null,3]
[null,null,null,null,3]
[null,null,null,null,3]
[null,null,null,null,3]
[null,null,null,null,3]
[null,null,null,null,3]
[null,null,null,null,3]
[null,null,null,null,3]
[null,null,null,null,3]
[null,null,null,null,3]
[null,null,null,null,3]
[null,null,null,null,3]
[null,null,null,null,3]
[null,null,null,null,3]
[null,null,null,null,3]
[null,null,null,null,3]
[null,null,null,null,3]
[null,null,null,null,3]
[null,null,null,null,3]
[null,null,null,null,{"$f":"$D905+3","v":3}]
[null,null,null,null,3]
[null,null,null,null,3]
[null,null,null,null,3]
[null,null,null,null,3]
[null,null,null,null,3]
[null,null,null,null,3]
[null,null,null,null,3]
[null,null,null,null,3]
[null,null,null,null,3]
[null,null,null,null,3]
[null,null,null,null,3]
[null,null,null,null,3]
[null,null,null,null,3]
[null,null,null,null,3]
[null,null,null,null,3]
[null,null,null,null,3]
[null,null,null,null,3]
[null,null,null,null,3]
[null,null,null,null,3]
[null,null,null,null,3]
[null,null,null,null,3]
[null,null,null,null,3]
[null,null,null,null,3]
[null,null,null,null,3]
[null,null,null,null,3]
[null,null,null,null,3]
[null,null,null,null,3]
[null,null,null,null,3]
[null,null,null,null,3]
[null,null,null,null,3]
[null,null,null,null,3]
[null,null,null,null,3]
[null,null,null,null,3]
[null,null,null,null,3]
[null,null,null,null,3]
[null,null,null,null,3]
[null,null,null,null,3]
[null,null,null,null,3]
[null,null,null,null,3]
[null,null,null,null,3]
[null,null,null,null,3]
[null,null,null,null,3]
[null,null,null,null,3]
[null,null,null,null,3]
[null,null,null,null,3]
[null,null,null,null,3]
[null,null,null,null,3]
[null,null,null,null,3]
[null,null,null,null,3]
[null,null,null,null,3]
[null,null,null,null,3]
[null,null,null,null,3]
[null,null,null,null,3]
[null,null,null,null,3]
[null,null,null,null,3]
[null,null,null,null,3]
[null,null,null,null,3]
[null,null,null,null,3]
[null,null,null,null,3]
[null,null,null,null,3]
[null,null,null,null,3]
[null,null,null,null,3]
[null,null,null,null,3]
[null,null,null,null,{"$f":"$D969+3","v":3}]
[null,null,null,null,3]
[null,null,null,null,3]
[null,null,null,null,3]
[null,null,null,null,3]
[null,null,null,null,3]
[null,null,null,null,3]
[null,null,null,null,3]
[null,null,null,null,3]
[null,null,null,null,3]
[null,null,null,null,3]
[null,null,null,null,3]
[null,null,null,null,3]
[null,null,null,null,3]
[null,null,null,null,3]
[null,null,null,null,3]
[null,null,null,null,3]
[null,null,null,null,3]
[null,null,null,null,3]
[null,null,null,null,3]
[null,null,null,null,3]
[null,null,null,null,3]
[null,null,null,null,3]
[null,null,null,null,3]
[null,null,null,null,3]
[null,null,null,null,3]
[null,null,null,null,3]
[null,null,null,null,3]
[null,null,null,null,3]
[null,null,null,null,3]
[null,null,null,null,3]
[null,null,null,null,3]
[null,null,null,null,3]
[null,null,null,null,3]
[null,null,null,null,3]
[null,null,null,null,3]
[null,null,null,null,3]
[null,null,null,null,3]
[null,null,null,null,3]
[null,null,null,null,3]
[null,null,null,null,3]
[null,null,null,null,3]
[null,null,null,null,3]
[null,null,null,null,3]
[null,null,null,null,3]
[null,null,null,null,3]
[null,null,null,null,3]
[null,null,null,null,3]
[null,null,null,null,3]
[null,null,null,null,3]
[null,null,null,null,3]
[null,null,null,null,3]
[null,null,null,null,3]
[null,null,null,null,3]
[null,null,null,null,3]
[null,null,null,null,3]
[null,null,null,null,3]
[null,null,null,null,3]
[null,null,null,null,3]
[null,null,null,null,3]
[null,null,null,null,3]
[null,null,null,null,3]
[null,null,null,null,3]
[null,null,null,null,3]
[null,null,null,null,{"$f":"$D1033+3","v":3}]
[null,null,null,null,3]
[null,null,null,null,3]
[null,null,null,null,3]
[null,null,null,null,3]
[null,null,null,null,3]
[null,null,null,null,3]
[null,null,null,null,3]
[null,null,null,null,3]
[null,null,null,null,3]
[null,null,null,null,3]
[null,null,null,null,3]
[null,null,null,null,3]
[null,null,null,null,3]
[null,null,null,null,3]
[null,null,null,null,3]
[null,null,null,null,3]
[null,null,null,null,3]
[null,null,null,null,3]
[null,null,null,null,3]
[null,null,null,null,3]
[null,null,null,null,3]
[null,null,null,null,3]
[null,null,null,null,3]
[null,null,null,null,3]
[null,null,null,null,3]
[null,null,null,null,3]
[null,null,null,null,3]
[null,null,null,null,3]
[null,null,null,null,3]
[null,null,null,null,3]
[null,null,null,null,3]
[null,null,null,null,3]
[null,null,null,null,3]
[null,null,null,null,3]
[null,null,null,null,3]
[null,null,null,null,3]
[null,null,null,null,3]
[null,null,null,null,3]
[null,null,null,null,3]
[null,null,null,null,3]
[null,null,null,null,3]
[null,null,null,null,3]
[null,null,null,null,3]
[null,null,null,null,3]
[null,null,null,null,3]
[null,null,null,null,3]
[null,null,null,null,3]
[null,null,null,null,3]
[null,null,null,null,3]
[null,null,null,null,3]
[null,null,null,null,3]
[null,null,null,null,3]
[null,null,null,null,3]
[null,null,null,null,3]
[null,null,null,null,3]
[null,null,null,null,3]
[null,null,null,null,3]
[null,null,null,null,3]
[null,null,null,null,3]
[null,null,null,null,3]
[null,null,null,null,3]
[null,null,null,null,3]
[null,null,null,null,3]
[null,null,null,null,{"$f":"$D1097+3","v":3}]
[null,null,null,null,3]
[null,null,null,null,3]
[null,null,null,null,3]
[null,null,null,null,3]
[null,null,null,null,3]
[null,null,null,null,3]
[null,null,null,null,3]
[null,null,null,null,3]
[null,null,null,null,3]
[null,null,null,null,3]
[null,null,null,null,3]
[null,null,null,null,3]
[null,null,null,null,3]
[null,null,null,null,3]
[null,null,null,null,3]
[null,null,null,null,3]
[null,null,null,null,3]
[null,null,null,null,3]
[null,null,null,null,3]
[null,null,null,null,3]
[null,null,null,null,3]
[null,null,null,null,3]
[null,null,null,null,3]
[null,null,null,null,3]
[null,null,null,null,3]
[null,null,null,null,3]
[null,null,null,null,3]
[null,null,null,null,3]
[null,null,null,null,3]
[null,null,null,null,3]
[null,null,null,null,3]
[null,null,null,null,3]
[null,null,null,null,3]
[null,null,null,null,3]
[null,null,null,null,3]
[null,null,null,null,3]
[null,null,null,null,3]
[null,null,null,null,3]
[null,null,null,null,3]
[null,null,null,null,3]
[null,null,null,null,3]
[null,null,null,null,3]
[null,null,null,null,3]
[null,null,null,null,3]
[null,null,null,null,3]
[null,null,null,null,3]
[null,null,null,null,3]
[null,null,null,null,3]
[null,null,null,null,3]
[null,null,null,null,3]
[null,null,null,null,3]
[null,null,null,null,3]
[null,null,null,null,3]
[null,null,null,null,3]
[null,null,null,null,3]
[null,null,null,null,3]
[null,null,null,null,3]
[null,null,null,null,3]
[null,null,null,null,3]
[null,null,null,null,3]
[null,null,null,null,3]
[null,null,null,null,3]
[null,null,null,null,3]
[null,null,null,null,{"$f":"$D1161+3","v":3}]
[null,null,null,null,3]
[null,null,null,null,3]
[null,null,null,null,3]
[null,null,null,null,3]
[null,null,null,null,3]
[null,null,null,null,3]
[null,null,null,null,3]
[null,null,null,null,3]
[null,null,null,null,3]
[null,null,null,null,3]
[null,null,null,null,3]
[null,null,null,null,3]
[null,null,null,null,3]
[null,null,null,null,3]
[null,null,null,null,3]
[null,null,null,null,3]
[null,null,null,null,3]
[null,null,null,null,3]
[null,null,null,null,3]
[null,null,null,null,3]
[null,null,null,null,3]
[null,null,null,null,3]
[null,null,null,null,3]
[null,null,null,null,3]
[null,null,null,null,3]
[null,null,null,null,3]
[null,null,null,null,3]
[null,null,null,null,3]
[null,null,null,null,3]
[null,null,null,null,3]
[null,null,null,null,3]
[null,null,null,null,3]
[null,null,null,null,3]
[null,null,null,null,3]
[null,null,null,null,3]
[null,null,null,null,3]
[null,null,null,null,3]
[null,null,null,null,3]
[null,null,null,null,3]
[null,null,null,null,3]
[null,null,null,null,3]
[null,null,null,null,3]
[null,null,null,null,3]
[null,null,null,null,3]
[null,null,null,null,3]
[null,null,null,null,3]
[null,null,null,null,3]
[null,null,null,null,3]
[null,null,null,null,3]
[null,null,null,null,3]
[null,null,null,null,3]
[null,null,null,null,3]
[null,null,null,null,3]
[null,null,null,null,3]
[null,null,null,null,3]
[null,null,null,null,3]
[null,null,null,null,3]
[null,null,null,null,3]
[null,null,null,null,3]
[null,null,null,null,3]
[null,null,null,null,3]
[null,null,null,null,3]
[null,null,null,null,3]
[null,null,null,null,{"$f":"$D1225+3","v":3}]
[null,null,null,null,3]
[null,null,null,null,3]
[null,null,null,null,3]
[null,null,null,null,3]
[null,null,null,null,3]
[null,null,null,null,3]
[null,null,null,null,3]
[null,null,null,null,3]
[null,null,null,null,3]
[null,null,null,null,3]
[null,null,null,null,3]
[null,null,null,null,3]
[null,null,null,null,3]
[null,null,null,null,3]
[null,null,null,null,3]
[null,null,null,null,3]
[null,null,null,null,3]
[null,null,null,null,3]
[null,null,null,null,3]
[null,null,null,null,3]
[null,null,null,null,3]
[null,null,null,null,3]
[null,null,null,null,3]
[null,null,null,null,3]
[null,null,null,null,3]
[null,null,null,null,3]
[null,null,null,null,3]
[null,null,null,null,3]
[null,null,null,null,3]
[null,null,null,null,3]
[null,null,null,null,3]
[null,null,null,null,3]
[null,null,null,null,3]
[null,null,null,null,3]
[null,null,null,null,3]
[null,null,null,null,3]
[null,null,null,null,3]
[null,null,null,null,3]
[null,null,null,null,3]
[null,null,null,null,3]
[null,null,null,null,3]
[null,null,null,null,3]
[null,null,null,null,3]
[null,null,null,null,3]
[null,null,null,null,3]
[null,null,null,null,3]
[null,null,null,null,3]
[null,null,null,null,3]
[null,null,null,null,3]
[null,null,null,null,3]
[null,null,null,null,3]
[null,null,null,null,3]
[null,null,null,null,3]
[null,null,null,null,3]
[null,null,null,null,3]
[null,null,null,null,3]
[null,null,null,null,3]
[null,null,null,null,3]
[null,null,null,null,3]
[null,null,null,null,3]
[null,null,null,null,3]
[null,null,null,null,3]
[null,null,null,null,3]
[null,null,null,null,{"$f":"$D1289+3","v":3}]
[null,null,null,null,3]
[null,null,null,null,3]
[null,null,null,null,3]
[null,null,null,null,3]
[null,null,null,null,3]
[null,null,null,null,3]
[null,null,null,null,3]
[null,null,null,null,3]
[null,null,null,null,3]
[null,null,null,null,3]
[null,null,null,null,3]
[null,null,null,null,3]
[null,null,null,null,3]
[null,null,null,null,3]
[null,null,null,null,3]
[null,null,null,null,3]
[null,null,null,null,3]
[null,null,null,null,3]
[null,null,null,null,3]
[null,null,null,null,3]
[null,null,null,null,3]
[null,null,null,null,3]
[null,null,null,null,3]
[null,null,null,null,3]
[null,null,null,null,3]
[null,null,null,null,3]
[null,null,null,null,3]
[null,null,null,null,3]
[null,null,null,null,3]
[null,null,null,null,3]
[null,null,null,null,3]
[null,null,null,null,3]
[null,null,null,null,3]
[null,null,null,null,3]
[null,null,null,null,3]
[null,null,null,null,3]
[null,null,null,null,3]
[null,null,null,null,3]
[null,null,null,null,3]
[null,null,null,null,3]
[null,null,null,null,3]
[null,null,null,null,3]
[null,null,null,null,3]
[null,null,null,null,3]
[null,null,null,null,3]
[null,null,null,null,3]
[null,null,null,null,3]
[null,null,null,null,3]
[null,null,null,null,3]
[null,null,null,null,3]
[null,null,null,null,3]
[null,null,null,null,3]
[null,null,null,null,3]
[null,null,null,null,3]
[null,null,null,null,3]
[null,null,null,null,3]
[null,null,null,null,3]
[null,null,null,null,3]
[null,null,null,null,3]
[null,null,null,null,3]
[null,null,null,null,3]
[null,null,null,null,3]
[null,null,null,null,3]
[null,null,null,null,{"$f":"$D1353+3","v":3}]
[null,null,null,null,3]
[null,null,null,null,3]
[null,null,null,null,3]
[null,null,null,null,3]
[null,null,null,null,3]
[null,null,null,null,3]
[null,null,null,null,3]
[null,null,null,null,3]
[null,null,null,null,3]
[null,null,null,null,3]
[null,null,null,null,3]
[null,null,null,null,3]
[null,null,null,null,3]
[null,null,null,null,3]
[null,null,null,null,3]
[null,null,null,null,3]
[null,null,null,null,3]
[null,null,null,null,3]
[null,null,null,null,3]
[null,null,null,null,3]
[null,null,null,null,3]
[null,null,null,null,3]
[null,null,null,null,3]
[null,null,null,null,3]
[null,null,null,null,3]
[null,null,null,null,3]
[null,null,null,null,3]
[null,null,null,null,3]
[null,null,null,null,3]
[null,null,null,null,3]
[null,null,null,null,3]
[null,null,null,null,3]
[null,null,null,null,3]
[null,null,null,null,3]
[null,null,null,null,3]
[null,null,null,null,3]
[null,null,null,null,3]
[null,null,null,null,3]
[null,null,null,null,3]
[null,null,null,null,3]
[null,null,null,null,3]
[null,null,null,null,3]
[null,null,null,null,3]
[null,null,null,null,3]
[null,null,null,null,3]
[null,null,null,null,3]
[null,null,null,null,3]
[null,null,null,null,3]
[null,null,null,null,3]
[null,null,null,null,3]
[null,null,null,null,3]
[null,null,null,null,3]
[null,null,null,null,3]
[null,null,null,null,3]
[null,null,null,null,3]
[null,null,null,null,3]
[null,null,null,null,3]
[null,null,null,null,3]
[null,null,null,null,3]
[null,null,null,null,3]
[null,null,null,null,3]
[null,null,null,null,3]
[null,null,null,null,3]
[null,null,null,null,{"$f":"$D1417+3","v":3}]
[null,null,null,null,3]
[null,null,null,null,3]
[null,null,null,null,3]
[null,null,null,null,3]
[null,null,null,null,3]
[null,null,null,null,3]
[null,null,null,null,3]
[null,null,null,null,3]
[null,null,null,null,3]
[null,null,null,null,3]
[null,null,null,null,3]
[null,null,null,null,3]
[null,null,null,null,3]
[null,null,null,null,3]
[null,null,null,null,3]
[null,null,null,null,3]
[null,null,null,null,3]
[null,null,null,null,3]
[null,null,null,null,3]
[null,null,null,null,3]
[null,null,null,null,3]
[null,null,null,null,3]
[null,null,null,null,3]
[null,null,null,null,3]
[null,null,null,null,3]
[null,null,null,null,3]
[null,null,null,null,3]
[null,null,null,null,3]
[null,null,null,null,3]
[null,null,null,null,3]
[null,null,null,null,3]
[null,null,null,null,3]
[null,null,null,null,3]
[null,null,null,null,3]
[null,null,null,null,3]
[null,null,null,null,3]
[null,null,null,null,3]
[null,null,null,null,3]
[null,null,null,null,3]
[null,null,null,null,3]
[null,null,null,null,3]
[null,null,null,null,3]
[null,null,null,null,3]
[null,null,null,null,3]
[null,null,null,null,3]
[null,null,null,null,3]
[null,null,null,null,3]
[null,null,null,null,3]
[null,null,null,null,3]
[null,null,null,null,3]
[null,null,null,null,3]
[null,null,null,null,3]
[null,null,null,null,3]
[null,null,null,null,3]
[null,null,null,null,3]
[null,null,null,null,3]
[null,null,null,null,3]
[null,null,null,null,3]
[null,null,null,null,3]
[null,null,null,null,3]
[null,null,null,null,3]
[null,null,null,null,3]
[null,null,null,null,3]
[null,null,null,null,{"$f":"$D1481+3","v":3}]
[null,null,null,null,3]
[null,null,null,null,3]
[null,null,null,null,3]
[null,null,null,null,3]
[null,null,null,null,3]
[null,null,null,null,3]
[null,null,null,null,3]
[null,null,null,null,3]
[null,null,null,null,3]
[null,null,null,null,3]
[null,null,null,null,3]
[null,null,null,null,3]
[null,null,null,null,3]
[null,null,null,null,3]
[null,null,null,null,3]
[null,null,null,null,3]
[null,null,null,null,3]
[null,null,null,null,3]
[null,null,null,null,3]
[null,null,null,null,3]
[null,null,null,null,3]
[null,null,null,null,3]
[null,null,null,null,3]
[null,null,null,null,3]
[null,null,null,null,3]
[null,null,null,null,3]
[null,null,null,null,3]
[null,null,null,null,3]
[null,null,null,null,3]
[null,null,null,null,3]
[null,null,null,null,3]
[null,null,null,null,3]
[null,null,null,null,3]
[null,null,null,null,3]
[null,null,null,null,3]
[null,null,null,null,3]
[null,null,null,null,3]
[null,null,null,null,3]
[null,null,null,null,3]
[null,null,null,null,3]
[null,null,null,null,3]
[null,null,null,null,3]
[null,null,null,null,3]
[null,null,null,null,3]
[null,null,null,null,3]
[null,null,null,null,3]
[null,null,null,null,3]
[null,null,null,null,3]
[null,null,null,null,3]
[null,null,null,null,3]
[null,null,null,null,3]
[null,null,null,null,3]
[null,null,null,null,3]
[null,null,null,null,3]
[null,null,null,null,3]
[null,null,null,null,3]
[null,null,null,null,3]
[null,null,null,null,3]
[null,null,null,null,3]
[null,null,null,null,3]
[null,null,null,null,3]
[null,null,null,null,3]
[null,null,null,null,3]
[null,null,null,null,{"$f":"$D1545+3","v":3}]
[null,null,null,null,3]
[null,null,null,null,3]
[null,null,null,null,3]
[null,null,null,null,3]
[null,null,null,null,3]
[null,null,null,null,3]
[null,null,null,null,3]
[null,null,null,null,3]
[null,null,null,null,3]
[null,null,null,null,3]
[null,null,null,null,3]
[null,null,null,null,3]
[null,null,null,null,3]
[null,null,null,null,3]
[null,null,null,null,3]
[null,null,null,null,3]
[null,null,null,null,3]
[null,null,null,null,3]
[null,null,null,null,3]
[null,null,null,null,3]
[null,null,null,null,3]
[null,null,null,null,3]
[null,null,null,null,3]
[null,null,null,null,3]
[null,null,null,null,3]
[null,null,null,null,3]
[null,null,null,null,3]
[null,null,null,null,3]
[null,null,null,null,3]
[null,null,null,null,3]
[null,null,null,null,3]
[null,null,null,null,3]
[null,null,null,null,3]
[null,null,null,null,3]
[null,null,null,null,3]
[null,null,null,null,3]
[null,null,null,null,3]
[null,null,null,null,3]
[null,null,null,null,3]
[null,null,null,null,3]
[null,null,null,null,3]
[null,null,null,null,3]
[null,null,null,null,3]
[null,null,null,null,3]
[null,null,null,null,3]
[null,null,null,null,3]
[null,null,null,null,3]
[null,null,null,null,3]
[null,null,null,null,3]
[null,null,null,null,3]
[null,null,null,null,3]
[null,null,null,null,3]
[null,null,null,null,3]
[null,null,null,null,3]
[null,null,null,null,3]
[null,null,null,null,3]
[null,null,null,null,3]
[null,null,null,null,3]
[null,null,null,null,3]
[null,null,null,null,3]
[null,null,null,null,3]
[null,null,null,null,3]
[null,null,null,null,3]
[null,null,null,null,{"$f":"$D1609+3","v":3}]
[null,null,null,null,3]
[null,null,null,null,3]
[null,null,null,null,3]
[null,null,null,null,3]
[null,null,null,null,3]
[null,null,null,null,3]
[null,null,null,null,3]
[null,null,null,null,3]
[null,null,null,null,3]
[null,null,null,null,3]
[null,null,null,null,3]
[null,null,null,null,3]
[null,null,null,null,3]
[null,null,null,null,3]
[null,null,null,null,3]
[null,null,null,null,3]
[null,null,null,null,3]
[null,null,null,null,3]
[null,null,null,null,3]
[null,null,null,null,3]
[null,null,null,null,3]
[null,null,null,null,3]
[null,null,null,null,3]
[null,null,null,null,3]
[null,null,null,null,3]
[null,null,null,null,3]
[null,null,null,null,3]
[null,null,null,null,3]
[null,null,null,null,3]
[null,null,null,null,3]
[null,null,null,null,3]
[null,null,null,null,3]
[null,null,null,null,3]
[null,null,null,null,3]
[null,null,null,null,3]
[null,null,null,null,3]
[null,null,null,null,3]
[null,null,null,null,3]
[null,null,null,null,3]
[null,null,null,null,3]
[null,null,null,null,3]
[null,null,null,null,3]
[null,null,null,null,3]
[null,null,null,null,3]
[null,null,null,null,3]
[null,null,null,null,3]
[null,null,null,null,3]
[null,null,null,null,3]
[null,null,null,null,3]
[null,null,null,null,3]
[null,null,null,null,3]
[null,null,null,null,3]
[null,null,null,null,3]
[null,null,null,null,3]
[null,null,null,null,3]
[null,null,null,null,3]
[null,null,null,null,3]
[null,null,null,null,3]
[null,null,null,null,3]
[null,null,null,null,3]
[null,null,null,null,3]
[null,null,null,null,3]
[null,null,null,null,3]
[null,null,null,null,{"$f":"$D1673+3","v":3}]
[null,null,null,null,3]
[null,null,null,null,3]
[null,null,null,null,3]
[null,null,null,null,3]
[null,null,null,null,3]
[null,null,null,null,3]
[null,null,null,null,3]
[null,null,null,null,3]
[null,null,null,null,3]
[null,null,null,null,3]
[null,null,null,null,3]
[null,null,null,null,3]
[null,null,null,null,3]
[null,null,null,null,3]
[null,null,null,null,3]
[null,null,null,null,3]
[null,null,null,null,3]
[null,null,null,null,3]
[null,null,null,null,3]
[null,null,null,null,3]
[null,null,null,null,3]
[null,null,null,null,3]
[null,null,null,null,3]
[null,null,null,null,3]
[null,null,null,null,3]
[null,null,null,null,3]
[null,null,null,null,3]
[null,null,null,null,3]
[null,null,null,null,3]
[null,null,null,null,3]
[null,null,null,null,3]
[null,null,null,null,3]
[null,null,null,null,3]
[null,null,null,null,3]
[null,null,null,null,3]
[null,null,null,null,3]
[null,null,null,null,3]
[null,null,null,null,3]
[null,null,null,null,3]
[null,null,null,null,3]
[null,null,null,null,3]
[null,null,null,null,3]
[null,null,null,null,3]
[null,null,null,null,3]
[null,null,null,null,3]
[null,null,null,null,3]
[null,null,null,null,3]
[null,null,null,null,3]
[null,null,null,null,3]
[null,null,null,null,3]
[null,null,null,null,3]
[null,null,null,null,3]
[null,null,null,null,3]
[null,null,null,null,3]
[null,null,null,null,3]
[null,null,null,null,3]
[null,null,null,null,3]
[null,null,null,null,3]
[null,null,null,null,3]
[null,null,null,null,3]
[null,null,null,null,3]
[null,null,null,null,3]
[null,null,null,null,3]
[null,null,null,null,{"$f":"$D1737+3","v":3}]
[null,null,null,null,3]
[null,null,null,null,3]
[null,null,null,null,3]
[null,null,null,null,3]
[null,null,null,null,3]
[null,null,null,null,3]
[null,null,null,null,3]
[null,null,null,null,3]
[null,null,null,null,3]
[null,null,null,null,3]
[null,null,null,null,3]
[null,null,null,null,3]
[null,null,null,null,3]
[null,null,null,null,3]
[null,null,null,null,3]
[null,null,null,null,3]
[null,null,null,null,3]
[null,null,null,null,3]
[null,null,null,null,3]
[null,null,null,null,3]
[null,null,null,null,3]
[null,null,null,null,3]
[null,null,null,null,3]
[null,null,null,null,3]
[null,null,null,null,3]
[null,null,null,null,3]
[null,null,null,null,3]
[null,null,null,null,3]
[null,null,null,null,3]
[null,null,null,null,3]
[null,null,null,null,3]
[null,null,null,null,3]
[null,null,null,null,3]
[null,null,null,null,3]
[null,null,null,null,3]
[null,null,null,null,3]
[null,null,null,null,3]
[null,null,null,null,3]
[null,null,null,null,3]
[null,null,null,null,3]
[null,null,null,null,3]
[null,null,null,null,3]
[null,null,null,null,3]
[null,null,null,null,3]
[null,null,null,null,3]
[null,null,null,null,3]
[null,null,null,null,3]
[null,null,null,null,3]
[null,null,null,null,3]
[null,null,null,null,3]
[null,null,null,null,3]
[null,null,null,null,3]
[null,null,null,null,3]
[null,null,null,null,3]
[null,null,null,null,3]
[null,null,null,null,3]
[null,null,null,null,3]
[null,null,null,null,3]
[null,null,null,null,3]
[null,null,null,null,3]
[null,null,null,null,3]
[null,null,null,null,3]
[null,null,null,null,3]
[null,null,null,null,{"$f":"$D1801+3","v":3}]
[null,null,null,null,3]
[null,null,null,null,3]
[null,null,null,null,3]
[null,null,null,null,3]
[null,null,null,null,3]
[null,null,null,null,3]
[null,null,null,null,3]
[null,null,null,null,3]
[null,null,null,null,3]
[null,null,null,null,3]
[null,null,null,null,3]
[null,null,null,null,3]
[null,null,null,null,3]
[null,null,null,null,3]
[null,null,null,null,3]
[null,null,null,null,3]
[null,null,null,null,3]
[null,null,null,null,3]
[null,null,null,null,3]
[null,null,null,null,3]
[null,null,null,null,3]
[null,null,null,null,3]
[null,null,null,null,3]
[null,null,null,null,3]
[null,null,null,null,3]
[null,null,null,null,3]
[null,null,null,null,3]
[null,null,null,null,3]
[null,null,null,null,3]
[null,null,null,null,3]
[null,null,null,null,3]
[null,null,null,null,3]
[null,null,null,null,3]
[null,null,null,null,3]
[null,null,null,null,3]
[null,null,null,null,3]
[null,null,null,null,3]
[null,null,null,null,3]
[null,null,null,null,3]
[null,null,null,null,3]
[null,null,null,null,3]
[null,null,null,null,3]
[null,null,null,null,3]
[null,null,null,null,3]
[null,null,null,null,3]
[null,null,null,null,3]
[null,null,null,null,3]
[null,null,null,null,3]
[null,null,null,null,3]
[null,null,null,null,3]
[null,null,null,null,3]
[null,null,null,null,3]
[null,null,null,null,3]
[null,null,null,null,3]
[null,null,null,null,3]
[null,null,null,null,3]
[null,null,null,null,3]
[null,null,null,null,3]
[null,null,null,null,3]
[null,null,null,null,3]
[null,null,null,null,3]
[null,null,null,null,3]
[null,null,null,null,3]
[null,null,null,null,{"$f":"$D1865+3","v":3}]
[null,null,null,null,3]
[null,null,null,null,3]
[null,null,null,null,3]
[null,null,null,null,3]
[null,null,null,null,3]
[null,null,null,null,3]
[null,null,null,null,3]
[null,null,null,null,3]
[null,null,null,null,3]
[null,null,null,null,3]
[null,null,null,null,3]
[null,null,null,null,3]
[null,null,null,null,3]
[null,null,null,null,3]
[null,null,null,null,3]
[null,null,null,null,3]
[null,null,null,null,3]
[null,null,null,null,3]
[null,null,null,null,3]
[null,null,null,null,3]
[null,null,null,null,3]
[null,null,null,null,3]
[null,null,null,null,3]
[null,null,null,null,3]
[null,null,null,null,3]
[null,null,null,null,3]
[null,null,null,null,3]
[null,null,null,null,3]
[null,null,null,null,3]
[null,null,null,null,3]
[null,null,null,null,3]
[null,null,null,null,3]
[null,null,null,null,3]
[null,null,null,null,3]
[null,null,null,null,3]
[null,null,null,null,3]
[null,null,null,null,3]
[null,null,null,null,3]
[null,null,null,null,3]
[null,null,null,null,3]
[null,null,null,null,3]
[null,null,null,null,3]
[null,null,null,null,3]
[null,null,null,null,3]
[null,null,null,null,3]
[null,null,null,null,3]
[null,null,null,null,3]
[null,null,null,null,3]
[null,null,null,null,3]
[null,null,null,null,3]
[null,null,null,null,3]
[null,null,null,null,3]
[null,null,null,null,3]
[null,null,null,null,3]
[null,null,null,null,3]
[null,null,null,null,3]
[null,null,null,null,3]
[null,null,null,null,3]
[null,null,null,null,3]
[null,null,null,null,3]
[null,null,null,null,3]
[null,null,null,null,3]
[null,null,null,null,3]
[null,null,null,null,{"$f":"$D1929+3","v":3}]
[null,null,null,null,3]
[null,null,null,null,3]
[null,null,null,null,3]
[null,null,null,null,3]
[null,null,null,null,3]
[null,null,null,null,3]
[null,null,null,null,3]
[null,null,null,null,3]
[null,null,null,null,3]
[null,null,null,null,3]
[null,null,null,null,3]
[null,null,null,null,3]
[null,null,null,null,3]
[null,null,null,null,3]
[null,null,null,null,3]
[null,null,null,null,3]
[null,null,null,null,3]
[null,null,null,null,3]
[null,null,null,null,3]
[null,null,null,null,3]
[null,null,null,null,3]
[null,null,null,null,3]
[null,null,null,null,3]
[null,null,null,null,3]
[null,null,null,null,3]
[null,null,null,null,3]
[null,null,null,null,3]
[null,null,null,null,3]
[null,null,null,null,3]
[null,null,null,null,3]
[null,null,null,null,3]
[null,null,null,null,3]
[null,null,null,null,3]
[null,null,null,null,3]
[null,null,null,null,3]
[null,null,null,null,3]
[null,null,null,null,3]
[null,null,null,null,3]
[null,null,null,null,3]
[null,null,null,null,3]
[null,null,null,null,3]
[null,null,null,null,3]
[null,null,null,null,3]
[null,null,null,null,3]
[null,null,null,null,3]
[null,null,null,null,3]
[null,null,null,null,3]
[null,null,null,null,3]
[null,null,null,null,3]
[null,null,null,null,3]
[null,null,null,null,3]
[null,null,null,null,3]
[null,null,null,null,3]
[null,null,null,null,3]
[null,null,null,null,3]
[null,null,null,null,3]
[null,null,null,null,3]
[null,null,null,null,3]
[null,null,null,null,3]
[null,null,null,null,3]
[null,null,null,null,3]
[null,null,null,null,3]
[null,null,null,null,3]
[null,null,null,null,{"$f":"$D1993+3","v":3}]
[null,null,null,null,3]
[null,null,null,null,3]
[null,null,null,null,3]
[null,null,null,null,3]
[null,null,null,null,3]
[null,null,null,null,3]
[null,null,null,null,3]
[null,null,null,null,3]
[null,null,null,null,3]

{"sheet":"Nombre Absences Santé","index":8,"n_rows":63,"n_cols":28,"rows_kept":63,"cut":false,"hidden":false,"merged":[]}
[]
[]
[null,null,"QUELLE EST LA REPARTITION DU NOMBRE D'ABSENCES/SANTE  ?",null,null,null,null,null,null,null,null,null,null,null,null,null,null,null,null,null,null,null,null,"Suite ->"]
[null,null,"Axe d'analyse: Prévention de l'usure"]
[]
[]
[]
[]
[null,null,"NOMBRE D'ABSENCES/SANTE PAR AGE"]
[]
[null,null,null,"REPARTION EN NOMBRE ",null,null,null,null,null,null,null,null,null,"REPARTITION EN POURCENTAGE",null,null,null,null,null,null,null,null,null,null,"MOYENNES"]
[]
[]
[]
[]
[null,null,null,"NB sur MATRICULE","Nombre ABSENCES SANTE"]
[null,null,null,"Tranche âge 10",0,1,2,3,4,"Total",null,null,null,"NB sur MATRICULE","Nombre ABSENCES SANTE",null,null,null,null,null,null,null,null,null,"Moyenne sur Durée ABSENCES SANTE","SEXE"]
[null,null,null,"10-19",4,2,1,null,null,7,null,null,null,"Tranche âge 10",0,1,2,3,4,"Total",null,null,null,null,"Tranche âge 5","F","H","Total"]
[null,null,null,"20-29",6,3,1,1,1,12,null,null,null,"10-19",0.5714285714285714,0.2857142857142857,0.14285714285714285,0,0,1,null,null,null,null,"15-19",16,7.166666666666667,8.4285714285714288]
[null,null,null,"30-39",13,4,2,1,null,20,null,null,null,"20-29",0.5,0.25,8.3333333333333329E-2,8.3333333333333329E-2,8.3333333333333329E-2,1,null,null,null,null,"20-24",80,17,42.2]
[null,null,null,"40-49",6,3,2,1,2,14,null,null,null,"30-39",0.65,0.2,0.1,0.05,0,1,null,null,null,null,"25-29",12.8,17.5,14.142857142857142]
[null,null,null,"50-59",8,4,1,null,null,13,null,null,null,"40-49",0.42857142857142855,0.21428571428571427,0.14285714285714285,7.1428571428571425E-2,0.14285714285714285,1,null,null,null,null,"30-34",44,1.6,20.444444444444443]
[null,null,null,"60-69",6,2,1,1,null,10,null,null,null,"50-59",0.61538461538461542,0.30769230769230771,7.6923076923076927E-2,0,0,1,null,null,null,null,"35-39",9.6,7.166666666666667,8.2727272727272734]
[null,null,null,"Total",43,18,8,4,3,76,null,null,null,"60-69",0.6,0.2,0.1,0.1,0,1,null,null,null,null,"40-44",96,14.75,41.833333333333336]
[null,null,null,null,null,null,null,null,null,null,null,null,null,"Total",0.56578947368421051,0.23684210526315788,0.10526315789473684,5.2631578947368418E-2,3.9473684210526314E-2,1,null,null,null,null,"45-49",10.666666666666666,11,10.875]
[null,null,null,null,null,null,null,null,null,null,null,null,null,null,null,null,null,null,null,null,null,null,null,null,"50-54",10.666666666666666,2,5.7142857142857144]
[null,null,null,null,null,null,null,null,null,null,null,null,null,null,null,null,null,null,null,null,null,null,null,null,"55-59",8,10.75,9.8333333333333339]
[null,null,null,null,null,null,null,null,null,null,null,null,null,null,null,null,null,null,null,null,null,null,null,null,"60-64",160,1.6,28]
[null,null,null,null,null,null,null,null,null,null,null,null,null,null,null,null,null,null,null,null,null,null,null,null,"65-69",0,17,12.75]
[null,null,null,null,null,null,null,null,null,null,null,null,null,null,null,null,null,null,null,null,null,null,null,null,"Total",30.896551724137932,8.5957446808510642,17.105263157894736]
[]
[]
[]
[]
[]
[]
[]
[]
[]
[]
[]
[]
[]
[]
[]
[]
[]
[null,null,null,"NOMBRE D'ABSENCES SANTE PAR ACTIVITES"]
[]
[null,null,null,"REPARTION EN NOMBRE ",null,null,null,null,null,null,null,null,null,"REPARTITION EN POURCENTAGE ",null,null,null,null,null,null,null,null,null,null,"MOYENNES"]
[]
[]
[]
[]
[null,null,null,"NB sur MATRICULE","Nombre ABSENCES SANTE"]
[null,null,null,"SERVICE/SECTEUR",0,1,2,3,4,"Total"]
[null,null,null,"DIR",3,null,null,null,null,3,null,null,null,null,null,null,null,null,null,null,null,null,null,null,"Moyenne sur Durée ABSENCES SANTE","SEXE"]
[null,null,null,"PROD",34,18,4,null,null,56,null,null,null,"NB sur MATRICULE","Nombre ABSENCES SANTE",null,null,null,null,null,null,null,null,null,"SERVICE/SECTEUR","F","H","Total"]
[null,null,null,"SA",6,null,4,4,3,17,null,null,null,"SERVICE/SECTEUR",0,1,2,3,4,"Total",null,null,null,null,"DIR",null,0,0]
[null,null,null,"Total",43,18,8,4,3,76,null,null,null,"DIR",1,0,0,0,0,1,null,null,null,null,"PROD",8.4210526315789469,7.1351351351351351,7.5714285714285712]
[null,null,null,null,null,null,null,null,null,null,null,null,null,"PROD",0.6071428571428571,0.32142857142857145,7.1428571428571425E-2,0,0,1,null,null,null,null,"SA",73.599999999999994,20,51.529411764705884]
[null,null,null,null,null,null,null,null,null,null,null,null,null,"SA",0.35294117647058826,0,0.23529411764705882,0.23529411764705882,0.17647058823529413,1,null,null,null,null,"Total",30.896551724137932,8.5957446808510642,17.105263157894736]
[null,null,null,null,null,null,null,null,null,null,null,null,null,"Total",0.56578947368421051,0.23684210526315788,0.10526315789473684,5.2631578947368418E-2,3.9473684210526314E-2,1]

{"sheet":"Durées Absences Santé","index":9,"n_rows":63,"n_cols":28,"rows_kept":63,"cut":false,"hidden":false,"merged":[]}
[]
[]
[null,null,"QUELLE EST LA REPARTITION DES ABSENCES/SANTE  ?",null,null,null,null,null,null,null,null,null,null,null,null,null,null,null,null,null,null,null,null,"Suite ->"]
[null,null,"Axe d'analyse: Prévention de l'usure"]
[]
[]
[]
[]
[null,null,"DUREE D'ABSENCES SANTE PAR AGE"]
[]
[null,null,null,"REPARTION EN NOMBRE ",null,null,null,null,null,null,null,null,null,"REPARTITION EN POURCENTAGE",null,null,null,null,null,null,null,null,null,null,"MOYENNES"]
[]
[]
[]
[]
[null,null,null,"NB sur MATRICULE","Tranches arrêts absences/santé"]
[null,null,null,"Tranche âge 10","1:0","2:1-5","3:6-25","4:+25","Total",null,null,null,null,"NB sur MATRICULE","Tranches arrêts absences/santé",null,null,null,null,null,null,null,null,null,"Moyenne sur Durée ABSENCES SANTE","SEXE"]
[null,null,null,"10-19",4,null,2,1,7,null,null,null,null,"Tranche âge 10","1:0","2:1-5","3:6-25","4:+25","Total",null,null,null,null,null,"Tranche âge 5","F","H","Total"]
[null,null,null,"20-29",6,null,1,5,12,null,null,null,null,"10-19",0.5714285714285714,0,0.2857142857142857,0.14285714285714285,1,null,null,null,null,null,"15-19",16,7.166666666666667,8.4285714285714288]
[null,null,null,"30-39",13,null,4,3,20,null,null,null,null,"20-29",0.5,0,8.3333333333333329E-2,0.41666666666666669,1,null,null,null,null,null,"20-24",80,17,42.2]
[null,null,null,"40-49",5,1,3,5,14,null,null,null,null,"30-39",0.65,0,0.2,0.15,1,null,null,null,null,null,"25-29",12.8,17.5,14.142857142857142]
[null,null,null,"50-59",8,null,3,2,13,null,null,null,null,"40-49",0.35714285714285715,7.1428571428571425E-2,0.21428571428571427,0.35714285714285715,1,null,null,null,null,null,"30-34",44,1.6,20.444444444444443]
[null,null,null,"60-69",6,null,2,2,10,null,null,null,null,"50-59",0.61538461538461542,0,0.23076923076923078,0.15384615384615385,1,null,null,null,null,null,"35-39",9.6,7.166666666666667,8.2727272727272734]
[null,null,null,"Total",42,1,15,18,76,null,null,null,null,"60-69",0.6,0,0.2,0.2,1,null,null,null,null,null,"40-44",96,14.75,41.833333333333336]
[null,null,null,null,null,null,null,null,null,null,null,null,null,"Total",0.55263157894736847,1.3157894736842105E-2,0.19736842105263158,0.23684210526315788,1,null,null,null,null,null,"45-49",10.666666666666666,11,10.875]
[null,null,null,null,null,null,null,null,null,null,null,null,null,null,null,null,null,null,null,null,null,null,null,null,"50-54",10.666666666666666,2,5.7142857142857144]
[null,null,null,null,null,null,null,null,null,null,null,null,null,null,null,null,null,null,null,null,null,null,null,null,"55-59",8,10.75,9.8333333333333339]
[null,null,null,null,null,null,null,null,null,null,null,null,null,null,null,null,null,null,null,null,null,null,null,null,"60-64",160,1.6,28]
[null,null,null,null,null,null,null,null,null,null,null,null,null,null,null,null,null,null,null,null,null,null,null,null,"65-69",0,17,12.75]
[null,null,null,null,null,null,null,null,null,null,null,null,null,null,null,null,null,null,null,null,null,null,null,null,"Total",30.896551724137932,8.5957446808510642,17.105263157894736]
[]
[]
[]
[]
[]
[]
[]
[]
[]
[]
[]
[]
[]
[]
[]
[]
[]
[null,null,null,"DUREE D'ARRETS SANTE PAR ACTIVITES"]
[]
[null,null,null,"REPARTION EN NOMBRE ",null,null,null,null,null,null,null,null,null,"REPARTITION EN POURCENTAGE ",null,null,null,null,null,null,null,null,null,null,"MOYENNES"]
[]
[]
[null,null,null,"Tranche ancienneté ","(Tout)"]
[]
[null,null,null,"NB sur MATRICULE","Tranches arrêts absences/santé"]
[null,null,null,"SERVICE/SECTEUR","1:0","2:1-5","3:6-25","4:+25","Total"]
[null,null,null,"DIR",3,null,null,null,3,null,null,null,null,null,null,null,null,null,null,null,null,null,null,null,"Moyenne sur Durée ABSENCES SANTE","SEXE"]
[null,null,null,"PROD",33,1,15,7,56,null,null,null,null,"NB sur MATRICULE","Tranches arrêts absences/santé",null,null,null,null,null,null,null,null,null,"SERVICE/SECTEUR","F","H","Total"]
[null,null,null,"SA",6,null,null,11,17,null,null,null,null,"SERVICE/SECTEUR","1:0","2:1-5","3:6-25","4:+25","Total",null,null,null,null,null,"DIR",null,0,0]
[null,null,null,"Total",42,1,15,18,76,null,null,null,null,"DIR",1,0,0,0,1,null,null,null,null,null,"PROD",8.4210526315789469,7.1351351351351351,7.5714285714285712]
[null,null,null,null,null,null,null,null,null,null,null,null,null,"PROD",0.5892857142857143,1.7857142857142856E-2,0.26785714285714285,0.125,1,null,null,null,null,null,"SA",73.599999999999994,20,51.529411764705884]
[null,null,null,null,null,null,null,null,null,null,null,null,null,"SA",0.35294117647058826,0,0,0.6470588235294118,1,null,null,null,null,null,"Total",30.896551724137932,8.5957446808510642,17.105263157894736]
[null,null,null,null,null,null,null,null,null,null,null,null,null,"Total",0.55263157894736847,1.3157894736842105E-2,0.19736842105263158,0.23684210526315788,1]

{"sheet":"Arrêts AT","index":10,"n_rows":55,"n_cols":28,"rows_kept":55,"cut":false,"hidden":false,"merged":[]}
[]
[]
[]
[null,null,"QUELLE EST LA REPARTITION DES AT ?"]
[null,null,"Axe d'analyse: Prévention de l'usure"]
[]
[]
[null,null,"DUREE ARRETS AT PAR AGE"]
[]
[null,null,null,"REPARTION EN NOMBRE ",null,null,null,null,null,null,null,null,null,"REPARTITION EN POURCENTAGE ",null,null,null,null,null,null,null,null,null,null,"MOYENNES"]
[]
[]
[]
[]
[null,null,null,"NB sur MATRICULE","Tranches arrêts AT"]
[null,null,null,"Tranche âge 10","1:0","2:1-5","3:6-25","4:+25","Total",null,null,null,null,"NB sur MATRICULE","Tranches arrêts AT",null,null,null,null,null,null,null,null,null,"Moyenne sur Duréé ABSENCES AT","SEXE"]
[null,null,null,"10-19",6,null,null,1,7,null,null,null,null,"Tranche âge 10","4:+25","3:6-25","2:1-5","1:0","Total",null,null,null,null,null,"Tranche âge 10","F","H","Total"]
[null,null,null,"20-29",9,1,null,2,12,null,null,null,null,"10-19",0.14285714285714285,0,0,0.8571428571428571,1,null,null,null,null,null,"10-19",0,8.3333333333333339,7.1428571428571432]
[null,null,null,"30-39",18,null,null,2,20,null,null,null,null,"20-29",0.16666666666666666,0,8.3333333333333329E-2,0.75,1,null,null,null,null,null,"20-29",22.142857142857142,10,17.083333333333332]
[null,null,null,"40-49",11,1,1,1,14,null,null,null,null,"30-39",0.1,0,0,0.9,1,null,null,null,null,null,"30-39",17,4.5454545454545459,10.15]
[null,null,null,"50-59",12,null,null,1,13,null,null,null,null,"40-49",7.1428571428571425E-2,7.1428571428571425E-2,7.1428571428571425E-2,0.7857142857142857,1,null,null,null,null,null,"40-49",31,1.1111111111111112,11.785714285714286]
[null,null,null,"60-69",8,1,null,1,10,null,null,null,null,"50-59",7.6923076923076927E-2,0,0,0.92307692307692313,1,null,null,null,null,null,"50-59",0,6.25,3.8461538461538463]
[null,null,null,"Total",64,3,1,8,76,null,null,null,null,"60-69",0.1,0,0.1,0.8,1,null,null,null,null,null,"60-69",77.5,0,15.5]
[null,null,null,null,null,null,null,null,null,null,null,null,null,"Total",0.10526315789473684,1.3157894736842105E-2,3.9473684210526314E-2,0.84210526315789469,1,null,null,null,null,null,"Total",21.310344827586206,4.4680851063829783,10.894736842105264]
[]
[]
[]
[]
[]
[]
[]
[]
[]
[]
[]
[]
[]
[]
[]
[]
[]
[]
[null,null,null,"DUREE ARRETS AT PAR ACTIVITES"]
[]
[null,null,null,"REPARTION EN NOMBRE ",null,null,null,null,null,null,null,null,null,"REPARTITION EN POURCENTAGE ",null,null,null,null,null,null,null,null,null,null,"MOYENNES"]
[]
[null,null,null,"METIER/EMPLOI","(Tout)",null,null,null,null,null,null,null,null,"METIER/EMPLOI","(Tout)",null,null,null,null,null,null,null,null,null,"Tranche âge 10","(Tout)"]
[null,null,null,null,null,null,null,null,null,null,null,null,null,null,null,null,null,null,null,null,null,null,null,null,"METIER/EMPLOI","(Tout)"]
[null,null,null,"NB sur MATRICULE","Tranches arrêts AT",null,null,null,null,null,null,null,null,"NB sur MATRICULE","Tranches arrêts AT"]
[null,null,null,"SERVICE/SECTEUR","1:0","2:1-5","3:6-25","4:+25","Total",null,null,null,null,"SERVICE/SECTEUR","4:+25","3:6-25","2:1-5","1:0","Total",null,null,null,null,null,"Moyenne sur Duréé ABSENCES AT","SEXE"]
[null,null,null,"DIR",3,null,null,null,3,null,null,null,null,"DIR",0,0,0,1,1,null,null,null,null,null,"SERVICE/SECTEUR","F","H","Total"]
[null,null,null,"PROD",51,null,1,4,56,null,null,null,null,"PROD",7.1428571428571425E-2,1.7857142857142856E-2,0,0.9107142857142857,1,null,null,null,null,null,"DIR",null,0,0]
[null,null,null,"SA",10,3,null,4,17,null,null,null,null,"SA",0.23529411764705882,0,0.17647058823529413,0.58823529411764708,1,null,null,null,null,null,"PROD",0,5.6756756756756754,3.75]
[null,null,null,"Total",64,3,1,8,76,null,null,null,null,"Total",0.10526315789473684,1.3157894736842105E-2,3.9473684210526314E-2,0.84210526315789469,1,null,null,null,null,null,"SA",61.8,0,36.352941176470587]
[null,null,null,null,null,null,null,null,null,null,null,null,null,null,null,null,null,null,null,null,null,null,null,null,"Total",21.310344827586206,4.4680851063829783,10.894736842105264]

{"sheet":"MP","index":11,"n_rows":54,"n_cols":17,"rows_kept":54,"cut":false,"hidden":false,"merged":[]}
[]
[]
[]
[null,null,"QUELLE EST LA REPARTITION DES MP  ?"]
[null,null,"Axe d'analyse: Prévention de l'usure"]
[]
[]
[null,null,"MP PAR AGE"]
[]
[null,null,null,"REPARTION EN NOMBRE ",null,null,null,null,null,null,null,null,null,"REPARTITION EN POURCENTAGE "]
[]
[null,null,null,"SERVICE/SECTEUR","(Tout)"]
[null,null,null,"METIER/EMPLOI","(Tout)",null,null,null,null,null,null,null,null,"SERVICE/SECTEUR","(Tout)"]
[null,null,null,null,null,null,null,null,null,null,null,null,null,"METIER/EMPLOI","(Tout)"]
[null,null,null,"NB sur MATRICULE","MP"]
[null,null,null,"Tranche âge 10","NON","OUI","Total",null,null,null,null,null,null,"NB sur MATRICULE","MP"]
[null,null,null,"10-19",4,3,7,null,null,null,null,null,null,"Tranche âge 10","NON","OUI","Total"]
[null,null,null,"20-29",7,5,12,null,null,null,null,null,null,"10-19",0.5714285714285714,0.42857142857142855,1]
[null,null,null,"30-39",15,5,20,null,null,null,null,null,null,"20-29",0.58333333333333337,0.41666666666666669,1]
[null,null,null,"40-49",6,8,14,null,null,null,null,null,null,"30-39",0.75,0.25,1]
[null,null,null,"50-59",10,3,13,null,null,null,null,null,null,"40-49",0.42857142857142855,0.5714285714285714,1]
[null,null,null,"60-69",6,4,10,null,null,null,null,null,null,"50-59",0.76923076923076927,0.23076923076923078,1]
[null,null,null,"Total",48,28,76,null,null,null,null,null,null,"60-69",0.6,0.4,1]
[null,null,null,null,null,null,null,null,null,null,null,null,null,"Total",0.63157894736842102,0.36842105263157893,1]
[]
[]
[]
[]
[]
[]
[]
[]
[]
[]
[]
[]
[]
[]
[]
[]
[]
[]
[null,null,null,"MP PAR ACTIVITES"]
[]
[null,null,null,"REPARTION EN NOMBRE ",null,null,null,null,null,null,null,null,null,"REPARTITION EN POURCENTAGE "]
[]
[null,null,null,"METIER/EMPLOI","(Tout)",null,null,null,null,null,null,null,null,"METIER/EMPLOI","(Tout)"]
[]
[null,null,null,"NB sur MATRICULE","MP",null,null,null,null,null,null,null,null,"NB sur MATRICULE","MP"]
[null,null,null,"SERVICE/SECTEUR","NON","OUI","Total",null,null,null,null,null,null,"SERVICE/SECTEUR","NON","OUI","Total"]
[null,null,null,"DIR",3,null,3,null,null,null,null,null,null,"DIR",1,0,1]
[null,null,null,"PROD",41,15,56,null,null,null,null,null,null,"PROD",0.7321428571428571,0.26785714285714285,1]
[null,null,null,"SA",4,13,17,null,null,null,null,null,null,"SA",0.23529411764705882,0.76470588235294112,1]
[null,null,null,"Total",48,28,76,null,null,null,null,null,null,"Total",0.63157894736842102,0.36842105263157893,1]

{"sheet":"RESTRICTIONS","index":12,"n_rows":55,"n_cols":17,"rows_kept":55,"cut":false,"hidden":false,"merged":[]}
[]
[]
[]
[]
[null,null,"QUELLE EST LA REPARTITION DES RESTRICTIONS  ?"]
[null,null,"Axe d'analyse: Prévention de l'usure"]
[]
[]
[null,null,"RESTRICTIONS PAR AGE"]
[]
[null,null,null,"REPARTION EN NOMBRE ",null,null,null,null,null,null,null,null,null,"REPARTITION EN POURCENTAGE "]
[]
[null,null,null,"SERVICE/SECTEUR","(Tout)"]
[null,null,null,"METIER/EMPLOI","(Tout)",null,null,null,null,null,null,null,null,"SERVICE/SECTEUR","(Tout)"]
[null,null,null,null,null,null,null,null,null,null,null,null,null,"METIER/EMPLOI","(Tout)"]
[null,null,null,"NB sur MATRICULE","Restrictions"]
[null,null,null,"Tranche âge 10","NON","OUI","Total",null,null,null,null,null,null,"NB sur MATRICULE","Restrictions"]
[null,null,null,"10-19",6,1,7,null,null,null,null,null,null,"Tranche âge 10","NON","OUI","Total"]
[null,null,null,"20-29",2,10,12,null,null,null,null,null,null,"10-19",0.8571428571428571,0.14285714285714285,1]
[null,null,null,"30-39",11,9,20,null,null,null,null,null,null,"20-29",0.16666666666666666,0.83333333333333337,1]
[null,null,null,"40-49",4,10,14,null,null,null,null,null,null,"30-39",0.55000000000000004,0.45,1]
[null,null,null,"50-59",8,5,13,null,null,null,null,null,null,"40-49",0.2857142857142857,0.7142857142857143,1]
[null,null,null,"60-69",6,4,10,null,null,null,null,null,null,"50-59",0.61538461538461542,0.38461538461538464,1]
[null,null,null,"Total",37,39,76,null,null,null,null,null,null,"60-69",0.6,0.4,1]
[null,null,null,null,null,null,null,null,null,null,null,null,null,"Total",0.48684210526315791,0.51315789473684215,1]
[]
[]
[]
[]
[]
[]
[]
[]
[]
[]
[]
[]
[]
[]
[]
[]
[]
[]
[null,null,null,"RESTRICTIONS PAR ACTIVITES"]
[]
[null,null,null,"REPARTION EN NOMBRE ",null,null,null,null,null,null,null,null,null,"REPARTITION EN POURCENTAGE "]
[]
[null,null,null,"METIER/EMPLOI","(Tout)",null,null,null,null,null,null,null,null,"METIER/EMPLOI","(Tout)"]
[]
[null,null,null,"NB sur MATRICULE","Restrictions",null,null,null,null,null,null,null,null,"NB sur MATRICULE","Restrictions"]
[null,null,null,"SERVICE/SECTEUR","NON","OUI","Total",null,null,null,null,null,null,"SERVICE/SECTEUR","NON","OUI","Total"]
[null,null,null,"DIR",3,null,3,null,null,null,null,null,null,"DIR",1,0,1]
[null,null,null,"PROD",34,22,56,null,null,null,null,null,null,"PROD",0.6071428571428571,0.39285714285714285,1]
[null,null,null,"SA",null,17,17,null,null,null,null,null,null,"SA",0,1,1]
[null,null,null,"Total",37,39,76,null,null,null,null,null,null,"Total",0.48684210526315791,0.51315789473684215,1]

{"sheet":"ANALYSES COMPLEMENTAIRES UP","index":13,"n_rows":5,"n_cols":24,"rows_kept":5,"cut":false,"hidden":false,"merged":[[2,1,2,17]]}
[]
[]
[null,"Dans cet onglet, un Tableau Croisé Dynamique vierge vous permet de faire des croisements complémentaires pour analyser les liens entre conditions de travail et état de santé des salariés"]
[null,null,null,null,null,null,null,null,null,null,null,null,null,null,null,null,null,null,null,null,null,null,null,"Suite ->"]
[null,null,"Axe d'analyse: Usure professionnelle"]

{"sheet":"Feuil2","index":14,"n_rows":0,"n_cols":0,"rows_kept":0,"cut":false,"hidden":false,"merged":[]}

{"sheet":"Formation","index":15,"n_rows":143,"n_cols":7,"rows_kept":143,"cut":false,"hidden":false,"merged":[]}
[]
[]
[null,null,"QUELLE EST LA REPARTITION DES FORMATIONS  ?"]
[null,null,"Axe d'analyse:  Parcours"]
[]
[]
[]
[]
[]
[]
[null,null," FORMATIONS PAR SEXE"]
[]
[null,null,"Avertissement: toujours vérifier la cohérence entre les tableaux et les graphiques liés et ajuster la plage de sélection des données si besoin"]
[]
[]
[]
[null,null,null,"menu de tri complémentaire"]
[]
[]
[]
[]
[]
[]
[null,null,null,"Moyenne sur HEURES FORMATION"]
[null,null,null,"SEXE","Somme"]
[null,null,null,"H",9.5319148936170208]
[null,null,null,"F",4.1034482758620694]
[null,null,null,"Total",7.4605263157894735]
[]
[]
[]
[]
[]
[]
[]
[]
[]
[]
[]
[]
[]
[]
[]
[]
[]
[]
[]
[]
[]
[]
[]
[]
[]
[]
[]
[]
[]
[]
[]
[null,null,"FORMATIONS PAR AGE"]
[]
[]
[]
[]
[]
[]
[null,null,null,"Moyenne sur HEURES FORMATION","SEXE"]
[null,null,null,"Tranche âge 10","H","F","Total"]
[null,null,null,"10-19",10.5,7,10]
[null,null,null,"20-29",8.4,4,5.833333333333333]
[null,null,null,"30-39",9.545454545454545,2.3333333333333335,6.3]
[null,null,null,"40-49",7.7777777777777777,9.8000000000000007,8.5]
[null,null,null,"50-59",7.875,1.4,5.384615384615385]
[null,null,null,"60-69",13.125,3.5,11.2]
[null,null,null,"Total",9.5319148936170208,4.1034482758620694,7.4605263157894735]
[]
[]
[]
[]
[]
[]
[]
[]
[]
[]
[]
[]
[]
[]
[]
[]
[]
[]
[]
[null,null,null,"FORMATIONS PAR ANCIENNETE"]
[]
[]
[]
[]
[]
[]
[null,null,null,"Moyenne sur HEURES FORMATION","SEXE"]
[null,null,null,"Tranche ancienneté ","H","F","Total"]
[null,null,null,"1:-1an",0,7,3.5]
[null,null,null,"2:1-2",21,0,14]
[null,null,null,"3:3-5",10,1.4,6.416666666666667]
[null,null,null,"4:6-11",7,8.75,7.7]
[null,null,null,"5:+11",9.4838709677419359,3.8888888888888888,7.4285714285714288]
[null,null,null,"Total",9.5319148936170208,4.1034482758620694,7.4605263157894735]
[]
[]
[]
[]
[]
[]
[]
[]
[]
[]
[]
[]
[]
[]
[]
[]
[]
[]
[]
[]
[]
[]
[]
[]
[null,null,"FORMATIONS PAR ACTIVITES"]
[]
[]
[]
[null,null,null,"Moyenne sur HEURES FORMATION","SEXE"]
[null,null,null,"SERVICE/SECTEUR","H","F","Total"]
[null,null,null,"DIR",0,null,0]
[null,null,null,"PROD",9.4594594594594597,1.4736842105263157,6.75]
[null,null,null,"SA",14,9.1,11.117647058823529]
[null,null,null,"Total",9.5319148936170208,4.1034482758620694,7.4605263157894735]

{"sheet":"Evolutions Entrées Sorties","index":16,"n_rows":40,"n_cols":14,"rows_kept":40,"cut":false,"hidden":false,"merged":[]}
[]
[]
[null,null,"TABLEAU DES ENTREES ET SORTIES 3 DERNIERES ANNEES PAR SERVICES"]
[null,null,"Axe d'analyse : Parcours"]
[]
[null,null,null,null,null,null,null,null,null,null,null,null,"Risque fort"]
[null,null,null,null,null,null,null,null,null,null,null,null,"Risque moyen "]
[null,null,null,null,null,null,null,null,null,null,null,null,"Risque faible"]
[]
[]
[]
[]
[null,null,"ANNEES",null,2010,null,2011,null,2012,null,"TOTAL",null,"Taux de Turnover","Commentaires"]
[]
[null,null,"SERVICES OU METIERS ","EFFECTIF","ENTREES","SORTIES","ENTREES","SORTIES","ENTREES","SORTIES","ENTRES","SORTIES"]
[]
[null,null,1]
[null,null,2]
[null,null,3]
[null,null,4]
[null,null,5]
[null,null,6]
[null,null,7]
[null,null,8]
[null,null,9]
[null,null,10]
[null,null,11,null,null,null,2]
[null,null,12]
[null,null,13]
[null,null,14]
[null,null,15]
[null,null,16]
[null,null,17]
[null,null,18]
[null,null,19]
[null,null,20]
[]
[]
[]
[null,null,"TOTAL",{"$f":"SUM(D17:D36)","v":0},0,0,2,0,0,0,0,0]

{"sheet":"Feuil1","index":17,"n_rows":0,"n_cols":0,"rows_kept":0,"cut":false,"hidden":false,"merged":[]}

{"sheet":"Compétences","index":18,"n_rows":35,"n_cols":12,"rows_kept":35,"cut":false,"hidden":false,"merged":[]}
[]
[]
[null,null,"TABLEAU DE GESTION DES COMPETENCES CLES"]
[null,null,"Axe d'analyse : Parcours "]
[]
[null,null,null,null,null,null,null,null,null,null,null,"Risque fort"]
[null,null,null,null,null,null,null,null,null,null,null,"Risque moyen "]
[null,null,null,null,null,null,null,null,null,null,null,"Risque faible"]
[]
[null,null,"SERVICES/METIERS","Effectifs","Jeunes (-30 ans par ex)","SENIORS (+ 55 ans par ex)","Ancienneté moyenne dans le service/métiers des + 55 ans","Identification des compétences clefs et des besoins de transmission"]
[]
[null,null,1]
[null,null,2]
[null,null,3]
[null,null,4]
[null,null,5]
[null,null,6]
[null,null,7]
[null,null,8]
[null,null,9]
[null,null,10]
[null,null,11]
[null,null,12]
[null,null,13]
[null,null,14]
[null,null,15]
[null,null,16]
[null,null,17]
[null,null,18]
[null,null,19]
[null,null,20]
[]
[]
[]
[null,null,null,null,null,null,"Exemple de graphique croisant l'âge et l'ancienneté par activité : "]

{"sheet":"ANALYSES COMPLEMENTAIRES PARCOU","index":19,"n_rows":5,"n_cols":24,"rows_kept":5,"cut":false,"hidden":false,"merged":[[2,1,2,17]]}
[]
[]
[null,"Dans cet onglet, un Tableau Croisé Dynamique vierge vous permet de faire des croisements complémentaires pour analyser conditions d'évolution professionnelle des salariés"]
[null,null,null,null,null,null,null,null,null,null,null,null,null,null,null,null,null,null,null,null,null,null,null,"Suite ->"]
[null,null,"Axe d'analyse: Parcours"]

{"sheet":"ANALYSES COMPLEMENTAIRES PA (2)","index":20,"n_rows":5,"n_cols":24,"rows_kept":5,"cut":false,"hidden":false,"merged":[[2,1,2,17]]}
[]
[]
[null,"Dans cet onglet, un Tableau Croisé Dynamique vierge vous permet de faire des croisements complémentaires pour analyser conditions d'évolution professionnelle des salariés"]
[null,null,null,null,null,null,null,null,null,null,null,null,null,null,null,null,null,null,null,null,null,null,null,"Suite ->"]
[null,null,"Axe d'analyse: Parcours"]

{"sheet":"SYNTHESE DIAG","index":21,"n_rows":10,"n_cols":5,"rows_kept":10,"cut":false,"hidden":false,"merged":[]}
[]
[null,"SYNTHESE DIAGNOSTIC : "]
[]
[]
[null,null,null,"Points forts/Atouts","Points d'amélioration/faiblesses "]
[null,null,"Prevention de l'usure"]
[null,null,"Parcours"]
[null,null,"Engagement "]
[]
[null,null,"Contexte économique / enjeux de perfomance "]

{"sheet":"Feuil3","index":22,"n_rows":0,"n_cols":0,"rows_kept":0,"cut":false,"hidden":false,"merged":[]}